Payment Date,Transaction Number,Net Amount,Supplier (Beneficiary) Name,Local Supplier Internal Reference,Directorate / Service Where Expenditure Incurred,Service Category Label,Service Category URI,SeRCOP Expenditure Category,SeRCOP Expenditure Code,Purpose of Spend,SeRCOP Detailed Expenditure Code,Capital/Revenue,Procurement Classification
22-FEB-2023,7020899,20,UTILITA ENERGY LIMITED,395514,"Health, Education, Care and Safeguarding",Children's & Education Services,103,Supplies and Services,504,Other Establishments,5041,Revenue,GAS.GAS
22-FEB-2023,7020899,-0.01,UTILITA ENERGY LIMITED,395514,"Health, Education, Care and Safeguarding",Children's & Education Services,103,Third Party Payments,505,Other Establishments,5041,Revenue,GAS.GAS
22-FEB-2023,7020899,-0.01,UTILITA ENERGY LIMITED,395514,"Health, Education, Care and Safeguarding",Children's & Education Services,103,Third Party Payments,505,Other Establishments,5041,Revenue,GAS.GAS
22-FEB-2023,7020899,20,UTILITA ENERGY LIMITED,395514,"Health, Education, Care and Safeguarding",Children's & Education Services,103,Third Party Payments,505,Other Establishments,5041,Revenue,GAS.GAS
22-FEB-2023,7020899,38.1,UTILITA ENERGY LIMITED,395514,"Health, Education, Care and Safeguarding",Children's & Education Services,103,Third Party Payments,505,Other Establishments,5041,Revenue,GAS.GAS
22-FEB-2023,7020899,38.1,UTILITA ENERGY LIMITED,395514,"Health, Education, Care and Safeguarding",Children's & Education Services,103,Third Party Payments,505,Energy Costs,5041,Revenue,GAS.GAS
22-FEB-2023,7020899,41.67,UTILITA ENERGY LIMITED,395514,"Health, Education, Care and Safeguarding",Children's & Education Services,103,Third Party Payments,505,Private Contractors,5006,Revenue,GAS.GAS
22-FEB-2023,7020899,677.28,UTILITA ENERGY LIMITED,395514,Housing,Housing Revenue Account,N/A,Premises-Related Expenditure,502,Other Establishments,5042,Revenue,GAS.GAS
22-FEB-2023,7020900,553.33,HOTEL ONBOOKING.COM,395243,"Health, Education, Care and Safeguarding",Children's & Education Services,103,Third Party Payments,505,Equipment,5041,Revenue,HUMAN RESOURCES.ACCOMMODATION
22-FEB-2023,7020901,62.49,FOOT ASYLUM,394546,"Health, Education, Care and Safeguarding",Children's & Education Services,103,Third Party Payments,505,Miscellaneous Expenses,5023,Revenue,SPORTS & PLAYGROUND EQUIPMENT.SPORTS EQUIPMENT
22-FEB-2023,7020902,95,AJ PRODUCTS,394518,Environment & Leisure,Cultural & Related Services,104,Supplies and Services,504,Energy Costs,5034,Revenue,OFFICE & REPROGRAPHICS EQUIPMENT.OFFICE & REPROGRAPHICS EQUIPMENT
22-FEB-2023,7020903,400,ADASS,379998,"Health, Education, Care and Safeguarding",Adult Social Care,101,Supplies and Services,504,Energy Costs,5006,Revenue,SUBSCRIPTIONS & PUBLICATIONS.MEMBERSHIPS
22-FEB-2023,7020904,-0.01,MOORPARK CONVENIENCE,393460,Housing,Housing Revenue Account,N/A,Premises-Related Expenditure,502,Equipment,5006,Revenue,CATERING.FOOD & BEVERAGES
22-FEB-2023,7020904,38.1,MOORPARK CONVENIENCE,393460,Housing,Housing Revenue Account,N/A,Premises-Related Expenditure,502,Equipment,5023,Revenue,CATERING.FOOD & BEVERAGES
22-FEB-2023,7020905,76.5,TAHDAH VERIFIED,393356,Environment & Leisure,Cultural & Related Services,104,Supplies and Services,504,Catering,5023,Revenue,ICT.SOFTWARE
22-FEB-2023,7020905,170,TAHDAH VERIFIED,393356,Environment & Leisure,Cultural & Related Services,104,Supplies and Services,504,Equipment,5024,Revenue,ICT.SOFTWARE
22-FEB-2023,7020906,37.39,JUST EAT,393240,Corporate Strategy,Children's & Education Services,103,Supplies and Services,504,Equipment,5023,Revenue,NON INFLUENCIBLE.GRANTS
22-FEB-2023,7020907,26.25,FACEBOOK,393228,"Health, Education, Care and Safeguarding",Children's & Education Services,103,Supplies and Services,504,Equipment,5023,Revenue,ADVERTISING & MARKETING.ADVERTISING
22-FEB-2023,7020907,20,FACEBOOK,393228,"Health, Education, Care and Safeguarding",Children's & Education Services,103,Supplies and Services,504,"Printing, Stationery and General Office Expenses",5023,Revenue,ADVERTISING & MARKETING.ADVERTISING
22-FEB-2023,7020907,6,FACEBOOK,393228,"Health, Education, Care and Safeguarding",Children's & Education Services,103,Supplies and Services,504,"Printing, Stationery and General Office Expenses",5026,Revenue,ADVERTISING & MARKETING.ADVERTISING
22-FEB-2023,7020907,2.28,FACEBOOK,393228,Public Health,Public Health,112,Supplies and Services,504,"Printing, Stationery and General Office Expenses",5026,Revenue,ADVERTISING & MARKETING.ADVERTISING
22-FEB-2023,7020907,18.53,FACEBOOK,393228,Public Health,Public Health,112,Supplies and Services,504,"Printing, Stationery and General Office Expenses",5026,Revenue,ADVERTISING & MARKETING.ADVERTISING
22-FEB-2023,7020907,34.22,FACEBOOK,393228,Public Health,Public Health,112,Supplies and Services,504,"Printing, Stationery and General Office Expenses",5026,Revenue,ADVERTISING & MARKETING.ADVERTISING
22-FEB-2023,7020907,1.16,FACEBOOK,393228,Public Health,Children's & Education Services,103,Supplies and Services,504,"Printing, Stationery and General Office Expenses",5026,Revenue,ADVERTISING & MARKETING.ADVERTISING
22-FEB-2023,7020907,11.75,FACEBOOK,393228,Public Health,Children's & Education Services,103,Supplies and Services,504,Equipment,5026,Revenue,ADVERTISING & MARKETING.ADVERTISING
22-FEB-2023,7020907,17.33,FACEBOOK,393228,Public Health,Children's & Education Services,103,Supplies and Services,504,Equipment,5023,Revenue,ADVERTISING & MARKETING.ADVERTISING
22-FEB-2023,7020907,12.2,FACEBOOK,393228,"Health, Education, Care and Safeguarding",Children's & Education Services,103,Supplies and Services,504,Equipment,5023,Revenue,ADVERTISING & MARKETING.ADVERTISING
22-FEB-2023,7020907,61.8,FACEBOOK,393228,"Health, Education, Care and Safeguarding",Children's & Education Services,103,Supplies and Services,504,Equipment,5023,Revenue,ADVERTISING & MARKETING.ADVERTISING
22-FEB-2023,7020907,21.8,FACEBOOK,393228,"Health, Education, Care and Safeguarding",Children's & Education Services,103,Supplies and Services,504,"Printing, Stationery and General Office Expenses",5023,Revenue,ADVERTISING & MARKETING.ADVERTISING
22-FEB-2023,7020907,118.2,FACEBOOK,393228,"Health, Education, Care and Safeguarding",Children's & Education Services,103,Supplies and Services,504,"Printing, Stationery and General Office Expenses",5026,Revenue,ADVERTISING & MARKETING.ADVERTISING
22-FEB-2023,7020907,3.21,FACEBOOK,393228,Environment & Leisure,Cultural & Related Services,104,Supplies and Services,504,"Printing, Stationery and General Office Expenses",5026,Revenue,ADVERTISING & MARKETING.ADVERTISING
22-FEB-2023,7020907,8.45,FACEBOOK,393228,Environment & Leisure,Cultural & Related Services,104,Supplies and Services,504,Equipment,5026,Revenue,ADVERTISING & MARKETING.ADVERTISING
22-FEB-2023,7020907,29.72,FACEBOOK,393228,Environment & Leisure,Cultural & Related Services,104,Supplies and Services,504,Miscellaneous Expenses,5023,Revenue,ADVERTISING & MARKETING.ADVERTISING
22-FEB-2023,7020907,13.23,FACEBOOK,393228,"Health, Education, Care and Safeguarding",Children's & Education Services,103,Supplies and Services,504,Other Establishments,5034,Revenue,ADVERTISING & MARKETING.ADVERTISING
22-FEB-2023,7020908,48.94,Hosting24,393155,"Health, Education, Care and Safeguarding",Adult Social Care,101,Supplies and Services,504,Miscellaneous Expenses,5041,Revenue,ICT.SOFTWARE
22-FEB-2023,7020909,13,DISCLOSURE & BARRING,393127,"Health, Education, Care and Safeguarding",Children's & Education Services,103,Third Party Payments,505,Miscellaneous Expenses,5034,Revenue,SUBSCRIPTIONS & PUBLICATIONS.MEMBERSHIPS
22-FEB-2023,7020909,13,DISCLOSURE & BARRING,393127,"Health, Education, Care and Safeguarding",Children's & Education Services,103,Supplies and Services,504,Miscellaneous Expenses,5034,Revenue,SUBSCRIPTIONS & PUBLICATIONS.MEMBERSHIPS
22-FEB-2023,7020909,18,DISCLOSURE & BARRING,393127,Housing,Housing Services,108,Supplies and Services,504,Miscellaneous Expenses,5034,Revenue,SUBSCRIPTIONS & PUBLICATIONS.MEMBERSHIPS
22-FEB-2023,7020909,18,DISCLOSURE & BARRING,393127,Housing,Housing Services,108,Supplies and Services,504,Private Contractors,5034,Revenue,SUBSCRIPTIONS & PUBLICATIONS.MEMBERSHIPS
22-FEB-2023,7020909,18,DISCLOSURE & BARRING,393127,Housing,Housing Services,108,Supplies and Services,504,Miscellaneous Expenses,5042,Revenue,SUBSCRIPTIONS & PUBLICATIONS.MEMBERSHIPS
22-FEB-2023,7020909,18,DISCLOSURE & BARRING,393127,Housing,Housing Services,108,Third Party Payments,505,Miscellaneous Expenses,5034,Revenue,SUBSCRIPTIONS & PUBLICATIONS.MEMBERSHIPS
22-FEB-2023,7020910,0.01,TK MAXX,392657,"Health, Education, Care and Safeguarding",Children's & Education Services,103,Supplies and Services,504,Miscellaneous Expenses,5034,Revenue,FURNITURE.DOMESTIC
22-FEB-2023,7020910,16.37,TK MAXX,392657,"Health, Education, Care and Safeguarding",Children's & Education Services,103,Supplies and Services,504,Miscellaneous Expenses,5034,Revenue,FURNITURE.DOMESTIC
22-FEB-2023,7020910,51.82,TK MAXX,392657,"Health, Education, Care and Safeguarding",Children's & Education Services,103,Supplies and Services,504,Miscellaneous Expenses,5034,Revenue,FURNITURE.DOMESTIC
22-FEB-2023,7020910,59.54,TK MAXX,392657,"Health, Education, Care and Safeguarding",Children's & Education Services,103,Supplies and Services,504,Energy Costs,5034,Revenue,FURNITURE.DOMESTIC
22-FEB-2023,7020910,73.47,TK MAXX,392657,"Health, Education, Care and Safeguarding",Children's & Education Services,103,Supplies and Services,504,Energy Costs,5006,Revenue,FURNITURE.DOMESTIC
22-FEB-2023,7020911,94.29,BRITISH GAS BUSINESS,361360,Housing,Housing Revenue Account,N/A,Premises-Related Expenditure,502,Energy Costs,5006,Revenue,GAS.GAS
22-FEB-2023,7020911,99,BRITISH GAS BUSINESS,361360,Housing,Housing Revenue Account,N/A,Premises-Related Expenditure,502,Energy Costs,5006,Revenue,GAS.GAS
22-FEB-2023,7020911,99,BRITISH GAS BUSINESS,361360,Housing,Housing Revenue Account,N/A,Premises-Related Expenditure,502,Energy Costs,5006,Revenue,GAS.GAS
22-FEB-2023,7020911,385.53,BRITISH GAS BUSINESS,361360,Housing,Housing Revenue Account,N/A,Premises-Related Expenditure,502,Energy Costs,5006,Revenue,GAS.GAS
22-FEB-2023,7020911,447.41,BRITISH GAS BUSINESS,361360,Housing,Housing Revenue Account,N/A,Premises-Related Expenditure,502,Energy Costs,5006,Revenue,GAS.GAS
22-FEB-2023,7020911,500,BRITISH GAS BUSINESS,361360,Housing,Housing Revenue Account,N/A,Premises-Related Expenditure,502,Energy Costs,5006,Revenue,GAS.GAS
22-FEB-2023,7020911,543.31,BRITISH GAS BUSINESS,361360,Housing,Housing Revenue Account,N/A,Premises-Related Expenditure,502,Energy Costs,5006,Revenue,GAS.GAS
22-FEB-2023,7020911,658.65,BRITISH GAS BUSINESS,361360,Housing,Housing Revenue Account,N/A,Premises-Related Expenditure,502,Energy Costs,5006,Revenue,GAS.GAS
22-FEB-2023,7020911,29.11,BRITISH GAS BUSINESS,361360,Housing,Housing Revenue Account,N/A,Premises-Related Expenditure,502,Energy Costs,5006,Revenue,GAS.GAS
22-FEB-2023,7020911,94.29,BRITISH GAS BUSINESS,361360,Housing,Housing Revenue Account,N/A,Premises-Related Expenditure,502,Energy Costs,5006,Revenue,GAS.GAS
22-FEB-2023,7020911,94.29,BRITISH GAS BUSINESS,361360,Housing,Housing Revenue Account,N/A,Premises-Related Expenditure,502,Energy Costs,5006,Revenue,GAS.GAS
22-FEB-2023,7020911,99,BRITISH GAS BUSINESS,361360,Housing,Housing Revenue Account,N/A,Premises-Related Expenditure,502,Energy Costs,5006,Revenue,GAS.GAS
22-FEB-2023,7020911,99,BRITISH GAS BUSINESS,361360,Housing,Housing Revenue Account,N/A,Premises-Related Expenditure,502,Energy Costs,5006,Revenue,GAS.GAS
22-FEB-2023,7020911,116.26,BRITISH GAS BUSINESS,361360,Housing,Housing Revenue Account,N/A,Premises-Related Expenditure,502,Energy Costs,5006,Revenue,GAS.GAS
22-FEB-2023,7020911,173.59,BRITISH GAS BUSINESS,361360,Housing,Housing Revenue Account,N/A,Premises-Related Expenditure,502,Energy Costs,5006,Revenue,GAS.GAS
22-FEB-2023,7020911,355.61,BRITISH GAS BUSINESS,361360,Housing,Housing Revenue Account,N/A,Premises-Related Expenditure,502,Energy Costs,5006,Revenue,GAS.GAS
22-FEB-2023,7020911,463.57,BRITISH GAS BUSINESS,361360,Housing,Housing Revenue Account,N/A,Premises-Related Expenditure,502,Energy Costs,5006,Revenue,GAS.GAS
22-FEB-2023,7020911,565.31,BRITISH GAS BUSINESS,361360,Housing,Housing Revenue Account,N/A,Premises-Related Expenditure,502,Energy Costs,5006,Revenue,GAS.GAS
22-FEB-2023,7020911,570.78,BRITISH GAS BUSINESS,361360,Housing,Housing Revenue Account,N/A,Premises-Related Expenditure,502,Direct Transport Costs,5006,Revenue,GAS.GAS
22-FEB-2023,7020911,952.37,BRITISH GAS BUSINESS,361360,Housing,Housing Revenue Account,N/A,Premises-Related Expenditure,502,Equipment,5016,Revenue,GAS.GAS
22-FEB-2023,7020912,615,DVSA,392128,Environment & Leisure,Unallocated,N/A,Transport,503,Equipment,5023,Revenue,NON INFLUENCIBLE.PUBLIC SECTOR
22-FEB-2023,7020913,49.8,ON A ROLL SANDWICH COMPANY,391893,Commissioning & Asset Management,Children's & Education Services,103,Supplies and Services,504,Equipment,5023,Revenue,CATERING.FOOD & BEVERAGES
22-FEB-2023,7020913,59.2,ON A ROLL SANDWICH COMPANY,391893,Commissioning & Asset Management,Children's & Education Services,103,Supplies and Services,504,Equipment,5023,Revenue,CATERING.FOOD & BEVERAGES
22-FEB-2023,7020913,50.56,ON A ROLL SANDWICH COMPANY,391893,Commissioning & Asset Management,Children's & Education Services,103,Supplies and Services,504,Equipment,5023,Revenue,CATERING.FOOD & BEVERAGES
22-FEB-2023,7020913,51.2,ON A ROLL SANDWICH COMPANY,391893,Commissioning & Asset Management,Children's & Education Services,103,Supplies and Services,504,Equipment,5023,Revenue,CATERING.FOOD & BEVERAGES
22-FEB-2023,7020913,310.6,ON A ROLL SANDWICH COMPANY,391893,Commissioning & Asset Management,Children's & Education Services,103,Supplies and Services,504,Equipment,5023,Revenue,CATERING.FOOD & BEVERAGES
22-FEB-2023,7020913,313.76,ON A ROLL SANDWICH COMPANY,391893,Commissioning & Asset Management,Children's & Education Services,103,Supplies and Services,504,Equipment,5023,Revenue,CATERING.FOOD & BEVERAGES
22-FEB-2023,7020913,388.12,ON A ROLL SANDWICH COMPANY,391893,Commissioning & Asset Management,Children's & Education Services,103,Supplies and Services,504,Equipment,5023,Revenue,CATERING.FOOD & BEVERAGES
22-FEB-2023,7020913,78.7,ON A ROLL SANDWICH COMPANY,391893,Commissioning & Asset Management,Children's & Education Services,103,Supplies and Services,504,Equipment,5023,Revenue,CATERING.FOOD & BEVERAGES
22-FEB-2023,7020913,275.1,ON A ROLL SANDWICH COMPANY,391893,Commissioning & Asset Management,Children's & Education Services,103,Supplies and Services,504,Equipment,5023,Revenue,CATERING.FOOD & BEVERAGES
22-FEB-2023,7020913,393.5,ON A ROLL SANDWICH COMPANY,391893,Commissioning & Asset Management,Children's & Education Services,103,Supplies and Services,504,Equipment,5023,Revenue,CATERING.FOOD & BEVERAGES
22-FEB-2023,7020913,68.09,ON A ROLL SANDWICH COMPANY,391893,Commissioning & Asset Management,Children's & Education Services,103,Supplies and Services,504,Equipment,5023,Revenue,CATERING.FOOD & BEVERAGES
22-FEB-2023,7020913,160.44,ON A ROLL SANDWICH COMPANY,391893,Commissioning & Asset Management,Children's & Education Services,103,Supplies and Services,504,Equipment,5023,Revenue,CATERING.FOOD & BEVERAGES
22-FEB-2023,7020913,101.96,ON A ROLL SANDWICH COMPANY,391893,Commissioning & Asset Management,Children's & Education Services,103,Supplies and Services,504,Equipment,5023,Revenue,CATERING.FOOD & BEVERAGES
22-FEB-2023,7020913,216.6,ON A ROLL SANDWICH COMPANY,391893,Commissioning & Asset Management,Children's & Education Services,103,Supplies and Services,504,Equipment,5023,Revenue,CATERING.FOOD & BEVERAGES
22-FEB-2023,7020913,49.1,ON A ROLL SANDWICH COMPANY,391893,Commissioning & Asset Management,Children's & Education Services,103,Supplies and Services,504,Equipment,5023,Revenue,CATERING.FOOD & BEVERAGES
22-FEB-2023,7020913,49.65,ON A ROLL SANDWICH COMPANY,391893,Commissioning & Asset Management,Children's & Education Services,103,Supplies and Services,504,Equipment,5023,Revenue,CATERING.FOOD & BEVERAGES
22-FEB-2023,7020913,1618.35,ON A ROLL SANDWICH COMPANY,391893,Commissioning & Asset Management,Children's & Education Services,103,Supplies and Services,504,Equipment,5023,Revenue,CATERING.FOOD & BEVERAGES
22-FEB-2023,7020913,91.84,ON A ROLL SANDWICH COMPANY,391893,Commissioning & Asset Management,Children's & Education Services,103,Supplies and Services,504,Equipment,5023,Revenue,CATERING.FOOD & BEVERAGES
22-FEB-2023,7020913,63.8,ON A ROLL SANDWICH COMPANY,391893,Commissioning & Asset Management,Children's & Education Services,103,Supplies and Services,504,Equipment,5023,Revenue,CATERING.FOOD & BEVERAGES
22-FEB-2023,7020913,1970.4,ON A ROLL SANDWICH COMPANY,391893,Commissioning & Asset Management,Children's & Education Services,103,Supplies and Services,504,Equipment,5023,Revenue,CATERING.FOOD & BEVERAGES
22-FEB-2023,7020913,1970.4,ON A ROLL SANDWICH COMPANY,391893,Commissioning & Asset Management,Children's & Education Services,103,Supplies and Services,504,Equipment,5023,Revenue,CATERING.FOOD & BEVERAGES
22-FEB-2023,7020913,1972.28,ON A ROLL SANDWICH COMPANY,391893,Commissioning & Asset Management,Children's & Education Services,103,Supplies and Services,504,Equipment,5023,Revenue,CATERING.FOOD & BEVERAGES
22-FEB-2023,7020913,353.04,ON A ROLL SANDWICH COMPANY,391893,Commissioning & Asset Management,Children's & Education Services,103,Supplies and Services,504,Equipment,5023,Revenue,CATERING.FOOD & BEVERAGES
22-FEB-2023,7020913,392.45,ON A ROLL SANDWICH COMPANY,391893,Commissioning & Asset Management,Children's & Education Services,103,Supplies and Services,504,Equipment,5023,Revenue,CATERING.FOOD & BEVERAGES
22-FEB-2023,7020913,399.54,ON A ROLL SANDWICH COMPANY,391893,Commissioning & Asset Management,Children's & Education Services,103,Supplies and Services,504,Equipment,5023,Revenue,CATERING.FOOD & BEVERAGES
22-FEB-2023,7020913,786.32,ON A ROLL SANDWICH COMPANY,391893,Commissioning & Asset Management,Children's & Education Services,103,Supplies and Services,504,Equipment,5023,Revenue,CATERING.FOOD & BEVERAGES
22-FEB-2023,7020913,1124.92,ON A ROLL SANDWICH COMPANY,391893,Commissioning & Asset Management,Children's & Education Services,103,Supplies and Services,504,Equipment,5023,Revenue,CATERING.FOOD & BEVERAGES
22-FEB-2023,7020913,1509.58,ON A ROLL SANDWICH COMPANY,391893,Commissioning & Asset Management,Children's & Education Services,103,Supplies and Services,504,Equipment,5023,Revenue,CATERING.FOOD & BEVERAGES
22-FEB-2023,7020913,1307.06,ON A ROLL SANDWICH COMPANY,391893,Commissioning & Asset Management,Children's & Education Services,103,Supplies and Services,504,Equipment,5023,Revenue,CATERING.FOOD & BEVERAGES
22-FEB-2023,7020913,1418.09,ON A ROLL SANDWICH COMPANY,391893,Commissioning & Asset Management,Children's & Education Services,103,Supplies and Services,504,Equipment,5023,Revenue,CATERING.FOOD & BEVERAGES
22-FEB-2023,7020913,1470.65,ON A ROLL SANDWICH COMPANY,391893,Commissioning & Asset Management,Children's & Education Services,103,Supplies and Services,504,Equipment,5023,Revenue,CATERING.FOOD & BEVERAGES
22-FEB-2023,7020913,632.02,ON A ROLL SANDWICH COMPANY,391893,Commissioning & Asset Management,Children's & Education Services,103,Supplies and Services,504,Equipment,5023,Revenue,CATERING.FOOD & BEVERAGES
22-FEB-2023,7020913,633.82,ON A ROLL SANDWICH COMPANY,391893,Commissioning & Asset Management,Children's & Education Services,103,Supplies and Services,504,Equipment,5023,Revenue,CATERING.FOOD & BEVERAGES
22-FEB-2023,7020913,656.9,ON A ROLL SANDWICH COMPANY,391893,Commissioning & Asset Management,Children's & Education Services,103,Supplies and Services,504,Equipment,5023,Revenue,CATERING.FOOD & BEVERAGES
22-FEB-2023,7020913,475.92,ON A ROLL SANDWICH COMPANY,391893,Commissioning & Asset Management,Children's & Education Services,103,Supplies and Services,504,Equipment,5023,Revenue,CATERING.FOOD & BEVERAGES
22-FEB-2023,7020913,499,ON A ROLL SANDWICH COMPANY,391893,Commissioning & Asset Management,Children's & Education Services,103,Supplies and Services,504,Equipment,5023,Revenue,CATERING.FOOD & BEVERAGES
22-FEB-2023,7020913,619.1,ON A ROLL SANDWICH COMPANY,391893,Commissioning & Asset Management,Children's & Education Services,103,Supplies and Services,504,Equipment,5023,Revenue,CATERING.FOOD & BEVERAGES
22-FEB-2023,7020913,534.62,ON A ROLL SANDWICH COMPANY,391893,Commissioning & Asset Management,Children's & Education Services,103,Supplies and Services,504,Equipment,5023,Revenue,CATERING.FOOD & BEVERAGES
22-FEB-2023,7020913,745.28,ON A ROLL SANDWICH COMPANY,391893,Commissioning & Asset Management,Children's & Education Services,103,Supplies and Services,504,Equipment,5023,Revenue,CATERING.FOOD & BEVERAGES
22-FEB-2023,7020913,763.37,ON A ROLL SANDWICH COMPANY,391893,Commissioning & Asset Management,Children's & Education Services,103,Supplies and Services,504,Equipment,5023,Revenue,CATERING.FOOD & BEVERAGES
22-FEB-2023,7020913,856.16,ON A ROLL SANDWICH COMPANY,391893,Commissioning & Asset Management,Children's & Education Services,103,Supplies and Services,504,Equipment,5023,Revenue,CATERING.FOOD & BEVERAGES
22-FEB-2023,7020913,859.1,ON A ROLL SANDWICH COMPANY,391893,Commissioning & Asset Management,Children's & Education Services,103,Supplies and Services,504,Equipment,5023,Revenue,CATERING.FOOD & BEVERAGES
22-FEB-2023,7020913,1334.95,ON A ROLL SANDWICH COMPANY,391893,Commissioning & Asset Management,Children's & Education Services,103,Supplies and Services,504,Equipment,5023,Revenue,CATERING.FOOD & BEVERAGES
22-FEB-2023,7020913,1089.23,ON A ROLL SANDWICH COMPANY,391893,Commissioning & Asset Management,Children's & Education Services,103,Supplies and Services,504,Equipment,5023,Revenue,CATERING.FOOD & BEVERAGES
22-FEB-2023,7020913,1171.44,ON A ROLL SANDWICH COMPANY,391893,Commissioning & Asset Management,Children's & Education Services,103,Supplies and Services,504,Equipment,5023,Revenue,CATERING.FOOD & BEVERAGES
22-FEB-2023,7020913,1250.08,ON A ROLL SANDWICH COMPANY,391893,Commissioning & Asset Management,Children's & Education Services,103,Supplies and Services,504,Equipment,5023,Revenue,CATERING.FOOD & BEVERAGES
22-FEB-2023,7020913,913.98,ON A ROLL SANDWICH COMPANY,391893,Commissioning & Asset Management,Children's & Education Services,103,Supplies and Services,504,Equipment,5023,Revenue,CATERING.FOOD & BEVERAGES
22-FEB-2023,7020913,988.12,ON A ROLL SANDWICH COMPANY,391893,Commissioning & Asset Management,Children's & Education Services,103,Supplies and Services,504,Equipment,5023,Revenue,CATERING.FOOD & BEVERAGES
22-FEB-2023,7020913,995.62,ON A ROLL SANDWICH COMPANY,391893,Commissioning & Asset Management,Children's & Education Services,103,Supplies and Services,504,Equipment,5023,Revenue,CATERING.FOOD & BEVERAGES
22-FEB-2023,7020913,84.1,ON A ROLL SANDWICH COMPANY,391893,Commissioning & Asset Management,Children's & Education Services,103,Supplies and Services,504,Equipment,5023,Revenue,CATERING.FOOD & BEVERAGES
22-FEB-2023,7020913,84.1,ON A ROLL SANDWICH COMPANY,391893,Commissioning & Asset Management,Children's & Education Services,103,Supplies and Services,504,Equipment,5023,Revenue,CATERING.FOOD & BEVERAGES
22-FEB-2023,7020913,84.1,ON A ROLL SANDWICH COMPANY,391893,Commissioning & Asset Management,Children's & Education Services,103,Supplies and Services,504,Equipment,5023,Revenue,CATERING.FOOD & BEVERAGES
22-FEB-2023,7020913,93.5,ON A ROLL SANDWICH COMPANY,391893,Commissioning & Asset Management,Children's & Education Services,103,Supplies and Services,504,Equipment,5023,Revenue,CATERING.FOOD & BEVERAGES
22-FEB-2023,7020913,57.6,ON A ROLL SANDWICH COMPANY,391893,Commissioning & Asset Management,Children's & Education Services,103,Supplies and Services,504,Equipment,5023,Revenue,CATERING.FOOD & BEVERAGES
22-FEB-2023,7020913,58.3,ON A ROLL SANDWICH COMPANY,391893,Commissioning & Asset Management,Children's & Education Services,103,Supplies and Services,504,Equipment,5023,Revenue,CATERING.FOOD & BEVERAGES
22-FEB-2023,7020913,63.16,ON A ROLL SANDWICH COMPANY,391893,Commissioning & Asset Management,Children's & Education Services,103,Supplies and Services,504,Equipment,5023,Revenue,CATERING.FOOD & BEVERAGES
22-FEB-2023,7020913,67.76,ON A ROLL SANDWICH COMPANY,391893,Commissioning & Asset Management,Children's & Education Services,103,Supplies and Services,504,Equipment,5023,Revenue,CATERING.FOOD & BEVERAGES
22-FEB-2023,7020913,309.5,ON A ROLL SANDWICH COMPANY,391893,Commissioning & Asset Management,Children's & Education Services,103,Supplies and Services,504,Equipment,5023,Revenue,CATERING.FOOD & BEVERAGES
22-FEB-2023,7020913,310.32,ON A ROLL SANDWICH COMPANY,391893,Commissioning & Asset Management,Children's & Education Services,103,Supplies and Services,504,Equipment,5023,Revenue,CATERING.FOOD & BEVERAGES
22-FEB-2023,7020913,320.2,ON A ROLL SANDWICH COMPANY,391893,Commissioning & Asset Management,Children's & Education Services,103,Supplies and Services,504,Equipment,5023,Revenue,CATERING.FOOD & BEVERAGES
22-FEB-2023,7020913,49.1,ON A ROLL SANDWICH COMPANY,391893,Commissioning & Asset Management,Children's & Education Services,103,Supplies and Services,504,Equipment,5023,Revenue,CATERING.FOOD & BEVERAGES
22-FEB-2023,7020913,74.91,ON A ROLL SANDWICH COMPANY,391893,Commissioning & Asset Management,Children's & Education Services,103,Supplies and Services,504,Equipment,5023,Revenue,CATERING.FOOD & BEVERAGES
22-FEB-2023,7020913,74.91,ON A ROLL SANDWICH COMPANY,391893,Commissioning & Asset Management,Children's & Education Services,103,Supplies and Services,504,Equipment,5023,Revenue,CATERING.FOOD & BEVERAGES
22-FEB-2023,7020913,75.21,ON A ROLL SANDWICH COMPANY,391893,Commissioning & Asset Management,Children's & Education Services,103,Supplies and Services,504,Equipment,5023,Revenue,CATERING.FOOD & BEVERAGES
22-FEB-2023,7020913,79.67,ON A ROLL SANDWICH COMPANY,391893,Commissioning & Asset Management,Children's & Education Services,103,Supplies and Services,504,Equipment,5023,Revenue,CATERING.FOOD & BEVERAGES
22-FEB-2023,7020913,220.74,ON A ROLL SANDWICH COMPANY,391893,Commissioning & Asset Management,Children's & Education Services,103,Supplies and Services,504,Equipment,5023,Revenue,CATERING.FOOD & BEVERAGES
22-FEB-2023,7020913,483.17,ON A ROLL SANDWICH COMPANY,391893,Commissioning & Asset Management,Children's & Education Services,103,Supplies and Services,504,Equipment,5023,Revenue,CATERING.FOOD & BEVERAGES
22-FEB-2023,7020913,621.44,ON A ROLL SANDWICH COMPANY,391893,Commissioning & Asset Management,Children's & Education Services,103,Supplies and Services,504,Equipment,5023,Revenue,CATERING.FOOD & BEVERAGES
22-FEB-2023,7020913,681.26,ON A ROLL SANDWICH COMPANY,391893,Commissioning & Asset Management,Children's & Education Services,103,Supplies and Services,504,Equipment,5023,Revenue,CATERING.FOOD & BEVERAGES
22-FEB-2023,7020913,853.61,ON A ROLL SANDWICH COMPANY,391893,Commissioning & Asset Management,Children's & Education Services,103,Supplies and Services,504,Equipment,5023,Revenue,CATERING.FOOD & BEVERAGES
22-FEB-2023,7020914,133,DUNELM LTD,391723,"Health, Education, Care and Safeguarding",Children's & Education Services,103,Supplies and Services,504,Equipment,5023,Revenue,FURNITURE.SOFT FURNISHINGS
22-FEB-2023,7020914,104.67,DUNELM LTD,391723,"Health, Education, Care and Safeguarding",Children's & Education Services,103,Supplies and Services,504,Equipment,5023,Revenue,FURNITURE.SOFT FURNISHINGS
22-FEB-2023,7020915,96.04,ALDI STORES LTD,391717,"Health, Education, Care and Safeguarding",Children's & Education Services,103,Supplies and Services,504,Equipment,5023,Revenue,CATERING.FOOD & BEVERAGES
22-FEB-2023,7020915,101.72,ALDI STORES LTD,391717,"Health, Education, Care and Safeguarding",Children's & Education Services,103,Supplies and Services,504,Equipment,5023,Revenue,CATERING.FOOD & BEVERAGES
22-FEB-2023,7020915,105.51,ALDI STORES LTD,391717,"Health, Education, Care and Safeguarding",Children's & Education Services,103,Supplies and Services,504,Other Establishments,5023,Revenue,CATERING.FOOD & BEVERAGES
22-FEB-2023,7020915,53.54,ALDI STORES LTD,391717,"Health, Education, Care and Safeguarding",Children's & Education Services,103,Supplies and Services,504,Other Establishments,5041,Revenue,CATERING.FOOD & BEVERAGES
22-FEB-2023,7020915,-0.01,ALDI STORES LTD,391717,"Health, Education, Care and Safeguarding",Children's & Education Services,103,Third Party Payments,505,Other Establishments,5041,Revenue,CATERING.FOOD & BEVERAGES
22-FEB-2023,7020915,3.86,ALDI STORES LTD,391717,"Health, Education, Care and Safeguarding",Children's & Education Services,103,Third Party Payments,505,Other Establishments,5041,Revenue,CATERING.FOOD & BEVERAGES
22-FEB-2023,7020915,7.53,ALDI STORES LTD,391717,"Health, Education, Care and Safeguarding",Children's & Education Services,103,Third Party Payments,505,Other Establishments,5041,Revenue,CATERING.FOOD & BEVERAGES
22-FEB-2023,7020915,34.63,ALDI STORES LTD,391717,"Health, Education, Care and Safeguarding",Children's & Education Services,103,Third Party Payments,505,Other Establishments,5041,Revenue,CATERING.FOOD & BEVERAGES
22-FEB-2023,7020915,43.22,ALDI STORES LTD,391717,"Health, Education, Care and Safeguarding",Children's & Education Services,103,Third Party Payments,505,Other Establishments,5041,Revenue,CATERING.FOOD & BEVERAGES
22-FEB-2023,7020915,43.25,ALDI STORES LTD,391717,"Health, Education, Care and Safeguarding",Children's & Education Services,103,Third Party Payments,505,Other Establishments,5041,Revenue,CATERING.FOOD & BEVERAGES
22-FEB-2023,7020915,45.57,ALDI STORES LTD,391717,"Health, Education, Care and Safeguarding",Children's & Education Services,103,Third Party Payments,505,Catering,5041,Revenue,CATERING.FOOD & BEVERAGES
22-FEB-2023,7020915,50,ALDI STORES LTD,391717,"Health, Education, Care and Safeguarding",Children's & Education Services,103,Third Party Payments,505,Catering,5024,Revenue,CATERING.FOOD & BEVERAGES
22-FEB-2023,7020915,2.37,ALDI STORES LTD,391717,Corporate Strategy,Children's & Education Services,103,Supplies and Services,504,Catering,5024,Revenue,CATERING.FOOD & BEVERAGES
22-FEB-2023,7020915,8.87,ALDI STORES LTD,391717,Corporate Strategy,Children's & Education Services,103,Supplies and Services,504,Equipment,5024,Revenue,CATERING.FOOD & BEVERAGES
22-FEB-2023,7020915,7.94,ALDI STORES LTD,391717,Corporate Strategy,Children's & Education Services,103,Supplies and Services,504,Equipment,5023,Revenue,CATERING.FOOD & BEVERAGES
22-FEB-2023,7020915,29.71,ALDI STORES LTD,391717,"Health, Education, Care and Safeguarding",Children's & Education Services,103,Supplies and Services,504,Equipment,5023,Revenue,CATERING.FOOD & BEVERAGES
22-FEB-2023,7020915,34.23,ALDI STORES LTD,391717,"Health, Education, Care and Safeguarding",Children's & Education Services,103,Supplies and Services,504,Equipment,5023,Revenue,CATERING.FOOD & BEVERAGES
22-FEB-2023,7020915,43.32,ALDI STORES LTD,391717,"Health, Education, Care and Safeguarding",Children's & Education Services,103,Supplies and Services,504,Other Establishments,5023,Revenue,CATERING.FOOD & BEVERAGES
22-FEB-2023,7020915,23.27,ALDI STORES LTD,391717,Environment & Leisure,Cultural & Related Services,104,Supplies and Services,504,Catering,5041,Revenue,CATERING.FOOD & BEVERAGES
22-FEB-2023,7020916,66.67,TELEPHONE PAYMENT,391672,"Health, Education, Care and Safeguarding",Children's & Education Services,103,Third Party Payments,505,Catering,5024,Revenue,FINANCIAL SERVICES.FINANCIAL SERVICES
22-FEB-2023,7020917,39.92,BOOKERECOMM,391464,Regeneration & Economic Development,Cultural & Related Services,104,Supplies and Services,504,Catering,5024,Revenue,NON INFLUENCIBLE.NON INFLUENCIBLE
22-FEB-2023,7020917,74.05,BOOKERECOMM,391464,Regeneration & Economic Development,Cultural & Related Services,104,Supplies and Services,504,Other Establishments,5024,Revenue,NON INFLUENCIBLE.NON INFLUENCIBLE
22-FEB-2023,7020917,85.52,BOOKERECOMM,391464,Regeneration & Economic Development,Cultural & Related Services,104,Supplies and Services,504,Other Establishments,5041,Revenue,NON INFLUENCIBLE.NON INFLUENCIBLE
22-FEB-2023,7020918,5.91,SUBWAY,391486,"Health, Education, Care and Safeguarding",Children's & Education Services,103,Third Party Payments,505,Miscellaneous Expenses,5041,Revenue,CATERING.FOOD & BEVERAGES
22-FEB-2023,7020918,9.63,SUBWAY,391486,"Health, Education, Care and Safeguarding",Children's & Education Services,103,Third Party Payments,505,Equipment,5034,Revenue,CATERING.FOOD & BEVERAGES
22-FEB-2023,7020919,33.33,EE LIMITED,345889,"Health, Education, Care and Safeguarding",Children's & Education Services,103,Supplies and Services,504,Equipment,5023,Revenue,TELECOMMUNICATIONS.MOBILE
22-FEB-2023,7020920,7.7,ONE STOP STORES LTD,387245,"Health, Education, Care and Safeguarding",Children's & Education Services,103,Supplies and Services,504,Equipment,5023,Revenue,SUBSCRIPTIONS & PUBLICATIONS.BOOKS & PUBLICATIONS
22-FEB-2023,7020921,79.17,B&Q PLC,002053,Commissioning & Asset Management,Planning Services ,110,Supplies and Services,504,Equipment,5023,Revenue,BUILDING MATERIALS.GENERAL MATERIALS
22-FEB-2023,7020922,11.6,R MANNERS & SONS LTD,013498,Environment & Leisure,Adult Social Care,101,Supplies and Services,504,Equipment,5023,Revenue,CATERING.FOOD & BEVERAGES
22-FEB-2023,7020922,17.4,R MANNERS & SONS LTD,013498,Environment & Leisure,Adult Social Care,101,Supplies and Services,504,Equipment,5023,Revenue,CATERING.FOOD & BEVERAGES
22-FEB-2023,7020922,19.44,R MANNERS & SONS LTD,013498,Environment & Leisure,Adult Social Care,101,Supplies and Services,504,Equipment,5023,Revenue,CATERING.FOOD & BEVERAGES
22-FEB-2023,7020922,21.43,R MANNERS & SONS LTD,013498,Environment & Leisure,Adult Social Care,101,Supplies and Services,504,Equipment,5023,Revenue,CATERING.FOOD & BEVERAGES
22-FEB-2023,7020922,23.84,R MANNERS & SONS LTD,013498,Environment & Leisure,Adult Social Care,101,Supplies and Services,504,Equipment,5023,Revenue,CATERING.FOOD & BEVERAGES
22-FEB-2023,7020922,24.61,R MANNERS & SONS LTD,013498,Environment & Leisure,Adult Social Care,101,Supplies and Services,504,Equipment,5023,Revenue,CATERING.FOOD & BEVERAGES
22-FEB-2023,7020922,35.82,R MANNERS & SONS LTD,013498,Environment & Leisure,Adult Social Care,101,Supplies and Services,504,Equipment,5023,Revenue,CATERING.FOOD & BEVERAGES
22-FEB-2023,7020922,41.64,R MANNERS & SONS LTD,013498,Environment & Leisure,Adult Social Care,101,Supplies and Services,504,Equipment,5023,Revenue,CATERING.FOOD & BEVERAGES
22-FEB-2023,7020922,47.76,R MANNERS & SONS LTD,013498,Environment & Leisure,Adult Social Care,101,Supplies and Services,504,Equipment,5023,Revenue,CATERING.FOOD & BEVERAGES
22-FEB-2023,7020922,5.46,R MANNERS & SONS LTD,013498,Commissioning & Asset Management,Children's & Education Services,103,Supplies and Services,504,Equipment,5023,Revenue,CATERING.FOOD & BEVERAGES
22-FEB-2023,7020922,5.46,R MANNERS & SONS LTD,013498,Commissioning & Asset Management,Children's & Education Services,103,Supplies and Services,504,Equipment,5023,Revenue,CATERING.FOOD & BEVERAGES
22-FEB-2023,7020922,11.94,R MANNERS & SONS LTD,013498,Commissioning & Asset Management,Children's & Education Services,103,Supplies and Services,504,Equipment,5023,Revenue,CATERING.FOOD & BEVERAGES
22-FEB-2023,7020922,27.3,R MANNERS & SONS LTD,013498,Commissioning & Asset Management,Children's & Education Services,103,Supplies and Services,504,Equipment,5023,Revenue,CATERING.FOOD & BEVERAGES
22-FEB-2023,7020922,29.85,R MANNERS & SONS LTD,013498,Commissioning & Asset Management,Children's & Education Services,103,Supplies and Services,504,Equipment,5023,Revenue,CATERING.FOOD & BEVERAGES
22-FEB-2023,7020922,47.93,R MANNERS & SONS LTD,013498,Commissioning & Asset Management,Children's & Education Services,103,Supplies and Services,504,Equipment,5023,Revenue,CATERING.FOOD & BEVERAGES
22-FEB-2023,7020922,52,R MANNERS & SONS LTD,013498,Commissioning & Asset Management,Children's & Education Services,103,Supplies and Services,504,Equipment,5023,Revenue,CATERING.FOOD & BEVERAGES
22-FEB-2023,7020922,85.14,R MANNERS & SONS LTD,013498,Commissioning & Asset Management,Children's & Education Services,103,Supplies and Services,504,Equipment,5023,Revenue,CATERING.FOOD & BEVERAGES
22-FEB-2023,7020922,5.29,R MANNERS & SONS LTD,013498,Commissioning & Asset Management,Children's & Education Services,103,Supplies and Services,504,Equipment,5023,Revenue,CATERING.FOOD & BEVERAGES
22-FEB-2023,7020922,10.92,R MANNERS & SONS LTD,013498,Commissioning & Asset Management,Children's & Education Services,103,Supplies and Services,504,Equipment,5023,Revenue,CATERING.FOOD & BEVERAGES
22-FEB-2023,7020922,29.85,R MANNERS & SONS LTD,013498,Commissioning & Asset Management,Children's & Education Services,103,Supplies and Services,504,Equipment,5023,Revenue,CATERING.FOOD & BEVERAGES
22-FEB-2023,7020922,31.74,R MANNERS & SONS LTD,013498,Commissioning & Asset Management,Children's & Education Services,103,Supplies and Services,504,Equipment,5023,Revenue,CATERING.FOOD & BEVERAGES
22-FEB-2023,7020922,33,R MANNERS & SONS LTD,013498,Commissioning & Asset Management,Children's & Education Services,103,Supplies and Services,504,Equipment,5023,Revenue,CATERING.FOOD & BEVERAGES
22-FEB-2023,7020922,38.7,R MANNERS & SONS LTD,013498,Commissioning & Asset Management,Children's & Education Services,103,Supplies and Services,504,Equipment,5023,Revenue,CATERING.FOOD & BEVERAGES
22-FEB-2023,7020922,65,R MANNERS & SONS LTD,013498,Commissioning & Asset Management,Children's & Education Services,103,Supplies and Services,504,Equipment,5023,Revenue,CATERING.FOOD & BEVERAGES
22-FEB-2023,7020922,5.46,R MANNERS & SONS LTD,013498,Commissioning & Asset Management,Children's & Education Services,103,Supplies and Services,504,Equipment,5023,Revenue,CATERING.FOOD & BEVERAGES
22-FEB-2023,7020922,11.94,R MANNERS & SONS LTD,013498,Commissioning & Asset Management,Children's & Education Services,103,Supplies and Services,504,Equipment,5023,Revenue,CATERING.FOOD & BEVERAGES
22-FEB-2023,7020922,11.94,R MANNERS & SONS LTD,013498,Commissioning & Asset Management,Children's & Education Services,103,Supplies and Services,504,Equipment,5023,Revenue,CATERING.FOOD & BEVERAGES
22-FEB-2023,7020922,23.88,R MANNERS & SONS LTD,013498,Commissioning & Asset Management,Children's & Education Services,103,Supplies and Services,504,Equipment,5023,Revenue,CATERING.FOOD & BEVERAGES
22-FEB-2023,7020922,32.76,R MANNERS & SONS LTD,013498,Commissioning & Asset Management,Children's & Education Services,103,Supplies and Services,504,Equipment,5023,Revenue,CATERING.FOOD & BEVERAGES
22-FEB-2023,7020922,35.82,R MANNERS & SONS LTD,013498,Commissioning & Asset Management,Children's & Education Services,103,Supplies and Services,504,Equipment,5023,Revenue,CATERING.FOOD & BEVERAGES
22-FEB-2023,7020922,38.22,R MANNERS & SONS LTD,013498,Commissioning & Asset Management,Children's & Education Services,103,Supplies and Services,504,Equipment,5023,Revenue,CATERING.FOOD & BEVERAGES
22-FEB-2023,7020922,41.18,R MANNERS & SONS LTD,013498,Commissioning & Asset Management,Children's & Education Services,103,Supplies and Services,504,Equipment,5023,Revenue,CATERING.FOOD & BEVERAGES
22-FEB-2023,7020922,42.57,R MANNERS & SONS LTD,013498,Commissioning & Asset Management,Children's & Education Services,103,Supplies and Services,504,Equipment,5023,Revenue,CATERING.FOOD & BEVERAGES
22-FEB-2023,7020922,44,R MANNERS & SONS LTD,013498,Commissioning & Asset Management,Children's & Education Services,103,Supplies and Services,504,Equipment,5023,Revenue,CATERING.FOOD & BEVERAGES
22-FEB-2023,7020922,68.32,R MANNERS & SONS LTD,013498,Commissioning & Asset Management,Children's & Education Services,103,Supplies and Services,504,Equipment,5023,Revenue,CATERING.FOOD & BEVERAGES
22-FEB-2023,7020922,54.6,R MANNERS & SONS LTD,013498,Commissioning & Asset Management,Children's & Education Services,103,Supplies and Services,504,Equipment,5023,Revenue,CATERING.FOOD & BEVERAGES
22-FEB-2023,7020922,59.7,R MANNERS & SONS LTD,013498,Commissioning & Asset Management,Children's & Education Services,103,Supplies and Services,504,Equipment,5023,Revenue,CATERING.FOOD & BEVERAGES
22-FEB-2023,7020922,76.44,R MANNERS & SONS LTD,013498,Commissioning & Asset Management,Children's & Education Services,103,Supplies and Services,504,Equipment,5023,Revenue,CATERING.FOOD & BEVERAGES
22-FEB-2023,7020922,76.44,R MANNERS & SONS LTD,013498,Commissioning & Asset Management,Children's & Education Services,103,Supplies and Services,504,Equipment,5023,Revenue,CATERING.FOOD & BEVERAGES
22-FEB-2023,7020922,83.58,R MANNERS & SONS LTD,013498,Commissioning & Asset Management,Children's & Education Services,103,Supplies and Services,504,Equipment,5023,Revenue,CATERING.FOOD & BEVERAGES
22-FEB-2023,7020922,83.58,R MANNERS & SONS LTD,013498,Commissioning & Asset Management,Children's & Education Services,103,Supplies and Services,504,Equipment,5023,Revenue,CATERING.FOOD & BEVERAGES
22-FEB-2023,7020922,100,R MANNERS & SONS LTD,013498,Commissioning & Asset Management,Children's & Education Services,103,Supplies and Services,504,Equipment,5023,Revenue,CATERING.FOOD & BEVERAGES
22-FEB-2023,7020922,142.94,R MANNERS & SONS LTD,013498,Commissioning & Asset Management,Children's & Education Services,103,Supplies and Services,504,Equipment,5023,Revenue,CATERING.FOOD & BEVERAGES
22-FEB-2023,7020922,193.5,R MANNERS & SONS LTD,013498,Commissioning & Asset Management,Children's & Education Services,103,Supplies and Services,504,Equipment,5023,Revenue,CATERING.FOOD & BEVERAGES
22-FEB-2023,7020922,5.46,R MANNERS & SONS LTD,013498,Commissioning & Asset Management,Children's & Education Services,103,Supplies and Services,504,Equipment,5023,Revenue,CATERING.FOOD & BEVERAGES
22-FEB-2023,7020922,23.22,R MANNERS & SONS LTD,013498,Commissioning & Asset Management,Children's & Education Services,103,Supplies and Services,504,Equipment,5023,Revenue,CATERING.FOOD & BEVERAGES
22-FEB-2023,7020922,32.76,R MANNERS & SONS LTD,013498,Commissioning & Asset Management,Children's & Education Services,103,Supplies and Services,504,Equipment,5023,Revenue,CATERING.FOOD & BEVERAGES
22-FEB-2023,7020922,32.76,R MANNERS & SONS LTD,013498,Commissioning & Asset Management,Children's & Education Services,103,Supplies and Services,504,Equipment,5023,Revenue,CATERING.FOOD & BEVERAGES
22-FEB-2023,7020922,35.82,R MANNERS & SONS LTD,013498,Commissioning & Asset Management,Children's & Education Services,103,Supplies and Services,504,Equipment,5023,Revenue,CATERING.FOOD & BEVERAGES
22-FEB-2023,7020922,35.82,R MANNERS & SONS LTD,013498,Commissioning & Asset Management,Children's & Education Services,103,Supplies and Services,504,Equipment,5023,Revenue,CATERING.FOOD & BEVERAGES
22-FEB-2023,7020922,48,R MANNERS & SONS LTD,013498,Commissioning & Asset Management,Children's & Education Services,103,Supplies and Services,504,Equipment,5023,Revenue,CATERING.FOOD & BEVERAGES
22-FEB-2023,7020922,70.91,R MANNERS & SONS LTD,013498,Commissioning & Asset Management,Children's & Education Services,103,Supplies and Services,504,Equipment,5023,Revenue,CATERING.FOOD & BEVERAGES
22-FEB-2023,7020922,2.73,R MANNERS & SONS LTD,013498,Commissioning & Asset Management,Children's & Education Services,103,Supplies and Services,504,Equipment,5023,Revenue,CATERING.FOOD & BEVERAGES
22-FEB-2023,7020922,2.99,R MANNERS & SONS LTD,013498,Commissioning & Asset Management,Children's & Education Services,103,Supplies and Services,504,Equipment,5023,Revenue,CATERING.FOOD & BEVERAGES
22-FEB-2023,7020922,5.46,R MANNERS & SONS LTD,013498,Commissioning & Asset Management,Children's & Education Services,103,Supplies and Services,504,Equipment,5023,Revenue,CATERING.FOOD & BEVERAGES
22-FEB-2023,7020922,23.88,R MANNERS & SONS LTD,013498,Commissioning & Asset Management,Children's & Education Services,103,Supplies and Services,504,Equipment,5023,Revenue,CATERING.FOOD & BEVERAGES
22-FEB-2023,7020922,27.3,R MANNERS & SONS LTD,013498,Commissioning & Asset Management,Children's & Education Services,103,Supplies and Services,504,Equipment,5023,Revenue,CATERING.FOOD & BEVERAGES
22-FEB-2023,7020922,38.22,R MANNERS & SONS LTD,013498,Commissioning & Asset Management,Children's & Education Services,103,Supplies and Services,504,Equipment,5023,Revenue,CATERING.FOOD & BEVERAGES
22-FEB-2023,7020922,41.79,R MANNERS & SONS LTD,013498,Commissioning & Asset Management,Children's & Education Services,103,Supplies and Services,504,Equipment,5023,Revenue,CATERING.FOOD & BEVERAGES
22-FEB-2023,7020922,56,R MANNERS & SONS LTD,013498,Commissioning & Asset Management,Children's & Education Services,103,Supplies and Services,504,Equipment,5023,Revenue,CATERING.FOOD & BEVERAGES
22-FEB-2023,7020922,116.1,R MANNERS & SONS LTD,013498,Commissioning & Asset Management,Children's & Education Services,103,Supplies and Services,504,Equipment,5023,Revenue,CATERING.FOOD & BEVERAGES
22-FEB-2023,7020922,10.92,R MANNERS & SONS LTD,013498,Commissioning & Asset Management,Children's & Education Services,103,Supplies and Services,504,Equipment,5023,Revenue,CATERING.FOOD & BEVERAGES
22-FEB-2023,7020922,32.76,R MANNERS & SONS LTD,013498,Commissioning & Asset Management,Children's & Education Services,103,Supplies and Services,504,Equipment,5023,Revenue,CATERING.FOOD & BEVERAGES
22-FEB-2023,7020922,35.82,R MANNERS & SONS LTD,013498,Commissioning & Asset Management,Children's & Education Services,103,Supplies and Services,504,Equipment,5023,Revenue,CATERING.FOOD & BEVERAGES
22-FEB-2023,7020922,38.22,R MANNERS & SONS LTD,013498,Commissioning & Asset Management,Children's & Education Services,103,Supplies and Services,504,Equipment,5023,Revenue,CATERING.FOOD & BEVERAGES
22-FEB-2023,7020922,46.44,R MANNERS & SONS LTD,013498,Commissioning & Asset Management,Children's & Education Services,103,Supplies and Services,504,Equipment,5023,Revenue,CATERING.FOOD & BEVERAGES
22-FEB-2023,7020922,76,R MANNERS & SONS LTD,013498,Commissioning & Asset Management,Children's & Education Services,103,Supplies and Services,504,Equipment,5023,Revenue,CATERING.FOOD & BEVERAGES
22-FEB-2023,7020922,102.71,R MANNERS & SONS LTD,013498,Commissioning & Asset Management,Children's & Education Services,103,Supplies and Services,504,Equipment,5023,Revenue,CATERING.FOOD & BEVERAGES
22-FEB-2023,7020922,38.7,R MANNERS & SONS LTD,013498,Commissioning & Asset Management,Children's & Education Services,103,Supplies and Services,504,Equipment,5023,Revenue,CATERING.FOOD & BEVERAGES
22-FEB-2023,7020922,43.68,R MANNERS & SONS LTD,013498,Commissioning & Asset Management,Children's & Education Services,103,Supplies and Services,504,Equipment,5023,Revenue,CATERING.FOOD & BEVERAGES
22-FEB-2023,7020922,58.05,R MANNERS & SONS LTD,013498,Commissioning & Asset Management,Children's & Education Services,103,Supplies and Services,504,Equipment,5023,Revenue,CATERING.FOOD & BEVERAGES
22-FEB-2023,7020922,65.52,R MANNERS & SONS LTD,013498,Commissioning & Asset Management,Children's & Education Services,103,Supplies and Services,504,Equipment,5023,Revenue,CATERING.FOOD & BEVERAGES
22-FEB-2023,7020922,71.64,R MANNERS & SONS LTD,013498,Commissioning & Asset Management,Children's & Education Services,103,Supplies and Services,504,Equipment,5023,Revenue,CATERING.FOOD & BEVERAGES
22-FEB-2023,7020922,80,R MANNERS & SONS LTD,013498,Commissioning & Asset Management,Children's & Education Services,103,Supplies and Services,504,Equipment,5023,Revenue,CATERING.FOOD & BEVERAGES
22-FEB-2023,7020922,118.47,R MANNERS & SONS LTD,013498,Commissioning & Asset Management,Children's & Education Services,103,Supplies and Services,504,Equipment,5023,Revenue,CATERING.FOOD & BEVERAGES
22-FEB-2023,7020922,5.97,R MANNERS & SONS LTD,013498,Commissioning & Asset Management,Children's & Education Services,103,Supplies and Services,504,Equipment,5023,Revenue,CATERING.FOOD & BEVERAGES
22-FEB-2023,7020922,14.04,R MANNERS & SONS LTD,013498,Commissioning & Asset Management,Children's & Education Services,103,Supplies and Services,504,Equipment,5023,Revenue,CATERING.FOOD & BEVERAGES
22-FEB-2023,7020922,15.48,R MANNERS & SONS LTD,013498,Commissioning & Asset Management,Children's & Education Services,103,Supplies and Services,504,Equipment,5023,Revenue,CATERING.FOOD & BEVERAGES
22-FEB-2023,7020922,26.45,R MANNERS & SONS LTD,013498,Commissioning & Asset Management,Children's & Education Services,103,Supplies and Services,504,Equipment,5023,Revenue,CATERING.FOOD & BEVERAGES
22-FEB-2023,7020922,27.3,R MANNERS & SONS LTD,013498,Commissioning & Asset Management,Children's & Education Services,103,Supplies and Services,504,Equipment,5023,Revenue,CATERING.FOOD & BEVERAGES
22-FEB-2023,7020922,29.85,R MANNERS & SONS LTD,013498,Commissioning & Asset Management,Children's & Education Services,103,Supplies and Services,504,Equipment,5023,Revenue,CATERING.FOOD & BEVERAGES
22-FEB-2023,7020922,35.82,R MANNERS & SONS LTD,013498,Commissioning & Asset Management,Children's & Education Services,103,Supplies and Services,504,Equipment,5023,Revenue,CATERING.FOOD & BEVERAGES
22-FEB-2023,7020922,39.6,R MANNERS & SONS LTD,013498,Commissioning & Asset Management,Children's & Education Services,103,Supplies and Services,504,Equipment,5023,Revenue,CATERING.FOOD & BEVERAGES
22-FEB-2023,7020922,93.8,R MANNERS & SONS LTD,013498,Commissioning & Asset Management,Children's & Education Services,103,Supplies and Services,504,Equipment,5023,Revenue,CATERING.FOOD & BEVERAGES
22-FEB-2023,7020922,2.65,R MANNERS & SONS LTD,013498,Commissioning & Asset Management,Children's & Education Services,103,Supplies and Services,504,Equipment,5023,Revenue,CATERING.FOOD & BEVERAGES
22-FEB-2023,7020922,2.65,R MANNERS & SONS LTD,013498,Commissioning & Asset Management,Children's & Education Services,103,Supplies and Services,504,Equipment,5023,Revenue,CATERING.FOOD & BEVERAGES
22-FEB-2023,7020922,2.73,R MANNERS & SONS LTD,013498,Commissioning & Asset Management,Children's & Education Services,103,Supplies and Services,504,Equipment,5023,Revenue,CATERING.FOOD & BEVERAGES
22-FEB-2023,7020922,5.97,R MANNERS & SONS LTD,013498,Commissioning & Asset Management,Children's & Education Services,103,Supplies and Services,504,Equipment,5023,Revenue,CATERING.FOOD & BEVERAGES
22-FEB-2023,7020922,5.97,R MANNERS & SONS LTD,013498,Commissioning & Asset Management,Children's & Education Services,103,Supplies and Services,504,Equipment,5023,Revenue,CATERING.FOOD & BEVERAGES
22-FEB-2023,7020922,15.87,R MANNERS & SONS LTD,013498,Commissioning & Asset Management,Children's & Education Services,103,Supplies and Services,504,Equipment,5023,Revenue,CATERING.FOOD & BEVERAGES
22-FEB-2023,7020922,16.38,R MANNERS & SONS LTD,013498,Commissioning & Asset Management,Children's & Education Services,103,Supplies and Services,504,Equipment,5023,Revenue,CATERING.FOOD & BEVERAGES
22-FEB-2023,7020922,17.91,R MANNERS & SONS LTD,013498,Commissioning & Asset Management,Children's & Education Services,103,Supplies and Services,504,Equipment,5023,Revenue,CATERING.FOOD & BEVERAGES
22-FEB-2023,7020922,19.35,R MANNERS & SONS LTD,013498,Commissioning & Asset Management,Children's & Education Services,103,Supplies and Services,504,Equipment,5023,Revenue,CATERING.FOOD & BEVERAGES
22-FEB-2023,7020922,28.05,R MANNERS & SONS LTD,013498,Commissioning & Asset Management,Children's & Education Services,103,Supplies and Services,504,Equipment,5023,Revenue,CATERING.FOOD & BEVERAGES
22-FEB-2023,7020922,50.28,R MANNERS & SONS LTD,013498,Commissioning & Asset Management,Children's & Education Services,103,Supplies and Services,504,Equipment,5023,Revenue,CATERING.FOOD & BEVERAGES
22-FEB-2023,7020922,-2.89,R MANNERS & SONS LTD,013498,Commissioning & Asset Management,Children's & Education Services,103,Supplies and Services,504,Equipment,5023,Revenue,CATERING.FOOD & BEVERAGES
22-FEB-2023,7020922,5.46,R MANNERS & SONS LTD,013498,Commissioning & Asset Management,Children's & Education Services,103,Supplies and Services,504,Equipment,5023,Revenue,CATERING.FOOD & BEVERAGES
22-FEB-2023,7020922,23.88,R MANNERS & SONS LTD,013498,Commissioning & Asset Management,Children's & Education Services,103,Supplies and Services,504,Equipment,5023,Revenue,CATERING.FOOD & BEVERAGES
22-FEB-2023,7020922,32.76,R MANNERS & SONS LTD,013498,Commissioning & Asset Management,Children's & Education Services,103,Supplies and Services,504,Equipment,5023,Revenue,CATERING.FOOD & BEVERAGES
22-FEB-2023,7020922,35.82,R MANNERS & SONS LTD,013498,Commissioning & Asset Management,Children's & Education Services,103,Supplies and Services,504,Equipment,5023,Revenue,CATERING.FOOD & BEVERAGES
22-FEB-2023,7020922,38.22,R MANNERS & SONS LTD,013498,Commissioning & Asset Management,Children's & Education Services,103,Supplies and Services,504,Equipment,5023,Revenue,CATERING.FOOD & BEVERAGES
22-FEB-2023,7020922,48,R MANNERS & SONS LTD,013498,Commissioning & Asset Management,Children's & Education Services,103,Supplies and Services,504,Equipment,5023,Revenue,CATERING.FOOD & BEVERAGES
22-FEB-2023,7020922,59.47,R MANNERS & SONS LTD,013498,Commissioning & Asset Management,Children's & Education Services,103,Supplies and Services,504,Equipment,5023,Revenue,CATERING.FOOD & BEVERAGES
22-FEB-2023,7020922,61.92,R MANNERS & SONS LTD,013498,Commissioning & Asset Management,Children's & Education Services,103,Supplies and Services,504,Equipment,5023,Revenue,CATERING.FOOD & BEVERAGES
22-FEB-2023,7020922,5.46,R MANNERS & SONS LTD,013498,Commissioning & Asset Management,Children's & Education Services,103,Supplies and Services,504,Equipment,5023,Revenue,CATERING.FOOD & BEVERAGES
22-FEB-2023,7020922,11.94,R MANNERS & SONS LTD,013498,Commissioning & Asset Management,Children's & Education Services,103,Supplies and Services,504,Equipment,5023,Revenue,CATERING.FOOD & BEVERAGES
22-FEB-2023,7020922,21.84,R MANNERS & SONS LTD,013498,Commissioning & Asset Management,Children's & Education Services,103,Supplies and Services,504,Equipment,5023,Revenue,CATERING.FOOD & BEVERAGES
22-FEB-2023,7020922,32.76,R MANNERS & SONS LTD,013498,Commissioning & Asset Management,Children's & Education Services,103,Supplies and Services,504,Equipment,5023,Revenue,CATERING.FOOD & BEVERAGES
22-FEB-2023,7020922,41.79,R MANNERS & SONS LTD,013498,Commissioning & Asset Management,Children's & Education Services,103,Supplies and Services,504,Equipment,5023,Revenue,CATERING.FOOD & BEVERAGES
22-FEB-2023,7020922,47.76,R MANNERS & SONS LTD,013498,Commissioning & Asset Management,Children's & Education Services,103,Supplies and Services,504,Equipment,5023,Revenue,CATERING.FOOD & BEVERAGES
22-FEB-2023,7020922,64,R MANNERS & SONS LTD,013498,Commissioning & Asset Management,Children's & Education Services,103,Supplies and Services,504,Equipment,5023,Revenue,CATERING.FOOD & BEVERAGES
22-FEB-2023,7020922,77.4,R MANNERS & SONS LTD,013498,Commissioning & Asset Management,Children's & Education Services,103,Supplies and Services,504,Equipment,5023,Revenue,CATERING.FOOD & BEVERAGES
22-FEB-2023,7020922,98.77,R MANNERS & SONS LTD,013498,Commissioning & Asset Management,Children's & Education Services,103,Supplies and Services,504,Equipment,5023,Revenue,CATERING.FOOD & BEVERAGES
22-FEB-2023,7020922,10.92,R MANNERS & SONS LTD,013498,Commissioning & Asset Management,Children's & Education Services,103,Supplies and Services,504,Equipment,5023,Revenue,CATERING.FOOD & BEVERAGES
22-FEB-2023,7020922,43.68,R MANNERS & SONS LTD,013498,Commissioning & Asset Management,Children's & Education Services,103,Supplies and Services,504,Equipment,5023,Revenue,CATERING.FOOD & BEVERAGES
22-FEB-2023,7020922,47.76,R MANNERS & SONS LTD,013498,Commissioning & Asset Management,Children's & Education Services,103,Supplies and Services,504,Equipment,5023,Revenue,CATERING.FOOD & BEVERAGES
22-FEB-2023,7020922,49.14,R MANNERS & SONS LTD,013498,Commissioning & Asset Management,Children's & Education Services,103,Supplies and Services,504,Equipment,5023,Revenue,CATERING.FOOD & BEVERAGES
22-FEB-2023,7020922,77.61,R MANNERS & SONS LTD,013498,Commissioning & Asset Management,Children's & Education Services,103,Supplies and Services,504,Equipment,5023,Revenue,CATERING.FOOD & BEVERAGES
22-FEB-2023,7020922,95.52,R MANNERS & SONS LTD,013498,Commissioning & Asset Management,Children's & Education Services,103,Supplies and Services,504,Equipment,5023,Revenue,CATERING.FOOD & BEVERAGES
22-FEB-2023,7020922,96.75,R MANNERS & SONS LTD,013498,Commissioning & Asset Management,Children's & Education Services,103,Supplies and Services,504,Equipment,5023,Revenue,CATERING.FOOD & BEVERAGES
22-FEB-2023,7020922,100,R MANNERS & SONS LTD,013498,Commissioning & Asset Management,Children's & Education Services,103,Supplies and Services,504,Equipment,5023,Revenue,CATERING.FOOD & BEVERAGES
22-FEB-2023,7020922,124.57,R MANNERS & SONS LTD,013498,Commissioning & Asset Management,Children's & Education Services,103,Supplies and Services,504,Equipment,5023,Revenue,CATERING.FOOD & BEVERAGES
22-FEB-2023,7020922,-9.56,R MANNERS & SONS LTD,013498,Commissioning & Asset Management,Children's & Education Services,103,Supplies and Services,504,Equipment,5023,Revenue,CATERING.FOOD & BEVERAGES
22-FEB-2023,7020922,5.46,R MANNERS & SONS LTD,013498,Commissioning & Asset Management,Children's & Education Services,103,Supplies and Services,504,Equipment,5023,Revenue,CATERING.FOOD & BEVERAGES
22-FEB-2023,7020922,35.82,R MANNERS & SONS LTD,013498,Commissioning & Asset Management,Children's & Education Services,103,Supplies and Services,504,Equipment,5023,Revenue,CATERING.FOOD & BEVERAGES
22-FEB-2023,7020922,53.73,R MANNERS & SONS LTD,013498,Commissioning & Asset Management,Children's & Education Services,103,Supplies and Services,504,Equipment,5023,Revenue,CATERING.FOOD & BEVERAGES
22-FEB-2023,7020922,54.6,R MANNERS & SONS LTD,013498,Commissioning & Asset Management,Children's & Education Services,103,Supplies and Services,504,Equipment,5023,Revenue,CATERING.FOOD & BEVERAGES
22-FEB-2023,7020922,59.7,R MANNERS & SONS LTD,013498,Commissioning & Asset Management,Children's & Education Services,103,Supplies and Services,504,Equipment,5023,Revenue,CATERING.FOOD & BEVERAGES
22-FEB-2023,7020922,70,R MANNERS & SONS LTD,013498,Commissioning & Asset Management,Children's & Education Services,103,Supplies and Services,504,Equipment,5023,Revenue,CATERING.FOOD & BEVERAGES
22-FEB-2023,7020922,100.62,R MANNERS & SONS LTD,013498,Commissioning & Asset Management,Children's & Education Services,103,Supplies and Services,504,Equipment,5023,Revenue,CATERING.FOOD & BEVERAGES
22-FEB-2023,7020922,108.06,R MANNERS & SONS LTD,013498,Commissioning & Asset Management,Children's & Education Services,103,Supplies and Services,504,Equipment,5023,Revenue,CATERING.FOOD & BEVERAGES
22-FEB-2023,7020922,7.12,R MANNERS & SONS LTD,013498,Commissioning & Asset Management,Children's & Education Services,103,Supplies and Services,504,Equipment,5023,Revenue,CATERING.FOOD & BEVERAGES
22-FEB-2023,7020922,21.36,R MANNERS & SONS LTD,013498,Commissioning & Asset Management,Children's & Education Services,103,Supplies and Services,504,Equipment,5023,Revenue,CATERING.FOOD & BEVERAGES
22-FEB-2023,7020922,26.45,R MANNERS & SONS LTD,013498,Commissioning & Asset Management,Children's & Education Services,103,Supplies and Services,504,Equipment,5023,Revenue,CATERING.FOOD & BEVERAGES
22-FEB-2023,7020922,28.48,R MANNERS & SONS LTD,013498,Commissioning & Asset Management,Children's & Education Services,103,Supplies and Services,504,Equipment,5023,Revenue,CATERING.FOOD & BEVERAGES
22-FEB-2023,7020922,35.6,R MANNERS & SONS LTD,013498,Commissioning & Asset Management,Children's & Education Services,103,Supplies and Services,504,Equipment,5023,Revenue,CATERING.FOOD & BEVERAGES
22-FEB-2023,7020922,53,R MANNERS & SONS LTD,013498,Commissioning & Asset Management,Children's & Education Services,103,Supplies and Services,504,Equipment,5023,Revenue,CATERING.FOOD & BEVERAGES
22-FEB-2023,7020922,57.8,R MANNERS & SONS LTD,013498,Commissioning & Asset Management,Children's & Education Services,103,Supplies and Services,504,Equipment,5023,Revenue,CATERING.FOOD & BEVERAGES
22-FEB-2023,7020922,82.5,R MANNERS & SONS LTD,013498,Commissioning & Asset Management,Children's & Education Services,103,Supplies and Services,504,Equipment,5023,Revenue,CATERING.FOOD & BEVERAGES
22-FEB-2023,7020922,115.6,R MANNERS & SONS LTD,013498,Commissioning & Asset Management,Children's & Education Services,103,Supplies and Services,504,Equipment,5023,Revenue,CATERING.FOOD & BEVERAGES
22-FEB-2023,7020922,126.72,R MANNERS & SONS LTD,013498,Commissioning & Asset Management,Children's & Education Services,103,Supplies and Services,504,Equipment,5023,Revenue,CATERING.FOOD & BEVERAGES
22-FEB-2023,7020922,132.25,R MANNERS & SONS LTD,013498,Commissioning & Asset Management,Children's & Education Services,103,Supplies and Services,504,Equipment,5023,Revenue,CATERING.FOOD & BEVERAGES
22-FEB-2023,7020922,137.53,R MANNERS & SONS LTD,013498,Commissioning & Asset Management,Children's & Education Services,103,Supplies and Services,504,Equipment,5023,Revenue,CATERING.FOOD & BEVERAGES
22-FEB-2023,7020922,149.5,R MANNERS & SONS LTD,013498,Commissioning & Asset Management,Children's & Education Services,103,Supplies and Services,504,Equipment,5023,Revenue,CATERING.FOOD & BEVERAGES
22-FEB-2023,7020922,383.1,R MANNERS & SONS LTD,013498,Commissioning & Asset Management,Children's & Education Services,103,Supplies and Services,504,Equipment,5023,Revenue,CATERING.FOOD & BEVERAGES
22-FEB-2023,7020922,5.46,R MANNERS & SONS LTD,013498,Commissioning & Asset Management,Children's & Education Services,103,Supplies and Services,504,Equipment,5023,Revenue,CATERING.FOOD & BEVERAGES
22-FEB-2023,7020922,29.85,R MANNERS & SONS LTD,013498,Commissioning & Asset Management,Children's & Education Services,103,Supplies and Services,504,Equipment,5023,Revenue,CATERING.FOOD & BEVERAGES
22-FEB-2023,7020922,32.76,R MANNERS & SONS LTD,013498,Commissioning & Asset Management,Children's & Education Services,103,Supplies and Services,504,Equipment,5023,Revenue,CATERING.FOOD & BEVERAGES
22-FEB-2023,7020922,47.76,R MANNERS & SONS LTD,013498,Commissioning & Asset Management,Children's & Education Services,103,Supplies and Services,504,Equipment,5023,Revenue,CATERING.FOOD & BEVERAGES
22-FEB-2023,7020922,49.14,R MANNERS & SONS LTD,013498,Commissioning & Asset Management,Children's & Education Services,103,Supplies and Services,504,Equipment,5023,Revenue,CATERING.FOOD & BEVERAGES
22-FEB-2023,7020922,64,R MANNERS & SONS LTD,013498,Commissioning & Asset Management,Children's & Education Services,103,Supplies and Services,504,Equipment,5023,Revenue,CATERING.FOOD & BEVERAGES
22-FEB-2023,7020922,68.01,R MANNERS & SONS LTD,013498,Commissioning & Asset Management,Children's & Education Services,103,Supplies and Services,504,Equipment,5023,Revenue,CATERING.FOOD & BEVERAGES
22-FEB-2023,7020922,77.4,R MANNERS & SONS LTD,013498,Commissioning & Asset Management,Children's & Education Services,103,Supplies and Services,504,Equipment,5023,Revenue,CATERING.FOOD & BEVERAGES
22-FEB-2023,7020922,123.06,R MANNERS & SONS LTD,013498,Commissioning & Asset Management,Children's & Education Services,103,Supplies and Services,504,Equipment,5023,Revenue,CATERING.FOOD & BEVERAGES
22-FEB-2023,7020922,5.29,R MANNERS & SONS LTD,013498,Commissioning & Asset Management,Children's & Education Services,103,Supplies and Services,504,Equipment,5023,Revenue,CATERING.FOOD & BEVERAGES
22-FEB-2023,7020922,26.45,R MANNERS & SONS LTD,013498,Commissioning & Asset Management,Children's & Education Services,103,Supplies and Services,504,Equipment,5023,Revenue,CATERING.FOOD & BEVERAGES
22-FEB-2023,7020922,32.76,R MANNERS & SONS LTD,013498,Commissioning & Asset Management,Children's & Education Services,103,Supplies and Services,504,Equipment,5023,Revenue,CATERING.FOOD & BEVERAGES
22-FEB-2023,7020922,33,R MANNERS & SONS LTD,013498,Commissioning & Asset Management,Children's & Education Services,103,Supplies and Services,504,Equipment,5023,Revenue,CATERING.FOOD & BEVERAGES
22-FEB-2023,7020922,35.82,R MANNERS & SONS LTD,013498,Commissioning & Asset Management,Children's & Education Services,103,Supplies and Services,504,Equipment,5023,Revenue,CATERING.FOOD & BEVERAGES
22-FEB-2023,7020922,46.62,R MANNERS & SONS LTD,013498,Commissioning & Asset Management,Children's & Education Services,103,Supplies and Services,504,Equipment,5023,Revenue,CATERING.FOOD & BEVERAGES
22-FEB-2023,7020922,58.05,R MANNERS & SONS LTD,013498,Commissioning & Asset Management,Children's & Education Services,103,Supplies and Services,504,Equipment,5023,Revenue,CATERING.FOOD & BEVERAGES
22-FEB-2023,7020922,19.35,R MANNERS & SONS LTD,013498,Commissioning & Asset Management,Children's & Education Services,103,Supplies and Services,504,Equipment,5023,Revenue,CATERING.FOOD & BEVERAGES
22-FEB-2023,7020922,20,R MANNERS & SONS LTD,013498,Commissioning & Asset Management,Children's & Education Services,103,Supplies and Services,504,Equipment,5023,Revenue,CATERING.FOOD & BEVERAGES
22-FEB-2023,7020922,21.84,R MANNERS & SONS LTD,013498,Commissioning & Asset Management,Children's & Education Services,103,Supplies and Services,504,Equipment,5023,Revenue,CATERING.FOOD & BEVERAGES
22-FEB-2023,7020922,23.88,R MANNERS & SONS LTD,013498,Commissioning & Asset Management,Children's & Education Services,103,Supplies and Services,504,Equipment,5023,Revenue,CATERING.FOOD & BEVERAGES
22-FEB-2023,7020922,32.76,R MANNERS & SONS LTD,013498,Commissioning & Asset Management,Children's & Education Services,103,Supplies and Services,504,Equipment,5023,Revenue,CATERING.FOOD & BEVERAGES
22-FEB-2023,7020922,35.82,R MANNERS & SONS LTD,013498,Commissioning & Asset Management,Children's & Education Services,103,Supplies and Services,504,Equipment,5023,Revenue,CATERING.FOOD & BEVERAGES
22-FEB-2023,7020922,42.49,R MANNERS & SONS LTD,013498,Commissioning & Asset Management,Children's & Education Services,103,Supplies and Services,504,Equipment,5023,Revenue,CATERING.FOOD & BEVERAGES
22-FEB-2023,7020922,5.46,R MANNERS & SONS LTD,013498,Commissioning & Asset Management,Children's & Education Services,103,Supplies and Services,504,Equipment,5023,Revenue,CATERING.FOOD & BEVERAGES
22-FEB-2023,7020922,15.48,R MANNERS & SONS LTD,013498,Commissioning & Asset Management,Children's & Education Services,103,Supplies and Services,504,Equipment,5023,Revenue,CATERING.FOOD & BEVERAGES
22-FEB-2023,7020922,17.91,R MANNERS & SONS LTD,013498,Commissioning & Asset Management,Children's & Education Services,103,Supplies and Services,504,Equipment,5023,Revenue,CATERING.FOOD & BEVERAGES
22-FEB-2023,7020922,21.84,R MANNERS & SONS LTD,013498,Commissioning & Asset Management,Children's & Education Services,103,Supplies and Services,504,Equipment,5023,Revenue,CATERING.FOOD & BEVERAGES
22-FEB-2023,7020922,23.88,R MANNERS & SONS LTD,013498,Commissioning & Asset Management,Children's & Education Services,103,Supplies and Services,504,Equipment,5023,Revenue,CATERING.FOOD & BEVERAGES
22-FEB-2023,7020922,32,R MANNERS & SONS LTD,013498,Commissioning & Asset Management,Children's & Education Services,103,Supplies and Services,504,Equipment,5023,Revenue,CATERING.FOOD & BEVERAGES
22-FEB-2023,7020922,53.09,R MANNERS & SONS LTD,013498,Commissioning & Asset Management,Children's & Education Services,103,Supplies and Services,504,Equipment,5023,Revenue,CATERING.FOOD & BEVERAGES
22-FEB-2023,7020922,7.74,R MANNERS & SONS LTD,013498,Commissioning & Asset Management,Children's & Education Services,103,Supplies and Services,504,Equipment,5023,Revenue,CATERING.FOOD & BEVERAGES
22-FEB-2023,7020922,21.01,R MANNERS & SONS LTD,013498,Commissioning & Asset Management,Children's & Education Services,103,Supplies and Services,504,Equipment,5023,Revenue,CATERING.FOOD & BEVERAGES
22-FEB-2023,7020922,29.85,R MANNERS & SONS LTD,013498,Commissioning & Asset Management,Children's & Education Services,103,Supplies and Services,504,Equipment,5023,Revenue,CATERING.FOOD & BEVERAGES
22-FEB-2023,7020922,35.82,R MANNERS & SONS LTD,013498,Commissioning & Asset Management,Children's & Education Services,103,Supplies and Services,504,Equipment,5023,Revenue,CATERING.FOOD & BEVERAGES
22-FEB-2023,7020922,54.18,R MANNERS & SONS LTD,013498,Commissioning & Asset Management,Children's & Education Services,103,Supplies and Services,504,Equipment,5023,Revenue,CATERING.FOOD & BEVERAGES
22-FEB-2023,7020922,54.6,R MANNERS & SONS LTD,013498,Commissioning & Asset Management,Children's & Education Services,103,Supplies and Services,504,Equipment,5023,Revenue,CATERING.FOOD & BEVERAGES
22-FEB-2023,7020922,54.6,R MANNERS & SONS LTD,013498,Commissioning & Asset Management,Children's & Education Services,103,Supplies and Services,504,Equipment,5023,Revenue,CATERING.FOOD & BEVERAGES
22-FEB-2023,7020922,59.7,R MANNERS & SONS LTD,013498,Commissioning & Asset Management,Children's & Education Services,103,Supplies and Services,504,Equipment,5023,Revenue,CATERING.FOOD & BEVERAGES
22-FEB-2023,7020922,60,R MANNERS & SONS LTD,013498,Commissioning & Asset Management,Children's & Education Services,103,Supplies and Services,504,Equipment,5023,Revenue,CATERING.FOOD & BEVERAGES
22-FEB-2023,7020922,103.88,R MANNERS & SONS LTD,013498,Commissioning & Asset Management,Children's & Education Services,103,Supplies and Services,504,Equipment,5023,Revenue,CATERING.FOOD & BEVERAGES
22-FEB-2023,7020922,5.97,R MANNERS & SONS LTD,013498,Commissioning & Asset Management,Children's & Education Services,103,Supplies and Services,504,Equipment,5023,Revenue,CATERING.FOOD & BEVERAGES
22-FEB-2023,7020922,29.85,R MANNERS & SONS LTD,013498,Commissioning & Asset Management,Children's & Education Services,103,Supplies and Services,504,Equipment,5023,Revenue,CATERING.FOOD & BEVERAGES
22-FEB-2023,7020922,43.68,R MANNERS & SONS LTD,013498,Commissioning & Asset Management,Children's & Education Services,103,Supplies and Services,504,Equipment,5023,Revenue,CATERING.FOOD & BEVERAGES
22-FEB-2023,7020922,47.76,R MANNERS & SONS LTD,013498,Commissioning & Asset Management,Children's & Education Services,103,Supplies and Services,504,Equipment,5023,Revenue,CATERING.FOOD & BEVERAGES
22-FEB-2023,7020922,48,R MANNERS & SONS LTD,013498,Commissioning & Asset Management,Children's & Education Services,103,Supplies and Services,504,Equipment,5023,Revenue,CATERING.FOOD & BEVERAGES
22-FEB-2023,7020922,60.06,R MANNERS & SONS LTD,013498,Commissioning & Asset Management,Children's & Education Services,103,Supplies and Services,504,Equipment,5023,Revenue,CATERING.FOOD & BEVERAGES
22-FEB-2023,7020922,70.98,R MANNERS & SONS LTD,013498,Commissioning & Asset Management,Children's & Education Services,103,Supplies and Services,504,Equipment,5023,Revenue,CATERING.FOOD & BEVERAGES
22-FEB-2023,7020922,85.14,R MANNERS & SONS LTD,013498,Commissioning & Asset Management,Children's & Education Services,103,Supplies and Services,504,Equipment,5023,Revenue,CATERING.FOOD & BEVERAGES
22-FEB-2023,7020922,87.7,R MANNERS & SONS LTD,013498,Commissioning & Asset Management,Children's & Education Services,103,Supplies and Services,504,Equipment,5023,Revenue,CATERING.FOOD & BEVERAGES
22-FEB-2023,7020922,2.73,R MANNERS & SONS LTD,013498,Commissioning & Asset Management,Children's & Education Services,103,Supplies and Services,504,Equipment,5023,Revenue,CATERING.FOOD & BEVERAGES
22-FEB-2023,7020922,2.99,R MANNERS & SONS LTD,013498,Commissioning & Asset Management,Children's & Education Services,103,Supplies and Services,504,Equipment,5023,Revenue,CATERING.FOOD & BEVERAGES
22-FEB-2023,7020922,5.97,R MANNERS & SONS LTD,013498,Commissioning & Asset Management,Children's & Education Services,103,Supplies and Services,504,Equipment,5023,Revenue,CATERING.FOOD & BEVERAGES
22-FEB-2023,7020922,16.38,R MANNERS & SONS LTD,013498,Commissioning & Asset Management,Children's & Education Services,103,Supplies and Services,504,Equipment,5023,Revenue,CATERING.FOOD & BEVERAGES
22-FEB-2023,7020922,16.38,R MANNERS & SONS LTD,013498,Commissioning & Asset Management,Children's & Education Services,103,Supplies and Services,504,Equipment,5023,Revenue,CATERING.FOOD & BEVERAGES
22-FEB-2023,7020922,17.91,R MANNERS & SONS LTD,013498,Commissioning & Asset Management,Children's & Education Services,103,Supplies and Services,504,Equipment,5023,Revenue,CATERING.FOOD & BEVERAGES
22-FEB-2023,7020922,28,R MANNERS & SONS LTD,013498,Commissioning & Asset Management,Children's & Education Services,103,Supplies and Services,504,Equipment,5023,Revenue,CATERING.FOOD & BEVERAGES
22-FEB-2023,7020922,32.45,R MANNERS & SONS LTD,013498,Commissioning & Asset Management,Children's & Education Services,103,Supplies and Services,504,Equipment,5023,Revenue,CATERING.FOOD & BEVERAGES
22-FEB-2023,7020922,38.7,R MANNERS & SONS LTD,013498,Commissioning & Asset Management,Children's & Education Services,103,Supplies and Services,504,Equipment,5023,Revenue,CATERING.FOOD & BEVERAGES
22-FEB-2023,7020922,5.46,R MANNERS & SONS LTD,013498,Commissioning & Asset Management,Children's & Education Services,103,Supplies and Services,504,Equipment,5023,Revenue,CATERING.FOOD & BEVERAGES
22-FEB-2023,7020922,35.82,R MANNERS & SONS LTD,013498,Commissioning & Asset Management,Children's & Education Services,103,Supplies and Services,504,Equipment,5023,Revenue,CATERING.FOOD & BEVERAGES
22-FEB-2023,7020922,41.79,R MANNERS & SONS LTD,013498,Commissioning & Asset Management,Children's & Education Services,103,Supplies and Services,504,Equipment,5023,Revenue,CATERING.FOOD & BEVERAGES
22-FEB-2023,7020922,54.6,R MANNERS & SONS LTD,013498,Commissioning & Asset Management,Children's & Education Services,103,Supplies and Services,504,Equipment,5023,Revenue,CATERING.FOOD & BEVERAGES
22-FEB-2023,7020922,54.6,R MANNERS & SONS LTD,013498,Commissioning & Asset Management,Children's & Education Services,103,Supplies and Services,504,Equipment,5023,Revenue,CATERING.FOOD & BEVERAGES
22-FEB-2023,7020922,68,R MANNERS & SONS LTD,013498,Commissioning & Asset Management,Children's & Education Services,103,Supplies and Services,504,Equipment,5023,Revenue,CATERING.FOOD & BEVERAGES
22-FEB-2023,7020922,71.1,R MANNERS & SONS LTD,013498,Commissioning & Asset Management,Children's & Education Services,103,Supplies and Services,504,Equipment,5023,Revenue,CATERING.FOOD & BEVERAGES
22-FEB-2023,7020922,96.75,R MANNERS & SONS LTD,013498,Commissioning & Asset Management,Children's & Education Services,103,Supplies and Services,504,Equipment,5023,Revenue,CATERING.FOOD & BEVERAGES
22-FEB-2023,7020922,10.92,R MANNERS & SONS LTD,013498,Commissioning & Asset Management,Children's & Education Services,103,Supplies and Services,504,Equipment,5023,Revenue,CATERING.FOOD & BEVERAGES
22-FEB-2023,7020922,19.35,R MANNERS & SONS LTD,013498,Commissioning & Asset Management,Children's & Education Services,103,Supplies and Services,504,Equipment,5023,Revenue,CATERING.FOOD & BEVERAGES
22-FEB-2023,7020922,35.82,R MANNERS & SONS LTD,013498,Commissioning & Asset Management,Children's & Education Services,103,Supplies and Services,504,Equipment,5023,Revenue,CATERING.FOOD & BEVERAGES
22-FEB-2023,7020922,41.8,R MANNERS & SONS LTD,013498,Commissioning & Asset Management,Children's & Education Services,103,Supplies and Services,504,Equipment,5023,Revenue,CATERING.FOOD & BEVERAGES
22-FEB-2023,7020922,81.9,R MANNERS & SONS LTD,013498,Commissioning & Asset Management,Children's & Education Services,103,Supplies and Services,504,Equipment,5023,Revenue,CATERING.FOOD & BEVERAGES
22-FEB-2023,7020922,81.9,R MANNERS & SONS LTD,013498,Commissioning & Asset Management,Children's & Education Services,103,Supplies and Services,504,Equipment,5023,Revenue,CATERING.FOOD & BEVERAGES
22-FEB-2023,7020922,89.55,R MANNERS & SONS LTD,013498,Commissioning & Asset Management,Children's & Education Services,103,Supplies and Services,504,Equipment,5023,Revenue,CATERING.FOOD & BEVERAGES
22-FEB-2023,7020922,104,R MANNERS & SONS LTD,013498,Commissioning & Asset Management,Children's & Education Services,103,Supplies and Services,504,Equipment,5023,Revenue,CATERING.FOOD & BEVERAGES
22-FEB-2023,7020922,177.47,R MANNERS & SONS LTD,013498,Commissioning & Asset Management,Children's & Education Services,103,Supplies and Services,504,Equipment,5023,Revenue,CATERING.FOOD & BEVERAGES
22-FEB-2023,7020922,5.29,R MANNERS & SONS LTD,013498,Commissioning & Asset Management,Children's & Education Services,103,Supplies and Services,504,Equipment,5023,Revenue,CATERING.FOOD & BEVERAGES
22-FEB-2023,7020922,17.91,R MANNERS & SONS LTD,013498,Commissioning & Asset Management,Children's & Education Services,103,Supplies and Services,504,Equipment,5023,Revenue,CATERING.FOOD & BEVERAGES
22-FEB-2023,7020922,17.91,R MANNERS & SONS LTD,013498,Commissioning & Asset Management,Children's & Education Services,103,Supplies and Services,504,Equipment,5023,Revenue,CATERING.FOOD & BEVERAGES
22-FEB-2023,7020922,21.84,R MANNERS & SONS LTD,013498,Commissioning & Asset Management,Children's & Education Services,103,Supplies and Services,504,Equipment,5023,Revenue,CATERING.FOOD & BEVERAGES
22-FEB-2023,7020922,21.84,R MANNERS & SONS LTD,013498,Commissioning & Asset Management,Children's & Education Services,103,Supplies and Services,504,Equipment,5023,Revenue,CATERING.FOOD & BEVERAGES
22-FEB-2023,7020922,23.12,R MANNERS & SONS LTD,013498,Commissioning & Asset Management,Children's & Education Services,103,Supplies and Services,504,Equipment,5023,Revenue,CATERING.FOOD & BEVERAGES
22-FEB-2023,7020922,27.09,R MANNERS & SONS LTD,013498,Commissioning & Asset Management,Children's & Education Services,103,Supplies and Services,504,Equipment,5023,Revenue,CATERING.FOOD & BEVERAGES
22-FEB-2023,7020922,36,R MANNERS & SONS LTD,013498,Commissioning & Asset Management,Children's & Education Services,103,Supplies and Services,504,Equipment,5023,Revenue,CATERING.FOOD & BEVERAGES
22-FEB-2023,7020922,44.09,R MANNERS & SONS LTD,013498,Commissioning & Asset Management,Children's & Education Services,103,Supplies and Services,504,Equipment,5023,Revenue,CATERING.FOOD & BEVERAGES
22-FEB-2023,7020922,72.42,R MANNERS & SONS LTD,013498,Commissioning & Asset Management,Children's & Education Services,103,Supplies and Services,504,Equipment,5023,Revenue,CATERING.FOOD & BEVERAGES
22-FEB-2023,7020922,116.1,R MANNERS & SONS LTD,013498,Commissioning & Asset Management,Children's & Education Services,103,Supplies and Services,504,Equipment,5023,Revenue,CATERING.FOOD & BEVERAGES
22-FEB-2023,7020922,5.46,R MANNERS & SONS LTD,013498,Commissioning & Asset Management,Children's & Education Services,103,Supplies and Services,504,Equipment,5023,Revenue,CATERING.FOOD & BEVERAGES
22-FEB-2023,7020922,5.97,R MANNERS & SONS LTD,013498,Commissioning & Asset Management,Children's & Education Services,103,Supplies and Services,504,Equipment,5023,Revenue,CATERING.FOOD & BEVERAGES
22-FEB-2023,7020922,16.38,R MANNERS & SONS LTD,013498,Commissioning & Asset Management,Children's & Education Services,103,Supplies and Services,504,Equipment,5023,Revenue,CATERING.FOOD & BEVERAGES
22-FEB-2023,7020922,17.91,R MANNERS & SONS LTD,013498,Commissioning & Asset Management,Children's & Education Services,103,Supplies and Services,504,Equipment,5023,Revenue,CATERING.FOOD & BEVERAGES
22-FEB-2023,7020922,21.84,R MANNERS & SONS LTD,013498,Commissioning & Asset Management,Children's & Education Services,103,Supplies and Services,504,Equipment,5023,Revenue,CATERING.FOOD & BEVERAGES
22-FEB-2023,7020922,23.88,R MANNERS & SONS LTD,013498,Commissioning & Asset Management,Children's & Education Services,103,Supplies and Services,504,Equipment,5023,Revenue,CATERING.FOOD & BEVERAGES
22-FEB-2023,7020922,40,R MANNERS & SONS LTD,013498,Commissioning & Asset Management,Children's & Education Services,103,Supplies and Services,504,Equipment,5023,Revenue,CATERING.FOOD & BEVERAGES
22-FEB-2023,7020922,49.43,R MANNERS & SONS LTD,013498,Commissioning & Asset Management,Children's & Education Services,103,Supplies and Services,504,Equipment,5023,Revenue,CATERING.FOOD & BEVERAGES
22-FEB-2023,7020922,54.18,R MANNERS & SONS LTD,013498,Commissioning & Asset Management,Children's & Education Services,103,Supplies and Services,504,Equipment,5023,Revenue,CATERING.FOOD & BEVERAGES
22-FEB-2023,7020922,11.94,R MANNERS & SONS LTD,013498,Commissioning & Asset Management,Children's & Education Services,103,Supplies and Services,504,Equipment,5023,Revenue,CATERING.FOOD & BEVERAGES
22-FEB-2023,7020922,19.35,R MANNERS & SONS LTD,013498,Commissioning & Asset Management,Children's & Education Services,103,Supplies and Services,504,Equipment,5023,Revenue,CATERING.FOOD & BEVERAGES
22-FEB-2023,7020922,21.84,R MANNERS & SONS LTD,013498,Commissioning & Asset Management,Children's & Education Services,103,Supplies and Services,504,Equipment,5023,Revenue,CATERING.FOOD & BEVERAGES
22-FEB-2023,7020922,23.88,R MANNERS & SONS LTD,013498,Commissioning & Asset Management,Children's & Education Services,103,Supplies and Services,504,Equipment,5023,Revenue,CATERING.FOOD & BEVERAGES
22-FEB-2023,7020922,24,R MANNERS & SONS LTD,013498,Commissioning & Asset Management,Children's & Education Services,103,Supplies and Services,504,Equipment,5023,Revenue,CATERING.FOOD & BEVERAGES
22-FEB-2023,7020922,27.3,R MANNERS & SONS LTD,013498,Commissioning & Asset Management,Children's & Education Services,103,Supplies and Services,504,Equipment,5023,Revenue,CATERING.FOOD & BEVERAGES
22-FEB-2023,7020922,47.88,R MANNERS & SONS LTD,013498,Commissioning & Asset Management,Children's & Education Services,103,Supplies and Services,504,Equipment,5023,Revenue,CATERING.FOOD & BEVERAGES
22-FEB-2023,7020922,2.65,R MANNERS & SONS LTD,013498,Commissioning & Asset Management,Children's & Education Services,103,Supplies and Services,504,Equipment,5023,Revenue,CATERING.FOOD & BEVERAGES
22-FEB-2023,7020922,2.73,R MANNERS & SONS LTD,013498,Commissioning & Asset Management,Children's & Education Services,103,Supplies and Services,504,Equipment,5023,Revenue,CATERING.FOOD & BEVERAGES
22-FEB-2023,7020922,7.74,R MANNERS & SONS LTD,013498,Commissioning & Asset Management,Children's & Education Services,103,Supplies and Services,504,Equipment,5023,Revenue,CATERING.FOOD & BEVERAGES
22-FEB-2023,7020922,21.16,R MANNERS & SONS LTD,013498,Commissioning & Asset Management,Children's & Education Services,103,Supplies and Services,504,Equipment,5023,Revenue,CATERING.FOOD & BEVERAGES
22-FEB-2023,7020922,21.84,R MANNERS & SONS LTD,013498,Commissioning & Asset Management,Children's & Education Services,103,Supplies and Services,504,Equipment,5023,Revenue,CATERING.FOOD & BEVERAGES
22-FEB-2023,7020922,29.85,R MANNERS & SONS LTD,013498,Commissioning & Asset Management,Children's & Education Services,103,Supplies and Services,504,Equipment,5023,Revenue,CATERING.FOOD & BEVERAGES
22-FEB-2023,7020922,39.7,R MANNERS & SONS LTD,013498,Commissioning & Asset Management,Children's & Education Services,103,Supplies and Services,504,Equipment,5023,Revenue,CATERING.FOOD & BEVERAGES
22-FEB-2023,7020922,49.43,R MANNERS & SONS LTD,013498,Commissioning & Asset Management,Children's & Education Services,103,Supplies and Services,504,Equipment,5023,Revenue,CATERING.FOOD & BEVERAGES
22-FEB-2023,7020922,5.46,R MANNERS & SONS LTD,013498,Commissioning & Asset Management,Children's & Education Services,103,Supplies and Services,504,Equipment,5023,Revenue,CATERING.FOOD & BEVERAGES
22-FEB-2023,7020922,11.94,R MANNERS & SONS LTD,013498,Commissioning & Asset Management,Children's & Education Services,103,Supplies and Services,504,Equipment,5023,Revenue,CATERING.FOOD & BEVERAGES
22-FEB-2023,7020922,16.38,R MANNERS & SONS LTD,013498,Commissioning & Asset Management,Children's & Education Services,103,Supplies and Services,504,Equipment,5023,Revenue,CATERING.FOOD & BEVERAGES
22-FEB-2023,7020922,17.91,R MANNERS & SONS LTD,013498,Commissioning & Asset Management,Children's & Education Services,103,Supplies and Services,504,Equipment,5023,Revenue,CATERING.FOOD & BEVERAGES
22-FEB-2023,7020922,27.09,R MANNERS & SONS LTD,013498,Commissioning & Asset Management,Children's & Education Services,103,Supplies and Services,504,Equipment,5023,Revenue,CATERING.FOOD & BEVERAGES
22-FEB-2023,7020922,27.3,R MANNERS & SONS LTD,013498,Commissioning & Asset Management,Children's & Education Services,103,Supplies and Services,504,Equipment,5023,Revenue,CATERING.FOOD & BEVERAGES
22-FEB-2023,7020922,31.74,R MANNERS & SONS LTD,013498,Commissioning & Asset Management,Children's & Education Services,103,Supplies and Services,504,Equipment,5023,Revenue,CATERING.FOOD & BEVERAGES
22-FEB-2023,7020922,35.36,R MANNERS & SONS LTD,013498,Commissioning & Asset Management,Children's & Education Services,103,Supplies and Services,504,Equipment,5023,Revenue,CATERING.FOOD & BEVERAGES
22-FEB-2023,7020922,52.22,R MANNERS & SONS LTD,013498,Commissioning & Asset Management,Children's & Education Services,103,Supplies and Services,504,Equipment,5023,Revenue,CATERING.FOOD & BEVERAGES
22-FEB-2023,7020922,53.06,R MANNERS & SONS LTD,013498,Commissioning & Asset Management,Children's & Education Services,103,Supplies and Services,504,Equipment,5023,Revenue,CATERING.FOOD & BEVERAGES
22-FEB-2023,7020922,5.46,R MANNERS & SONS LTD,013498,Commissioning & Asset Management,Children's & Education Services,103,Supplies and Services,504,Equipment,5023,Revenue,CATERING.FOOD & BEVERAGES
22-FEB-2023,7020922,23.88,R MANNERS & SONS LTD,013498,Commissioning & Asset Management,Children's & Education Services,103,Supplies and Services,504,Equipment,5023,Revenue,CATERING.FOOD & BEVERAGES
22-FEB-2023,7020922,27.3,R MANNERS & SONS LTD,013498,Commissioning & Asset Management,Children's & Education Services,103,Supplies and Services,504,Equipment,5023,Revenue,CATERING.FOOD & BEVERAGES
22-FEB-2023,7020922,27.3,R MANNERS & SONS LTD,013498,Commissioning & Asset Management,Children's & Education Services,103,Supplies and Services,504,Equipment,5023,Revenue,CATERING.FOOD & BEVERAGES
22-FEB-2023,7020922,35.82,R MANNERS & SONS LTD,013498,Commissioning & Asset Management,Children's & Education Services,103,Supplies and Services,504,Equipment,5023,Revenue,CATERING.FOOD & BEVERAGES
22-FEB-2023,7020922,35.82,R MANNERS & SONS LTD,013498,Commissioning & Asset Management,Children's & Education Services,103,Supplies and Services,504,Equipment,5023,Revenue,CATERING.FOOD & BEVERAGES
22-FEB-2023,7020922,50.31,R MANNERS & SONS LTD,013498,Commissioning & Asset Management,Children's & Education Services,103,Supplies and Services,504,Equipment,5023,Revenue,CATERING.FOOD & BEVERAGES
22-FEB-2023,7020922,52,R MANNERS & SONS LTD,013498,Commissioning & Asset Management,Children's & Education Services,103,Supplies and Services,504,Equipment,5023,Revenue,CATERING.FOOD & BEVERAGES
22-FEB-2023,7020922,105.99,R MANNERS & SONS LTD,013498,Commissioning & Asset Management,Children's & Education Services,103,Supplies and Services,504,Equipment,5023,Revenue,CATERING.FOOD & BEVERAGES
22-FEB-2023,7020922,5.46,R MANNERS & SONS LTD,013498,Commissioning & Asset Management,Children's & Education Services,103,Supplies and Services,504,Equipment,5023,Revenue,CATERING.FOOD & BEVERAGES
22-FEB-2023,7020922,11.61,R MANNERS & SONS LTD,013498,Commissioning & Asset Management,Children's & Education Services,103,Supplies and Services,504,Equipment,5023,Revenue,CATERING.FOOD & BEVERAGES
22-FEB-2023,7020922,21.84,R MANNERS & SONS LTD,013498,Commissioning & Asset Management,Children's & Education Services,103,Supplies and Services,504,Equipment,5023,Revenue,CATERING.FOOD & BEVERAGES
22-FEB-2023,7020922,24,R MANNERS & SONS LTD,013498,Commissioning & Asset Management,Children's & Education Services,103,Supplies and Services,504,Equipment,5023,Revenue,CATERING.FOOD & BEVERAGES
22-FEB-2023,7020922,44.93,R MANNERS & SONS LTD,013498,Commissioning & Asset Management,Children's & Education Services,103,Supplies and Services,504,Equipment,5023,Revenue,CATERING.FOOD & BEVERAGES
22-FEB-2023,7020922,12,R MANNERS & SONS LTD,013498,Commissioning & Asset Management,Children's & Education Services,103,Supplies and Services,504,Equipment,5023,Revenue,CATERING.FOOD & BEVERAGES
22-FEB-2023,7020922,23.12,R MANNERS & SONS LTD,013498,Commissioning & Asset Management,Children's & Education Services,103,Supplies and Services,504,Equipment,5023,Revenue,CATERING.FOOD & BEVERAGES
22-FEB-2023,7020922,26.45,R MANNERS & SONS LTD,013498,Commissioning & Asset Management,Children's & Education Services,103,Supplies and Services,504,Equipment,5023,Revenue,CATERING.FOOD & BEVERAGES
22-FEB-2023,7020922,32,R MANNERS & SONS LTD,013498,Commissioning & Asset Management,Children's & Education Services,103,Supplies and Services,504,Equipment,5023,Revenue,CATERING.FOOD & BEVERAGES
22-FEB-2023,7020922,33,R MANNERS & SONS LTD,013498,Commissioning & Asset Management,Children's & Education Services,103,Supplies and Services,504,Equipment,5023,Revenue,CATERING.FOOD & BEVERAGES
22-FEB-2023,7020922,33.58,R MANNERS & SONS LTD,013498,Commissioning & Asset Management,Children's & Education Services,103,Supplies and Services,504,Equipment,5023,Revenue,CATERING.FOOD & BEVERAGES
22-FEB-2023,7020922,50.96,R MANNERS & SONS LTD,013498,Commissioning & Asset Management,Children's & Education Services,103,Supplies and Services,504,Equipment,5023,Revenue,CATERING.FOOD & BEVERAGES
22-FEB-2023,7020922,27.09,R MANNERS & SONS LTD,013498,Commissioning & Asset Management,Children's & Education Services,103,Supplies and Services,504,Equipment,5023,Revenue,CATERING.FOOD & BEVERAGES
22-FEB-2023,7020922,29.85,R MANNERS & SONS LTD,013498,Commissioning & Asset Management,Children's & Education Services,103,Supplies and Services,504,Equipment,5023,Revenue,CATERING.FOOD & BEVERAGES
22-FEB-2023,7020922,32.76,R MANNERS & SONS LTD,013498,Commissioning & Asset Management,Children's & Education Services,103,Supplies and Services,504,Equipment,5023,Revenue,CATERING.FOOD & BEVERAGES
22-FEB-2023,7020922,35.82,R MANNERS & SONS LTD,013498,Commissioning & Asset Management,Children's & Education Services,103,Supplies and Services,504,Equipment,5023,Revenue,CATERING.FOOD & BEVERAGES
22-FEB-2023,7020922,36,R MANNERS & SONS LTD,013498,Commissioning & Asset Management,Children's & Education Services,103,Supplies and Services,504,Equipment,5023,Revenue,CATERING.FOOD & BEVERAGES
22-FEB-2023,7020922,38.22,R MANNERS & SONS LTD,013498,Commissioning & Asset Management,Children's & Education Services,103,Supplies and Services,504,Equipment,5023,Revenue,CATERING.FOOD & BEVERAGES
22-FEB-2023,7020922,58.06,R MANNERS & SONS LTD,013498,Commissioning & Asset Management,Children's & Education Services,103,Supplies and Services,504,Equipment,5023,Revenue,CATERING.FOOD & BEVERAGES
22-FEB-2023,7020922,10.92,R MANNERS & SONS LTD,013498,Commissioning & Asset Management,Children's & Education Services,103,Supplies and Services,504,Equipment,5023,Revenue,CATERING.FOOD & BEVERAGES
22-FEB-2023,7020922,23.88,R MANNERS & SONS LTD,013498,Commissioning & Asset Management,Children's & Education Services,103,Supplies and Services,504,Equipment,5023,Revenue,CATERING.FOOD & BEVERAGES
22-FEB-2023,7020922,23.88,R MANNERS & SONS LTD,013498,Commissioning & Asset Management,Children's & Education Services,103,Supplies and Services,504,Equipment,5023,Revenue,CATERING.FOOD & BEVERAGES
22-FEB-2023,7020922,43.68,R MANNERS & SONS LTD,013498,Commissioning & Asset Management,Children's & Education Services,103,Supplies and Services,504,Equipment,5023,Revenue,CATERING.FOOD & BEVERAGES
22-FEB-2023,7020922,47.76,R MANNERS & SONS LTD,013498,Commissioning & Asset Management,Children's & Education Services,103,Supplies and Services,504,Equipment,5023,Revenue,CATERING.FOOD & BEVERAGES
22-FEB-2023,7020922,56.66,R MANNERS & SONS LTD,013498,Commissioning & Asset Management,Children's & Education Services,103,Supplies and Services,504,Equipment,5023,Revenue,CATERING.FOOD & BEVERAGES
22-FEB-2023,7020922,60.74,R MANNERS & SONS LTD,013498,Commissioning & Asset Management,Children's & Education Services,103,Supplies and Services,504,Equipment,5023,Revenue,CATERING.FOOD & BEVERAGES
22-FEB-2023,7020922,65.52,R MANNERS & SONS LTD,013498,Commissioning & Asset Management,Children's & Education Services,103,Supplies and Services,504,Equipment,5023,Revenue,CATERING.FOOD & BEVERAGES
22-FEB-2023,7020922,93.38,R MANNERS & SONS LTD,013498,Commissioning & Asset Management,Children's & Education Services,103,Supplies and Services,504,Equipment,5023,Revenue,CATERING.FOOD & BEVERAGES
22-FEB-2023,7020922,11.94,R MANNERS & SONS LTD,013498,Commissioning & Asset Management,Children's & Education Services,103,Supplies and Services,504,Equipment,5023,Revenue,CATERING.FOOD & BEVERAGES
22-FEB-2023,7020922,11.94,R MANNERS & SONS LTD,013498,Commissioning & Asset Management,Children's & Education Services,103,Supplies and Services,504,Equipment,5023,Revenue,CATERING.FOOD & BEVERAGES
22-FEB-2023,7020922,11.94,R MANNERS & SONS LTD,013498,Commissioning & Asset Management,Children's & Education Services,103,Supplies and Services,504,Equipment,5023,Revenue,CATERING.FOOD & BEVERAGES
22-FEB-2023,7020922,17.91,R MANNERS & SONS LTD,013498,Commissioning & Asset Management,Children's & Education Services,103,Supplies and Services,504,Equipment,5023,Revenue,CATERING.FOOD & BEVERAGES
22-FEB-2023,7020922,40,R MANNERS & SONS LTD,013498,Commissioning & Asset Management,Children's & Education Services,103,Supplies and Services,504,Equipment,5023,Revenue,CATERING.FOOD & BEVERAGES
22-FEB-2023,7020922,41.79,R MANNERS & SONS LTD,013498,Commissioning & Asset Management,Children's & Education Services,103,Supplies and Services,504,Equipment,5023,Revenue,CATERING.FOOD & BEVERAGES
22-FEB-2023,7020922,44.35,R MANNERS & SONS LTD,013498,Commissioning & Asset Management,Children's & Education Services,103,Supplies and Services,504,Equipment,5023,Revenue,CATERING.FOOD & BEVERAGES
22-FEB-2023,7020922,63.78,R MANNERS & SONS LTD,013498,Commissioning & Asset Management,Children's & Education Services,103,Supplies and Services,504,Equipment,5023,Revenue,CATERING.FOOD & BEVERAGES
22-FEB-2023,7020922,110.46,R MANNERS & SONS LTD,013498,Commissioning & Asset Management,Children's & Education Services,103,Supplies and Services,504,Equipment,5023,Revenue,CATERING.FOOD & BEVERAGES
22-FEB-2023,7020922,5.46,R MANNERS & SONS LTD,013498,Commissioning & Asset Management,Children's & Education Services,103,Supplies and Services,504,Equipment,5023,Revenue,CATERING.FOOD & BEVERAGES
22-FEB-2023,7020922,23.88,R MANNERS & SONS LTD,013498,Commissioning & Asset Management,Children's & Education Services,103,Supplies and Services,504,Equipment,5023,Revenue,CATERING.FOOD & BEVERAGES
22-FEB-2023,7020922,32.76,R MANNERS & SONS LTD,013498,Commissioning & Asset Management,Children's & Education Services,103,Supplies and Services,504,Equipment,5023,Revenue,CATERING.FOOD & BEVERAGES
22-FEB-2023,7020922,32.76,R MANNERS & SONS LTD,013498,Commissioning & Asset Management,Children's & Education Services,103,Supplies and Services,504,Equipment,5023,Revenue,CATERING.FOOD & BEVERAGES
22-FEB-2023,7020922,35.82,R MANNERS & SONS LTD,013498,Commissioning & Asset Management,Children's & Education Services,103,Supplies and Services,504,Equipment,5023,Revenue,CATERING.FOOD & BEVERAGES
22-FEB-2023,7020922,46.44,R MANNERS & SONS LTD,013498,Commissioning & Asset Management,Children's & Education Services,103,Supplies and Services,504,Equipment,5023,Revenue,CATERING.FOOD & BEVERAGES
22-FEB-2023,7020922,60,R MANNERS & SONS LTD,013498,Commissioning & Asset Management,Children's & Education Services,103,Supplies and Services,504,Equipment,5023,Revenue,CATERING.FOOD & BEVERAGES
22-FEB-2023,7020922,72.98,R MANNERS & SONS LTD,013498,Commissioning & Asset Management,Children's & Education Services,103,Supplies and Services,504,Equipment,5023,Revenue,CATERING.FOOD & BEVERAGES
22-FEB-2023,7020922,77.4,R MANNERS & SONS LTD,013498,Commissioning & Asset Management,Children's & Education Services,103,Supplies and Services,504,Equipment,5023,Revenue,CATERING.FOOD & BEVERAGES
22-FEB-2023,7020922,5.46,R MANNERS & SONS LTD,013498,Commissioning & Asset Management,Children's & Education Services,103,Supplies and Services,504,Equipment,5023,Revenue,CATERING.FOOD & BEVERAGES
22-FEB-2023,7020922,5.97,R MANNERS & SONS LTD,013498,Commissioning & Asset Management,Children's & Education Services,103,Supplies and Services,504,Equipment,5023,Revenue,CATERING.FOOD & BEVERAGES
22-FEB-2023,7020922,5.97,R MANNERS & SONS LTD,013498,Commissioning & Asset Management,Children's & Education Services,103,Supplies and Services,504,Equipment,5023,Revenue,CATERING.FOOD & BEVERAGES
22-FEB-2023,7020922,11.94,R MANNERS & SONS LTD,013498,Commissioning & Asset Management,Children's & Education Services,103,Supplies and Services,504,Equipment,5023,Revenue,CATERING.FOOD & BEVERAGES
22-FEB-2023,7020922,11.94,R MANNERS & SONS LTD,013498,Commissioning & Asset Management,Children's & Education Services,103,Supplies and Services,504,Equipment,5023,Revenue,CATERING.FOOD & BEVERAGES
22-FEB-2023,7020922,13.45,R MANNERS & SONS LTD,013498,Commissioning & Asset Management,Children's & Education Services,103,Supplies and Services,504,Equipment,5023,Revenue,CATERING.FOOD & BEVERAGES
22-FEB-2023,7020922,16.38,R MANNERS & SONS LTD,013498,Commissioning & Asset Management,Children's & Education Services,103,Supplies and Services,504,Equipment,5023,Revenue,CATERING.FOOD & BEVERAGES
22-FEB-2023,7020922,22.13,R MANNERS & SONS LTD,013498,Commissioning & Asset Management,Children's & Education Services,103,Supplies and Services,504,Equipment,5023,Revenue,CATERING.FOOD & BEVERAGES
22-FEB-2023,7020922,23.88,R MANNERS & SONS LTD,013498,Commissioning & Asset Management,Children's & Education Services,103,Supplies and Services,504,Equipment,5023,Revenue,CATERING.FOOD & BEVERAGES
22-FEB-2023,7020922,27.3,R MANNERS & SONS LTD,013498,Commissioning & Asset Management,Children's & Education Services,103,Supplies and Services,504,Equipment,5023,Revenue,CATERING.FOOD & BEVERAGES
22-FEB-2023,7020922,29.85,R MANNERS & SONS LTD,013498,Commissioning & Asset Management,Children's & Education Services,103,Supplies and Services,504,Equipment,5023,Revenue,CATERING.FOOD & BEVERAGES
22-FEB-2023,7020922,32.76,R MANNERS & SONS LTD,013498,Commissioning & Asset Management,Children's & Education Services,103,Supplies and Services,504,Equipment,5023,Revenue,CATERING.FOOD & BEVERAGES
22-FEB-2023,7020922,36.54,R MANNERS & SONS LTD,013498,Commissioning & Asset Management,Children's & Education Services,103,Supplies and Services,504,Equipment,5023,Revenue,CATERING.FOOD & BEVERAGES
22-FEB-2023,7020922,44.27,R MANNERS & SONS LTD,013498,Commissioning & Asset Management,Children's & Education Services,103,Supplies and Services,504,Equipment,5023,Revenue,CATERING.FOOD & BEVERAGES
22-FEB-2023,7020922,44.27,R MANNERS & SONS LTD,013498,Commissioning & Asset Management,Children's & Education Services,103,Supplies and Services,504,Equipment,5023,Revenue,CATERING.FOOD & BEVERAGES
22-FEB-2023,7020922,44.44,R MANNERS & SONS LTD,013498,Commissioning & Asset Management,Children's & Education Services,103,Supplies and Services,504,Equipment,5023,Revenue,CATERING.FOOD & BEVERAGES
22-FEB-2023,7020922,47.76,R MANNERS & SONS LTD,013498,Commissioning & Asset Management,Children's & Education Services,103,Supplies and Services,504,Equipment,5023,Revenue,CATERING.FOOD & BEVERAGES
22-FEB-2023,7020922,47.76,R MANNERS & SONS LTD,013498,Commissioning & Asset Management,Children's & Education Services,103,Supplies and Services,504,Equipment,5023,Revenue,CATERING.FOOD & BEVERAGES
22-FEB-2023,7020922,47.76,R MANNERS & SONS LTD,013498,Commissioning & Asset Management,Children's & Education Services,103,Supplies and Services,504,Equipment,5023,Revenue,CATERING.FOOD & BEVERAGES
22-FEB-2023,7020922,47.76,R MANNERS & SONS LTD,013498,Commissioning & Asset Management,Children's & Education Services,103,Supplies and Services,504,Equipment,5023,Revenue,CATERING.FOOD & BEVERAGES
22-FEB-2023,7020922,47.76,R MANNERS & SONS LTD,013498,Commissioning & Asset Management,Children's & Education Services,103,Supplies and Services,504,Equipment,5023,Revenue,CATERING.FOOD & BEVERAGES
22-FEB-2023,7020922,47.76,R MANNERS & SONS LTD,013498,Commissioning & Asset Management,Children's & Education Services,103,Supplies and Services,504,Equipment,5023,Revenue,CATERING.FOOD & BEVERAGES
22-FEB-2023,7020922,47.76,R MANNERS & SONS LTD,013498,Commissioning & Asset Management,Children's & Education Services,103,Supplies and Services,504,Equipment,5023,Revenue,CATERING.FOOD & BEVERAGES
22-FEB-2023,7020922,51.5,R MANNERS & SONS LTD,013498,Commissioning & Asset Management,Children's & Education Services,103,Supplies and Services,504,Equipment,5023,Revenue,CATERING.FOOD & BEVERAGES
22-FEB-2023,7020922,53.55,R MANNERS & SONS LTD,013498,Commissioning & Asset Management,Children's & Education Services,103,Supplies and Services,504,Equipment,5023,Revenue,CATERING.FOOD & BEVERAGES
22-FEB-2023,7020922,55.08,R MANNERS & SONS LTD,013498,Commissioning & Asset Management,Children's & Education Services,103,Supplies and Services,504,Equipment,5023,Revenue,CATERING.FOOD & BEVERAGES
22-FEB-2023,7020922,70.74,R MANNERS & SONS LTD,013498,Commissioning & Asset Management,Children's & Education Services,103,Supplies and Services,504,Equipment,5023,Revenue,CATERING.FOOD & BEVERAGES
22-FEB-2023,7020922,86.94,R MANNERS & SONS LTD,013498,Commissioning & Asset Management,Children's & Education Services,103,Supplies and Services,504,Equipment,5023,Revenue,CATERING.FOOD & BEVERAGES
22-FEB-2023,7020922,10.41,R MANNERS & SONS LTD,013498,Commissioning & Asset Management,Children's & Education Services,103,Supplies and Services,504,Equipment,5023,Revenue,CATERING.FOOD & BEVERAGES
22-FEB-2023,7020922,11.94,R MANNERS & SONS LTD,013498,Commissioning & Asset Management,Children's & Education Services,103,Supplies and Services,504,Equipment,5023,Revenue,CATERING.FOOD & BEVERAGES
22-FEB-2023,7020922,11.94,R MANNERS & SONS LTD,013498,Commissioning & Asset Management,Children's & Education Services,103,Supplies and Services,504,Equipment,5023,Revenue,CATERING.FOOD & BEVERAGES
22-FEB-2023,7020922,23.22,R MANNERS & SONS LTD,013498,Commissioning & Asset Management,Children's & Education Services,103,Supplies and Services,504,Equipment,5023,Revenue,CATERING.FOOD & BEVERAGES
22-FEB-2023,7020922,26.71,R MANNERS & SONS LTD,013498,Commissioning & Asset Management,Children's & Education Services,103,Supplies and Services,504,Equipment,5023,Revenue,CATERING.FOOD & BEVERAGES
22-FEB-2023,7020922,35.2,R MANNERS & SONS LTD,013498,Commissioning & Asset Management,Children's & Education Services,103,Supplies and Services,504,Equipment,5023,Revenue,CATERING.FOOD & BEVERAGES
22-FEB-2023,7020922,38.93,R MANNERS & SONS LTD,013498,Commissioning & Asset Management,Children's & Education Services,103,Supplies and Services,504,Equipment,5023,Revenue,CATERING.FOOD & BEVERAGES
22-FEB-2023,7020922,41.64,R MANNERS & SONS LTD,013498,Commissioning & Asset Management,Children's & Education Services,103,Supplies and Services,504,Equipment,5023,Revenue,CATERING.FOOD & BEVERAGES
22-FEB-2023,7020922,42.32,R MANNERS & SONS LTD,013498,Commissioning & Asset Management,Children's & Education Services,103,Supplies and Services,504,Equipment,5023,Revenue,CATERING.FOOD & BEVERAGES
22-FEB-2023,7020922,42.96,R MANNERS & SONS LTD,013498,Commissioning & Asset Management,Children's & Education Services,103,Supplies and Services,504,Equipment,5023,Revenue,CATERING.FOOD & BEVERAGES
22-FEB-2023,7020922,43.68,R MANNERS & SONS LTD,013498,Commissioning & Asset Management,Children's & Education Services,103,Supplies and Services,504,Equipment,5023,Revenue,CATERING.FOOD & BEVERAGES
22-FEB-2023,7020922,47.76,R MANNERS & SONS LTD,013498,Commissioning & Asset Management,Children's & Education Services,103,Supplies and Services,504,Equipment,5023,Revenue,CATERING.FOOD & BEVERAGES
22-FEB-2023,7020922,47.76,R MANNERS & SONS LTD,013498,Commissioning & Asset Management,Children's & Education Services,103,Supplies and Services,504,Equipment,5023,Revenue,CATERING.FOOD & BEVERAGES
22-FEB-2023,7020922,51.6,R MANNERS & SONS LTD,013498,Commissioning & Asset Management,Children's & Education Services,103,Supplies and Services,504,Equipment,5023,Revenue,CATERING.FOOD & BEVERAGES
22-FEB-2023,7020922,52.92,R MANNERS & SONS LTD,013498,Commissioning & Asset Management,Children's & Education Services,103,Supplies and Services,504,Equipment,5023,Revenue,CATERING.FOOD & BEVERAGES
22-FEB-2023,7020922,54.6,R MANNERS & SONS LTD,013498,Commissioning & Asset Management,Children's & Education Services,103,Supplies and Services,504,Equipment,5023,Revenue,CATERING.FOOD & BEVERAGES
22-FEB-2023,7020922,72.1,R MANNERS & SONS LTD,013498,Commissioning & Asset Management,Children's & Education Services,103,Supplies and Services,504,Equipment,5023,Revenue,CATERING.FOOD & BEVERAGES
22-FEB-2023,7020922,3.64,R MANNERS & SONS LTD,013498,Commissioning & Asset Management,Children's & Education Services,103,Supplies and Services,504,Equipment,5023,Revenue,CATERING.FOOD & BEVERAGES
22-FEB-2023,7020922,7.74,R MANNERS & SONS LTD,013498,Commissioning & Asset Management,Children's & Education Services,103,Supplies and Services,504,Equipment,5023,Revenue,CATERING.FOOD & BEVERAGES
22-FEB-2023,7020922,7.74,R MANNERS & SONS LTD,013498,Commissioning & Asset Management,Children's & Education Services,103,Supplies and Services,504,Equipment,5023,Revenue,CATERING.FOOD & BEVERAGES
22-FEB-2023,7020922,11.61,R MANNERS & SONS LTD,013498,Commissioning & Asset Management,Children's & Education Services,103,Supplies and Services,504,Equipment,5023,Revenue,CATERING.FOOD & BEVERAGES
22-FEB-2023,7020922,11.94,R MANNERS & SONS LTD,013498,Commissioning & Asset Management,Children's & Education Services,103,Supplies and Services,504,Equipment,5023,Revenue,CATERING.FOOD & BEVERAGES
22-FEB-2023,7020922,13.42,R MANNERS & SONS LTD,013498,Commissioning & Asset Management,Children's & Education Services,103,Supplies and Services,504,Equipment,5023,Revenue,CATERING.FOOD & BEVERAGES
22-FEB-2023,7020922,16.38,R MANNERS & SONS LTD,013498,Commissioning & Asset Management,Children's & Education Services,103,Supplies and Services,504,Equipment,5023,Revenue,CATERING.FOOD & BEVERAGES
22-FEB-2023,7020922,21.98,R MANNERS & SONS LTD,013498,Commissioning & Asset Management,Children's & Education Services,103,Supplies and Services,504,Equipment,5023,Revenue,CATERING.FOOD & BEVERAGES
22-FEB-2023,7020922,23.88,R MANNERS & SONS LTD,013498,Commissioning & Asset Management,Children's & Education Services,103,Supplies and Services,504,Equipment,5023,Revenue,CATERING.FOOD & BEVERAGES
22-FEB-2023,7020922,27.3,R MANNERS & SONS LTD,013498,Commissioning & Asset Management,Children's & Education Services,103,Supplies and Services,504,Equipment,5023,Revenue,CATERING.FOOD & BEVERAGES
22-FEB-2023,7020922,29.85,R MANNERS & SONS LTD,013498,Commissioning & Asset Management,Children's & Education Services,103,Supplies and Services,504,Equipment,5023,Revenue,CATERING.FOOD & BEVERAGES
22-FEB-2023,7020922,32.76,R MANNERS & SONS LTD,013498,Commissioning & Asset Management,Children's & Education Services,103,Supplies and Services,504,Equipment,5023,Revenue,CATERING.FOOD & BEVERAGES
22-FEB-2023,7020922,34.02,R MANNERS & SONS LTD,013498,Commissioning & Asset Management,Children's & Education Services,103,Supplies and Services,504,Equipment,5023,Revenue,CATERING.FOOD & BEVERAGES
22-FEB-2023,7020922,35.46,R MANNERS & SONS LTD,013498,Commissioning & Asset Management,Children's & Education Services,103,Supplies and Services,504,Equipment,5023,Revenue,CATERING.FOOD & BEVERAGES
22-FEB-2023,7020922,45.51,R MANNERS & SONS LTD,013498,Commissioning & Asset Management,Children's & Education Services,103,Supplies and Services,504,Equipment,5023,Revenue,CATERING.FOOD & BEVERAGES
22-FEB-2023,7020922,10.92,R MANNERS & SONS LTD,013498,Commissioning & Asset Management,Children's & Education Services,103,Supplies and Services,504,Equipment,5023,Revenue,CATERING.FOOD & BEVERAGES
22-FEB-2023,7020922,16.38,R MANNERS & SONS LTD,013498,Commissioning & Asset Management,Children's & Education Services,103,Supplies and Services,504,Equipment,5023,Revenue,CATERING.FOOD & BEVERAGES
22-FEB-2023,7020922,35.82,R MANNERS & SONS LTD,013498,Commissioning & Asset Management,Children's & Education Services,103,Supplies and Services,504,Equipment,5023,Revenue,CATERING.FOOD & BEVERAGES
22-FEB-2023,7020922,35.82,R MANNERS & SONS LTD,013498,Commissioning & Asset Management,Children's & Education Services,103,Supplies and Services,504,Equipment,5023,Revenue,CATERING.FOOD & BEVERAGES
22-FEB-2023,7020922,43.68,R MANNERS & SONS LTD,013498,Commissioning & Asset Management,Children's & Education Services,103,Supplies and Services,504,Equipment,5023,Revenue,CATERING.FOOD & BEVERAGES
22-FEB-2023,7020922,43.87,R MANNERS & SONS LTD,013498,Commissioning & Asset Management,Children's & Education Services,103,Supplies and Services,504,Equipment,5023,Revenue,CATERING.FOOD & BEVERAGES
22-FEB-2023,7020922,47.76,R MANNERS & SONS LTD,013498,Commissioning & Asset Management,Children's & Education Services,103,Supplies and Services,504,Equipment,5023,Revenue,CATERING.FOOD & BEVERAGES
22-FEB-2023,7020922,47.76,R MANNERS & SONS LTD,013498,Commissioning & Asset Management,Children's & Education Services,103,Supplies and Services,504,Equipment,5023,Revenue,CATERING.FOOD & BEVERAGES
22-FEB-2023,7020922,53.73,R MANNERS & SONS LTD,013498,Commissioning & Asset Management,Children's & Education Services,103,Supplies and Services,504,Equipment,5023,Revenue,CATERING.FOOD & BEVERAGES
22-FEB-2023,7020922,54.04,R MANNERS & SONS LTD,013498,Commissioning & Asset Management,Children's & Education Services,103,Supplies and Services,504,Equipment,5023,Revenue,CATERING.FOOD & BEVERAGES
22-FEB-2023,7020922,60.06,R MANNERS & SONS LTD,013498,Commissioning & Asset Management,Children's & Education Services,103,Supplies and Services,504,Equipment,5023,Revenue,CATERING.FOOD & BEVERAGES
22-FEB-2023,7020922,61.6,R MANNERS & SONS LTD,013498,Commissioning & Asset Management,Children's & Education Services,103,Supplies and Services,504,Equipment,5023,Revenue,CATERING.FOOD & BEVERAGES
22-FEB-2023,7020922,98.28,R MANNERS & SONS LTD,013498,Commissioning & Asset Management,Children's & Education Services,103,Supplies and Services,504,Equipment,5023,Revenue,CATERING.FOOD & BEVERAGES
22-FEB-2023,7020922,101.02,R MANNERS & SONS LTD,013498,Commissioning & Asset Management,Children's & Education Services,103,Supplies and Services,504,Equipment,5023,Revenue,CATERING.FOOD & BEVERAGES
22-FEB-2023,7020922,7.28,R MANNERS & SONS LTD,013498,Commissioning & Asset Management,Children's & Education Services,103,Supplies and Services,504,Equipment,5023,Revenue,CATERING.FOOD & BEVERAGES
22-FEB-2023,7020922,11.94,R MANNERS & SONS LTD,013498,Commissioning & Asset Management,Children's & Education Services,103,Supplies and Services,504,Equipment,5023,Revenue,CATERING.FOOD & BEVERAGES
22-FEB-2023,7020922,11.94,R MANNERS & SONS LTD,013498,Commissioning & Asset Management,Children's & Education Services,103,Supplies and Services,504,Equipment,5023,Revenue,CATERING.FOOD & BEVERAGES
22-FEB-2023,7020922,19.31,R MANNERS & SONS LTD,013498,Commissioning & Asset Management,Children's & Education Services,103,Supplies and Services,504,Equipment,5023,Revenue,CATERING.FOOD & BEVERAGES
22-FEB-2023,7020922,23.88,R MANNERS & SONS LTD,013498,Commissioning & Asset Management,Children's & Education Services,103,Supplies and Services,504,Equipment,5023,Revenue,CATERING.FOOD & BEVERAGES
22-FEB-2023,7020922,23.88,R MANNERS & SONS LTD,013498,Commissioning & Asset Management,Children's & Education Services,103,Supplies and Services,504,Equipment,5023,Revenue,CATERING.FOOD & BEVERAGES
22-FEB-2023,7020922,32.76,R MANNERS & SONS LTD,013498,Commissioning & Asset Management,Children's & Education Services,103,Supplies and Services,504,Equipment,5023,Revenue,CATERING.FOOD & BEVERAGES
22-FEB-2023,7020922,32.76,R MANNERS & SONS LTD,013498,Commissioning & Asset Management,Children's & Education Services,103,Supplies and Services,504,Equipment,5023,Revenue,CATERING.FOOD & BEVERAGES
22-FEB-2023,7020922,47.76,R MANNERS & SONS LTD,013498,Commissioning & Asset Management,Children's & Education Services,103,Supplies and Services,504,Equipment,5023,Revenue,CATERING.FOOD & BEVERAGES
22-FEB-2023,7020922,47.76,R MANNERS & SONS LTD,013498,Commissioning & Asset Management,Children's & Education Services,103,Supplies and Services,504,Equipment,5023,Revenue,CATERING.FOOD & BEVERAGES
22-FEB-2023,7020922,47.76,R MANNERS & SONS LTD,013498,Commissioning & Asset Management,Children's & Education Services,103,Supplies and Services,504,Equipment,5023,Revenue,CATERING.FOOD & BEVERAGES
22-FEB-2023,7020922,47.76,R MANNERS & SONS LTD,013498,Commissioning & Asset Management,Children's & Education Services,103,Supplies and Services,504,Equipment,5023,Revenue,CATERING.FOOD & BEVERAGES
22-FEB-2023,7020922,55.06,R MANNERS & SONS LTD,013498,Commissioning & Asset Management,Children's & Education Services,103,Supplies and Services,504,Equipment,5023,Revenue,CATERING.FOOD & BEVERAGES
22-FEB-2023,7020922,58.64,R MANNERS & SONS LTD,013498,Commissioning & Asset Management,Children's & Education Services,103,Supplies and Services,504,Equipment,5023,Revenue,CATERING.FOOD & BEVERAGES
22-FEB-2023,7020922,107.1,R MANNERS & SONS LTD,013498,Commissioning & Asset Management,Children's & Education Services,103,Supplies and Services,504,Equipment,5023,Revenue,CATERING.FOOD & BEVERAGES
22-FEB-2023,7020922,10.41,R MANNERS & SONS LTD,013498,Commissioning & Asset Management,Children's & Education Services,103,Supplies and Services,504,Equipment,5023,Revenue,CATERING.FOOD & BEVERAGES
22-FEB-2023,7020922,20.82,R MANNERS & SONS LTD,013498,Commissioning & Asset Management,Children's & Education Services,103,Supplies and Services,504,Equipment,5023,Revenue,CATERING.FOOD & BEVERAGES
22-FEB-2023,7020922,21.16,R MANNERS & SONS LTD,013498,Commissioning & Asset Management,Children's & Education Services,103,Supplies and Services,504,Equipment,5023,Revenue,CATERING.FOOD & BEVERAGES
22-FEB-2023,7020922,23.12,R MANNERS & SONS LTD,013498,Commissioning & Asset Management,Children's & Education Services,103,Supplies and Services,504,Equipment,5023,Revenue,CATERING.FOOD & BEVERAGES
22-FEB-2023,7020922,23.22,R MANNERS & SONS LTD,013498,Commissioning & Asset Management,Children's & Education Services,103,Supplies and Services,504,Equipment,5023,Revenue,CATERING.FOOD & BEVERAGES
22-FEB-2023,7020922,24.92,R MANNERS & SONS LTD,013498,Commissioning & Asset Management,Children's & Education Services,103,Supplies and Services,504,Equipment,5023,Revenue,CATERING.FOOD & BEVERAGES
22-FEB-2023,7020922,26.4,R MANNERS & SONS LTD,013498,Commissioning & Asset Management,Children's & Education Services,103,Supplies and Services,504,Equipment,5023,Revenue,CATERING.FOOD & BEVERAGES
22-FEB-2023,7020922,28.91,R MANNERS & SONS LTD,013498,Commissioning & Asset Management,Children's & Education Services,103,Supplies and Services,504,Equipment,5023,Revenue,CATERING.FOOD & BEVERAGES
22-FEB-2023,7020922,31.23,R MANNERS & SONS LTD,013498,Commissioning & Asset Management,Children's & Education Services,103,Supplies and Services,504,Equipment,5023,Revenue,CATERING.FOOD & BEVERAGES
22-FEB-2023,7020922,41.64,R MANNERS & SONS LTD,013498,Commissioning & Asset Management,Children's & Education Services,103,Supplies and Services,504,Equipment,5023,Revenue,CATERING.FOOD & BEVERAGES
22-FEB-2023,7020922,41.64,R MANNERS & SONS LTD,013498,Commissioning & Asset Management,Children's & Education Services,103,Supplies and Services,504,Equipment,5023,Revenue,CATERING.FOOD & BEVERAGES
22-FEB-2023,7020922,49.14,R MANNERS & SONS LTD,013498,Commissioning & Asset Management,Children's & Education Services,103,Supplies and Services,504,Equipment,5023,Revenue,CATERING.FOOD & BEVERAGES
22-FEB-2023,7020922,53.73,R MANNERS & SONS LTD,013498,Commissioning & Asset Management,Children's & Education Services,103,Supplies and Services,504,Equipment,5023,Revenue,CATERING.FOOD & BEVERAGES
22-FEB-2023,7020922,60.52,R MANNERS & SONS LTD,013498,Commissioning & Asset Management,Children's & Education Services,103,Supplies and Services,504,Equipment,5023,Revenue,CATERING.FOOD & BEVERAGES
22-FEB-2023,7020922,62.07,R MANNERS & SONS LTD,013498,Commissioning & Asset Management,Children's & Education Services,103,Supplies and Services,504,Equipment,5023,Revenue,CATERING.FOOD & BEVERAGES
22-FEB-2023,7020922,261.49,R MANNERS & SONS LTD,013498,Commissioning & Asset Management,Children's & Education Services,103,Supplies and Services,504,Equipment,5023,Revenue,CATERING.FOOD & BEVERAGES
22-FEB-2023,7020922,6.28,R MANNERS & SONS LTD,013498,Commissioning & Asset Management,Children's & Education Services,103,Supplies and Services,504,Equipment,5023,Revenue,CATERING.FOOD & BEVERAGES
22-FEB-2023,7020922,11.06,R MANNERS & SONS LTD,013498,Commissioning & Asset Management,Children's & Education Services,103,Supplies and Services,504,Equipment,5023,Revenue,CATERING.FOOD & BEVERAGES
22-FEB-2023,7020922,11.5,R MANNERS & SONS LTD,013498,Commissioning & Asset Management,Children's & Education Services,103,Supplies and Services,504,Equipment,5023,Revenue,CATERING.FOOD & BEVERAGES
22-FEB-2023,7020922,14.83,R MANNERS & SONS LTD,013498,Commissioning & Asset Management,Children's & Education Services,103,Supplies and Services,504,Equipment,5023,Revenue,CATERING.FOOD & BEVERAGES
22-FEB-2023,7020922,22.13,R MANNERS & SONS LTD,013498,Commissioning & Asset Management,Children's & Education Services,103,Supplies and Services,504,Equipment,5023,Revenue,CATERING.FOOD & BEVERAGES
22-FEB-2023,7020922,22.37,R MANNERS & SONS LTD,013498,Commissioning & Asset Management,Children's & Education Services,103,Supplies and Services,504,Equipment,5023,Revenue,CATERING.FOOD & BEVERAGES
22-FEB-2023,7020922,23,R MANNERS & SONS LTD,013498,Commissioning & Asset Management,Children's & Education Services,103,Supplies and Services,504,Equipment,5023,Revenue,CATERING.FOOD & BEVERAGES
22-FEB-2023,7020922,24.38,R MANNERS & SONS LTD,013498,Commissioning & Asset Management,Children's & Education Services,103,Supplies and Services,504,Equipment,5023,Revenue,CATERING.FOOD & BEVERAGES
22-FEB-2023,7020922,25.14,R MANNERS & SONS LTD,013498,Commissioning & Asset Management,Children's & Education Services,103,Supplies and Services,504,Equipment,5023,Revenue,CATERING.FOOD & BEVERAGES
22-FEB-2023,7020922,37.71,R MANNERS & SONS LTD,013498,Commissioning & Asset Management,Children's & Education Services,103,Supplies and Services,504,Equipment,5023,Revenue,CATERING.FOOD & BEVERAGES
22-FEB-2023,7020922,37.71,R MANNERS & SONS LTD,013498,Commissioning & Asset Management,Children's & Education Services,103,Supplies and Services,504,Equipment,5023,Revenue,CATERING.FOOD & BEVERAGES
22-FEB-2023,7020922,40.7,R MANNERS & SONS LTD,013498,Commissioning & Asset Management,Children's & Education Services,103,Supplies and Services,504,Equipment,5023,Revenue,CATERING.FOOD & BEVERAGES
22-FEB-2023,7020922,40.7,R MANNERS & SONS LTD,013498,Commissioning & Asset Management,Children's & Education Services,103,Supplies and Services,504,Equipment,5023,Revenue,CATERING.FOOD & BEVERAGES
22-FEB-2023,7020922,3.64,R MANNERS & SONS LTD,013498,Commissioning & Asset Management,Children's & Education Services,103,Supplies and Services,504,Equipment,5023,Revenue,CATERING.FOOD & BEVERAGES
22-FEB-2023,7020922,5.97,R MANNERS & SONS LTD,013498,Commissioning & Asset Management,Children's & Education Services,103,Supplies and Services,504,Equipment,5023,Revenue,CATERING.FOOD & BEVERAGES
22-FEB-2023,7020922,11.94,R MANNERS & SONS LTD,013498,Commissioning & Asset Management,Children's & Education Services,103,Supplies and Services,504,Equipment,5023,Revenue,CATERING.FOOD & BEVERAGES
22-FEB-2023,7020922,11.94,R MANNERS & SONS LTD,013498,Commissioning & Asset Management,Children's & Education Services,103,Supplies and Services,504,Equipment,5023,Revenue,CATERING.FOOD & BEVERAGES
22-FEB-2023,7020922,11.94,R MANNERS & SONS LTD,013498,Commissioning & Asset Management,Children's & Education Services,103,Supplies and Services,504,Equipment,5023,Revenue,CATERING.FOOD & BEVERAGES
22-FEB-2023,7020922,13.41,R MANNERS & SONS LTD,013498,Commissioning & Asset Management,Children's & Education Services,103,Supplies and Services,504,Equipment,5023,Revenue,CATERING.FOOD & BEVERAGES
22-FEB-2023,7020922,14.87,R MANNERS & SONS LTD,013498,Commissioning & Asset Management,Children's & Education Services,103,Supplies and Services,504,Equipment,5023,Revenue,CATERING.FOOD & BEVERAGES
22-FEB-2023,7020922,16.38,R MANNERS & SONS LTD,013498,Commissioning & Asset Management,Children's & Education Services,103,Supplies and Services,504,Equipment,5023,Revenue,CATERING.FOOD & BEVERAGES
22-FEB-2023,7020922,16.38,R MANNERS & SONS LTD,013498,Commissioning & Asset Management,Children's & Education Services,103,Supplies and Services,504,Equipment,5023,Revenue,CATERING.FOOD & BEVERAGES
22-FEB-2023,7020922,17.91,R MANNERS & SONS LTD,013498,Commissioning & Asset Management,Children's & Education Services,103,Supplies and Services,504,Equipment,5023,Revenue,CATERING.FOOD & BEVERAGES
22-FEB-2023,7020922,21.84,R MANNERS & SONS LTD,013498,Commissioning & Asset Management,Children's & Education Services,103,Supplies and Services,504,Equipment,5023,Revenue,CATERING.FOOD & BEVERAGES
22-FEB-2023,7020922,22.57,R MANNERS & SONS LTD,013498,Commissioning & Asset Management,Children's & Education Services,103,Supplies and Services,504,Equipment,5023,Revenue,CATERING.FOOD & BEVERAGES
22-FEB-2023,7020922,23.88,R MANNERS & SONS LTD,013498,Commissioning & Asset Management,Children's & Education Services,103,Supplies and Services,504,Equipment,5023,Revenue,CATERING.FOOD & BEVERAGES
22-FEB-2023,7020922,26.18,R MANNERS & SONS LTD,013498,Commissioning & Asset Management,Children's & Education Services,103,Supplies and Services,504,Equipment,5023,Revenue,CATERING.FOOD & BEVERAGES
22-FEB-2023,7020922,44.44,R MANNERS & SONS LTD,013498,Commissioning & Asset Management,Children's & Education Services,103,Supplies and Services,504,Equipment,5023,Revenue,CATERING.FOOD & BEVERAGES
22-FEB-2023,7020922,44.62,R MANNERS & SONS LTD,013498,Commissioning & Asset Management,Children's & Education Services,103,Supplies and Services,504,Equipment,5023,Revenue,CATERING.FOOD & BEVERAGES
22-FEB-2023,7020922,47.76,R MANNERS & SONS LTD,013498,Commissioning & Asset Management,Children's & Education Services,103,Supplies and Services,504,Equipment,5023,Revenue,CATERING.FOOD & BEVERAGES
22-FEB-2023,7020922,47.76,R MANNERS & SONS LTD,013498,Commissioning & Asset Management,Children's & Education Services,103,Supplies and Services,504,Equipment,5023,Revenue,CATERING.FOOD & BEVERAGES
22-FEB-2023,7020922,47.76,R MANNERS & SONS LTD,013498,Commissioning & Asset Management,Children's & Education Services,103,Supplies and Services,504,Equipment,5023,Revenue,CATERING.FOOD & BEVERAGES
22-FEB-2023,7020922,11.94,R MANNERS & SONS LTD,013498,Commissioning & Asset Management,Children's & Education Services,103,Supplies and Services,504,Equipment,5023,Revenue,CATERING.FOOD & BEVERAGES
22-FEB-2023,7020922,11.94,R MANNERS & SONS LTD,013498,Commissioning & Asset Management,Children's & Education Services,103,Supplies and Services,504,Equipment,5023,Revenue,CATERING.FOOD & BEVERAGES
22-FEB-2023,7020922,11.94,R MANNERS & SONS LTD,013498,Commissioning & Asset Management,Children's & Education Services,103,Supplies and Services,504,Equipment,5023,Revenue,CATERING.FOOD & BEVERAGES
22-FEB-2023,7020922,11.94,R MANNERS & SONS LTD,013498,Commissioning & Asset Management,Children's & Education Services,103,Supplies and Services,504,Equipment,5023,Revenue,CATERING.FOOD & BEVERAGES
22-FEB-2023,7020922,16.38,R MANNERS & SONS LTD,013498,Commissioning & Asset Management,Children's & Education Services,103,Supplies and Services,504,Equipment,5023,Revenue,CATERING.FOOD & BEVERAGES
22-FEB-2023,7020922,16.38,R MANNERS & SONS LTD,013498,Commissioning & Asset Management,Children's & Education Services,103,Supplies and Services,504,Equipment,5023,Revenue,CATERING.FOOD & BEVERAGES
22-FEB-2023,7020922,24,R MANNERS & SONS LTD,013498,Commissioning & Asset Management,Children's & Education Services,103,Supplies and Services,504,Equipment,5023,Revenue,CATERING.FOOD & BEVERAGES
22-FEB-2023,7020922,24,R MANNERS & SONS LTD,013498,Commissioning & Asset Management,Children's & Education Services,103,Supplies and Services,504,Equipment,5023,Revenue,CATERING.FOOD & BEVERAGES
22-FEB-2023,7020922,28.52,R MANNERS & SONS LTD,013498,Commissioning & Asset Management,Children's & Education Services,103,Supplies and Services,504,Equipment,5023,Revenue,CATERING.FOOD & BEVERAGES
22-FEB-2023,7020922,38.22,R MANNERS & SONS LTD,013498,Commissioning & Asset Management,Children's & Education Services,103,Supplies and Services,504,Equipment,5023,Revenue,CATERING.FOOD & BEVERAGES
22-FEB-2023,7020922,48.44,R MANNERS & SONS LTD,013498,Commissioning & Asset Management,Children's & Education Services,103,Supplies and Services,504,Equipment,5023,Revenue,CATERING.FOOD & BEVERAGES
22-FEB-2023,7020922,2.65,R MANNERS & SONS LTD,013498,Commissioning & Asset Management,Children's & Education Services,103,Supplies and Services,504,Equipment,5023,Revenue,CATERING.FOOD & BEVERAGES
22-FEB-2023,7020922,2.73,R MANNERS & SONS LTD,013498,Commissioning & Asset Management,Children's & Education Services,103,Supplies and Services,504,Equipment,5023,Revenue,CATERING.FOOD & BEVERAGES
22-FEB-2023,7020922,2.99,R MANNERS & SONS LTD,013498,Commissioning & Asset Management,Children's & Education Services,103,Supplies and Services,504,Equipment,5023,Revenue,CATERING.FOOD & BEVERAGES
22-FEB-2023,7020922,2.99,R MANNERS & SONS LTD,013498,Commissioning & Asset Management,Children's & Education Services,103,Supplies and Services,504,Equipment,5023,Revenue,CATERING.FOOD & BEVERAGES
22-FEB-2023,7020922,5.46,R MANNERS & SONS LTD,013498,Commissioning & Asset Management,Children's & Education Services,103,Supplies and Services,504,Equipment,5023,Revenue,CATERING.FOOD & BEVERAGES
22-FEB-2023,7020922,5.46,R MANNERS & SONS LTD,013498,Commissioning & Asset Management,Children's & Education Services,103,Supplies and Services,504,Equipment,5023,Revenue,CATERING.FOOD & BEVERAGES
22-FEB-2023,7020922,5.46,R MANNERS & SONS LTD,013498,Commissioning & Asset Management,Children's & Education Services,103,Supplies and Services,504,Equipment,5023,Revenue,CATERING.FOOD & BEVERAGES
22-FEB-2023,7020922,5.46,R MANNERS & SONS LTD,013498,Commissioning & Asset Management,Children's & Education Services,103,Supplies and Services,504,Equipment,5023,Revenue,CATERING.FOOD & BEVERAGES
22-FEB-2023,7020922,5.78,R MANNERS & SONS LTD,013498,Commissioning & Asset Management,Children's & Education Services,103,Supplies and Services,504,Equipment,5023,Revenue,CATERING.FOOD & BEVERAGES
22-FEB-2023,7020922,5.97,R MANNERS & SONS LTD,013498,Commissioning & Asset Management,Children's & Education Services,103,Supplies and Services,504,Equipment,5023,Revenue,CATERING.FOOD & BEVERAGES
22-FEB-2023,7020922,5.97,R MANNERS & SONS LTD,013498,Commissioning & Asset Management,Children's & Education Services,103,Supplies and Services,504,Equipment,5023,Revenue,CATERING.FOOD & BEVERAGES
22-FEB-2023,7020922,8.8,R MANNERS & SONS LTD,013498,Commissioning & Asset Management,Children's & Education Services,103,Supplies and Services,504,Equipment,5023,Revenue,CATERING.FOOD & BEVERAGES
22-FEB-2023,7020922,10.58,R MANNERS & SONS LTD,013498,Commissioning & Asset Management,Children's & Education Services,103,Supplies and Services,504,Equipment,5023,Revenue,CATERING.FOOD & BEVERAGES
22-FEB-2023,7020922,13.2,R MANNERS & SONS LTD,013498,Commissioning & Asset Management,Children's & Education Services,103,Supplies and Services,504,Equipment,5023,Revenue,CATERING.FOOD & BEVERAGES
22-FEB-2023,7020922,16.38,R MANNERS & SONS LTD,013498,Commissioning & Asset Management,Children's & Education Services,103,Supplies and Services,504,Equipment,5023,Revenue,CATERING.FOOD & BEVERAGES
22-FEB-2023,7020922,16.73,R MANNERS & SONS LTD,013498,Commissioning & Asset Management,Children's & Education Services,103,Supplies and Services,504,Equipment,5023,Revenue,CATERING.FOOD & BEVERAGES
22-FEB-2023,7020922,21.76,R MANNERS & SONS LTD,013498,Commissioning & Asset Management,Children's & Education Services,103,Supplies and Services,504,Equipment,5023,Revenue,CATERING.FOOD & BEVERAGES
22-FEB-2023,7020922,26.04,R MANNERS & SONS LTD,013498,Commissioning & Asset Management,Children's & Education Services,103,Supplies and Services,504,Equipment,5023,Revenue,CATERING.FOOD & BEVERAGES
22-FEB-2023,7020922,20,R MANNERS & SONS LTD,013498,Commissioning & Asset Management,Children's & Education Services,103,Supplies and Services,504,Equipment,5023,Revenue,CATERING.FOOD & BEVERAGES
22-FEB-2023,7020922,21.84,R MANNERS & SONS LTD,013498,Commissioning & Asset Management,Children's & Education Services,103,Supplies and Services,504,Equipment,5023,Revenue,CATERING.FOOD & BEVERAGES
22-FEB-2023,7020922,27.3,R MANNERS & SONS LTD,013498,Commissioning & Asset Management,Children's & Education Services,103,Supplies and Services,504,Equipment,5023,Revenue,CATERING.FOOD & BEVERAGES
22-FEB-2023,7020922,28.98,R MANNERS & SONS LTD,013498,Commissioning & Asset Management,Children's & Education Services,103,Supplies and Services,504,Equipment,5023,Revenue,CATERING.FOOD & BEVERAGES
22-FEB-2023,7020922,29.85,R MANNERS & SONS LTD,013498,Commissioning & Asset Management,Children's & Education Services,103,Supplies and Services,504,Equipment,5023,Revenue,CATERING.FOOD & BEVERAGES
22-FEB-2023,7020922,36.96,R MANNERS & SONS LTD,013498,Commissioning & Asset Management,Children's & Education Services,103,Supplies and Services,504,Equipment,5023,Revenue,CATERING.FOOD & BEVERAGES
22-FEB-2023,7020922,5.46,R MANNERS & SONS LTD,013498,Commissioning & Asset Management,Children's & Education Services,103,Supplies and Services,504,Equipment,5023,Revenue,CATERING.FOOD & BEVERAGES
22-FEB-2023,7020922,5.97,R MANNERS & SONS LTD,013498,Commissioning & Asset Management,Children's & Education Services,103,Supplies and Services,504,Equipment,5023,Revenue,CATERING.FOOD & BEVERAGES
22-FEB-2023,7020922,5.97,R MANNERS & SONS LTD,013498,Commissioning & Asset Management,Children's & Education Services,103,Supplies and Services,504,Equipment,5023,Revenue,CATERING.FOOD & BEVERAGES
22-FEB-2023,7020922,6.52,R MANNERS & SONS LTD,013498,Commissioning & Asset Management,Children's & Education Services,103,Supplies and Services,504,Equipment,5023,Revenue,CATERING.FOOD & BEVERAGES
22-FEB-2023,7020922,7.02,R MANNERS & SONS LTD,013498,Commissioning & Asset Management,Children's & Education Services,103,Supplies and Services,504,Equipment,5023,Revenue,CATERING.FOOD & BEVERAGES
22-FEB-2023,7020922,7.05,R MANNERS & SONS LTD,013498,Commissioning & Asset Management,Children's & Education Services,103,Supplies and Services,504,Equipment,5023,Revenue,CATERING.FOOD & BEVERAGES
22-FEB-2023,7020922,8.8,R MANNERS & SONS LTD,013498,Commissioning & Asset Management,Children's & Education Services,103,Supplies and Services,504,Equipment,5023,Revenue,CATERING.FOOD & BEVERAGES
22-FEB-2023,7020922,11.94,R MANNERS & SONS LTD,013498,Commissioning & Asset Management,Children's & Education Services,103,Supplies and Services,504,Equipment,5023,Revenue,CATERING.FOOD & BEVERAGES
22-FEB-2023,7020922,32.76,R MANNERS & SONS LTD,013498,Commissioning & Asset Management,Children's & Education Services,103,Supplies and Services,504,Equipment,5023,Revenue,CATERING.FOOD & BEVERAGES
22-FEB-2023,7020922,35.66,R MANNERS & SONS LTD,013498,Commissioning & Asset Management,Children's & Education Services,103,Supplies and Services,504,Equipment,5023,Revenue,CATERING.FOOD & BEVERAGES
22-FEB-2023,7020922,36.75,R MANNERS & SONS LTD,013498,Commissioning & Asset Management,Children's & Education Services,103,Supplies and Services,504,Equipment,5023,Revenue,CATERING.FOOD & BEVERAGES
22-FEB-2023,7020922,38.22,R MANNERS & SONS LTD,013498,Commissioning & Asset Management,Children's & Education Services,103,Supplies and Services,504,Equipment,5023,Revenue,CATERING.FOOD & BEVERAGES
22-FEB-2023,7020922,38.22,R MANNERS & SONS LTD,013498,Commissioning & Asset Management,Children's & Education Services,103,Supplies and Services,504,Equipment,5023,Revenue,CATERING.FOOD & BEVERAGES
22-FEB-2023,7020922,38.22,R MANNERS & SONS LTD,013498,Commissioning & Asset Management,Children's & Education Services,103,Supplies and Services,504,Equipment,5023,Revenue,CATERING.FOOD & BEVERAGES
22-FEB-2023,7020922,43.99,R MANNERS & SONS LTD,013498,Commissioning & Asset Management,Children's & Education Services,103,Supplies and Services,504,Equipment,5023,Revenue,CATERING.FOOD & BEVERAGES
22-FEB-2023,7020922,44.94,R MANNERS & SONS LTD,013498,Commissioning & Asset Management,Children's & Education Services,103,Supplies and Services,504,Equipment,5023,Revenue,CATERING.FOOD & BEVERAGES
22-FEB-2023,7020922,5.75,R MANNERS & SONS LTD,013498,Commissioning & Asset Management,Children's & Education Services,103,Supplies and Services,504,Equipment,5023,Revenue,CATERING.FOOD & BEVERAGES
22-FEB-2023,7020922,31.4,R MANNERS & SONS LTD,013498,Commissioning & Asset Management,Children's & Education Services,103,Supplies and Services,504,Equipment,5023,Revenue,CATERING.FOOD & BEVERAGES
22-FEB-2023,7020922,31.4,R MANNERS & SONS LTD,013498,Commissioning & Asset Management,Children's & Education Services,103,Supplies and Services,504,Equipment,5023,Revenue,CATERING.FOOD & BEVERAGES
22-FEB-2023,7020922,33.42,R MANNERS & SONS LTD,013498,Commissioning & Asset Management,Children's & Education Services,103,Supplies and Services,504,Equipment,5023,Revenue,CATERING.FOOD & BEVERAGES
22-FEB-2023,7020922,34.5,R MANNERS & SONS LTD,013498,Commissioning & Asset Management,Children's & Education Services,103,Supplies and Services,504,Equipment,5023,Revenue,CATERING.FOOD & BEVERAGES
22-FEB-2023,7020922,36.63,R MANNERS & SONS LTD,013498,Commissioning & Asset Management,Children's & Education Services,103,Supplies and Services,504,Equipment,5023,Revenue,CATERING.FOOD & BEVERAGES
22-FEB-2023,7020922,37.68,R MANNERS & SONS LTD,013498,Commissioning & Asset Management,Children's & Education Services,103,Supplies and Services,504,Equipment,5023,Revenue,CATERING.FOOD & BEVERAGES
22-FEB-2023,7020922,57.75,R MANNERS & SONS LTD,013498,Commissioning & Asset Management,Children's & Education Services,103,Supplies and Services,504,Equipment,5023,Revenue,CATERING.FOOD & BEVERAGES
22-FEB-2023,7020922,60.37,R MANNERS & SONS LTD,013498,Commissioning & Asset Management,Children's & Education Services,103,Supplies and Services,504,Equipment,5023,Revenue,CATERING.FOOD & BEVERAGES
22-FEB-2023,7020922,33.42,R MANNERS & SONS LTD,013498,Commissioning & Asset Management,Children's & Education Services,103,Supplies and Services,504,Equipment,5023,Revenue,CATERING.FOOD & BEVERAGES
22-FEB-2023,7020922,34.5,R MANNERS & SONS LTD,013498,Commissioning & Asset Management,Children's & Education Services,103,Supplies and Services,504,Equipment,5023,Revenue,CATERING.FOOD & BEVERAGES
22-FEB-2023,7020922,63.63,R MANNERS & SONS LTD,013498,Commissioning & Asset Management,Children's & Education Services,103,Supplies and Services,504,Equipment,5023,Revenue,CATERING.FOOD & BEVERAGES
22-FEB-2023,7020922,92.47,R MANNERS & SONS LTD,013498,Commissioning & Asset Management,Children's & Education Services,103,Supplies and Services,504,Equipment,5023,Revenue,CATERING.FOOD & BEVERAGES
22-FEB-2023,7020922,35.7,R MANNERS & SONS LTD,013498,Commissioning & Asset Management,Children's & Education Services,103,Supplies and Services,504,Equipment,5023,Revenue,CATERING.FOOD & BEVERAGES
22-FEB-2023,7020922,36.63,R MANNERS & SONS LTD,013498,Commissioning & Asset Management,Children's & Education Services,103,Supplies and Services,504,Equipment,5023,Revenue,CATERING.FOOD & BEVERAGES
22-FEB-2023,7020922,40.25,R MANNERS & SONS LTD,013498,Commissioning & Asset Management,Children's & Education Services,103,Supplies and Services,504,Equipment,5023,Revenue,CATERING.FOOD & BEVERAGES
22-FEB-2023,7020922,40.25,R MANNERS & SONS LTD,013498,Commissioning & Asset Management,Children's & Education Services,103,Supplies and Services,504,Equipment,5023,Revenue,CATERING.FOOD & BEVERAGES
22-FEB-2023,7020922,50.24,R MANNERS & SONS LTD,013498,Commissioning & Asset Management,Children's & Education Services,103,Supplies and Services,504,Equipment,5023,Revenue,CATERING.FOOD & BEVERAGES
22-FEB-2023,7020922,58.98,R MANNERS & SONS LTD,013498,Commissioning & Asset Management,Children's & Education Services,103,Supplies and Services,504,Equipment,5023,Revenue,CATERING.FOOD & BEVERAGES
22-FEB-2023,7020922,93.75,R MANNERS & SONS LTD,013498,Commissioning & Asset Management,Children's & Education Services,103,Supplies and Services,504,Equipment,5023,Revenue,CATERING.FOOD & BEVERAGES
22-FEB-2023,7020922,29.85,R MANNERS & SONS LTD,013498,Commissioning & Asset Management,Children's & Education Services,103,Supplies and Services,504,Equipment,5023,Revenue,CATERING.FOOD & BEVERAGES
22-FEB-2023,7020922,38.22,R MANNERS & SONS LTD,013498,Commissioning & Asset Management,Children's & Education Services,103,Supplies and Services,504,Equipment,5023,Revenue,CATERING.FOOD & BEVERAGES
22-FEB-2023,7020922,41.79,R MANNERS & SONS LTD,013498,Commissioning & Asset Management,Children's & Education Services,103,Supplies and Services,504,Equipment,5023,Revenue,CATERING.FOOD & BEVERAGES
22-FEB-2023,7020922,54.6,R MANNERS & SONS LTD,013498,Commissioning & Asset Management,Children's & Education Services,103,Supplies and Services,504,Equipment,5023,Revenue,CATERING.FOOD & BEVERAGES
22-FEB-2023,7020922,58.82,R MANNERS & SONS LTD,013498,Commissioning & Asset Management,Children's & Education Services,103,Supplies and Services,504,Equipment,5023,Revenue,CATERING.FOOD & BEVERAGES
22-FEB-2023,7020922,77.4,R MANNERS & SONS LTD,013498,Commissioning & Asset Management,Children's & Education Services,103,Supplies and Services,504,Equipment,5023,Revenue,CATERING.FOOD & BEVERAGES
22-FEB-2023,7020922,83.44,R MANNERS & SONS LTD,013498,Commissioning & Asset Management,Children's & Education Services,103,Supplies and Services,504,Equipment,5023,Revenue,CATERING.FOOD & BEVERAGES
22-FEB-2023,7020922,5.29,R MANNERS & SONS LTD,013498,Commissioning & Asset Management,Children's & Education Services,103,Supplies and Services,504,Equipment,5023,Revenue,CATERING.FOOD & BEVERAGES
22-FEB-2023,7020922,11.94,R MANNERS & SONS LTD,013498,Commissioning & Asset Management,Children's & Education Services,103,Supplies and Services,504,Equipment,5023,Revenue,CATERING.FOOD & BEVERAGES
22-FEB-2023,7020922,23.88,R MANNERS & SONS LTD,013498,Commissioning & Asset Management,Children's & Education Services,103,Supplies and Services,504,Equipment,5023,Revenue,CATERING.FOOD & BEVERAGES
22-FEB-2023,7020922,38.7,R MANNERS & SONS LTD,013498,Commissioning & Asset Management,Children's & Education Services,103,Supplies and Services,504,Equipment,5023,Revenue,CATERING.FOOD & BEVERAGES
22-FEB-2023,7020922,49.06,R MANNERS & SONS LTD,013498,Commissioning & Asset Management,Children's & Education Services,103,Supplies and Services,504,Equipment,5023,Revenue,CATERING.FOOD & BEVERAGES
22-FEB-2023,7020922,52.71,R MANNERS & SONS LTD,013498,Commissioning & Asset Management,Children's & Education Services,103,Supplies and Services,504,Equipment,5023,Revenue,CATERING.FOOD & BEVERAGES
22-FEB-2023,7020922,63.48,R MANNERS & SONS LTD,013498,Commissioning & Asset Management,Children's & Education Services,103,Supplies and Services,504,Equipment,5023,Revenue,CATERING.FOOD & BEVERAGES
22-FEB-2023,7020922,69.36,R MANNERS & SONS LTD,013498,Commissioning & Asset Management,Children's & Education Services,103,Supplies and Services,504,Equipment,5023,Revenue,CATERING.FOOD & BEVERAGES
22-FEB-2023,7020922,74.02,R MANNERS & SONS LTD,013498,Commissioning & Asset Management,Children's & Education Services,103,Supplies and Services,504,Equipment,5023,Revenue,CATERING.FOOD & BEVERAGES
22-FEB-2023,7020922,76.44,R MANNERS & SONS LTD,013498,Commissioning & Asset Management,Children's & Education Services,103,Supplies and Services,504,Equipment,5023,Revenue,CATERING.FOOD & BEVERAGES
22-FEB-2023,7020922,3.95,R MANNERS & SONS LTD,013498,Commissioning & Asset Management,Children's & Education Services,103,Supplies and Services,504,Equipment,5023,Revenue,CATERING.FOOD & BEVERAGES
22-FEB-2023,7020922,4.43,R MANNERS & SONS LTD,013498,Commissioning & Asset Management,Children's & Education Services,103,Supplies and Services,504,Equipment,5023,Revenue,CATERING.FOOD & BEVERAGES
22-FEB-2023,7020922,11.08,R MANNERS & SONS LTD,013498,Commissioning & Asset Management,Children's & Education Services,103,Supplies and Services,504,Equipment,5023,Revenue,CATERING.FOOD & BEVERAGES
22-FEB-2023,7020922,18.51,R MANNERS & SONS LTD,013498,Commissioning & Asset Management,Children's & Education Services,103,Supplies and Services,504,Equipment,5023,Revenue,CATERING.FOOD & BEVERAGES
22-FEB-2023,7020922,19.95,R MANNERS & SONS LTD,013498,Commissioning & Asset Management,Children's & Education Services,103,Supplies and Services,504,Equipment,5023,Revenue,CATERING.FOOD & BEVERAGES
22-FEB-2023,7020922,22.13,R MANNERS & SONS LTD,013498,Commissioning & Asset Management,Children's & Education Services,103,Supplies and Services,504,Equipment,5023,Revenue,CATERING.FOOD & BEVERAGES
22-FEB-2023,7020922,23.88,R MANNERS & SONS LTD,013498,Commissioning & Asset Management,Children's & Education Services,103,Supplies and Services,504,Equipment,5023,Revenue,CATERING.FOOD & BEVERAGES
22-FEB-2023,7020922,24.36,R MANNERS & SONS LTD,013498,Commissioning & Asset Management,Children's & Education Services,103,Supplies and Services,504,Equipment,5023,Revenue,CATERING.FOOD & BEVERAGES
22-FEB-2023,7020922,26.56,R MANNERS & SONS LTD,013498,Commissioning & Asset Management,Children's & Education Services,103,Supplies and Services,504,Equipment,5023,Revenue,CATERING.FOOD & BEVERAGES
22-FEB-2023,7020922,26.82,R MANNERS & SONS LTD,013498,Commissioning & Asset Management,Children's & Education Services,103,Supplies and Services,504,Equipment,5023,Revenue,CATERING.FOOD & BEVERAGES
22-FEB-2023,7020922,30.45,R MANNERS & SONS LTD,013498,Commissioning & Asset Management,Children's & Education Services,103,Supplies and Services,504,Equipment,5023,Revenue,CATERING.FOOD & BEVERAGES
22-FEB-2023,7020922,33.09,R MANNERS & SONS LTD,013498,Commissioning & Asset Management,Children's & Education Services,103,Supplies and Services,504,Equipment,5023,Revenue,CATERING.FOOD & BEVERAGES
22-FEB-2023,7020922,33.31,R MANNERS & SONS LTD,013498,Commissioning & Asset Management,Children's & Education Services,103,Supplies and Services,504,Equipment,5023,Revenue,CATERING.FOOD & BEVERAGES
22-FEB-2023,7020922,35.33,R MANNERS & SONS LTD,013498,Commissioning & Asset Management,Children's & Education Services,103,Supplies and Services,504,Equipment,5023,Revenue,CATERING.FOOD & BEVERAGES
22-FEB-2023,7020922,35.82,R MANNERS & SONS LTD,013498,Commissioning & Asset Management,Children's & Education Services,103,Supplies and Services,504,Equipment,5023,Revenue,CATERING.FOOD & BEVERAGES
22-FEB-2023,7020922,35.82,R MANNERS & SONS LTD,013498,Commissioning & Asset Management,Children's & Education Services,103,Supplies and Services,504,Equipment,5023,Revenue,CATERING.FOOD & BEVERAGES
22-FEB-2023,7020922,35.82,R MANNERS & SONS LTD,013498,Commissioning & Asset Management,Children's & Education Services,103,Supplies and Services,504,Equipment,5023,Revenue,CATERING.FOOD & BEVERAGES
22-FEB-2023,7020922,11.94,R MANNERS & SONS LTD,013498,Commissioning & Asset Management,Children's & Education Services,103,Supplies and Services,504,Equipment,5023,Revenue,CATERING.FOOD & BEVERAGES
22-FEB-2023,7020922,31.04,R MANNERS & SONS LTD,013498,Commissioning & Asset Management,Children's & Education Services,103,Supplies and Services,504,Equipment,5023,Revenue,CATERING.FOOD & BEVERAGES
22-FEB-2023,7020922,43.92,R MANNERS & SONS LTD,013498,Commissioning & Asset Management,Children's & Education Services,103,Supplies and Services,504,Equipment,5023,Revenue,CATERING.FOOD & BEVERAGES
22-FEB-2023,7020922,44.12,R MANNERS & SONS LTD,013498,Commissioning & Asset Management,Children's & Education Services,103,Supplies and Services,504,Equipment,5023,Revenue,CATERING.FOOD & BEVERAGES
22-FEB-2023,7020922,44.51,R MANNERS & SONS LTD,013498,Commissioning & Asset Management,Children's & Education Services,103,Supplies and Services,504,Equipment,5023,Revenue,CATERING.FOOD & BEVERAGES
22-FEB-2023,7020922,44.53,R MANNERS & SONS LTD,013498,Commissioning & Asset Management,Children's & Education Services,103,Supplies and Services,504,Equipment,5023,Revenue,CATERING.FOOD & BEVERAGES
22-FEB-2023,7020922,44.79,R MANNERS & SONS LTD,013498,Commissioning & Asset Management,Children's & Education Services,103,Supplies and Services,504,Equipment,5023,Revenue,CATERING.FOOD & BEVERAGES
22-FEB-2023,7020922,47.76,R MANNERS & SONS LTD,013498,Commissioning & Asset Management,Children's & Education Services,103,Supplies and Services,504,Equipment,5023,Revenue,CATERING.FOOD & BEVERAGES
22-FEB-2023,7020922,54.87,R MANNERS & SONS LTD,013498,Commissioning & Asset Management,Children's & Education Services,103,Supplies and Services,504,Equipment,5023,Revenue,CATERING.FOOD & BEVERAGES
22-FEB-2023,7020922,57.35,R MANNERS & SONS LTD,013498,Commissioning & Asset Management,Children's & Education Services,103,Supplies and Services,504,Equipment,5023,Revenue,CATERING.FOOD & BEVERAGES
22-FEB-2023,7020922,65.52,R MANNERS & SONS LTD,013498,Commissioning & Asset Management,Children's & Education Services,103,Supplies and Services,504,Equipment,5023,Revenue,CATERING.FOOD & BEVERAGES
22-FEB-2023,7020922,69.79,R MANNERS & SONS LTD,013498,Commissioning & Asset Management,Children's & Education Services,103,Supplies and Services,504,Equipment,5023,Revenue,CATERING.FOOD & BEVERAGES
22-FEB-2023,7020922,71.64,R MANNERS & SONS LTD,013498,Commissioning & Asset Management,Children's & Education Services,103,Supplies and Services,504,Equipment,5023,Revenue,CATERING.FOOD & BEVERAGES
22-FEB-2023,7020922,82.23,R MANNERS & SONS LTD,013498,Commissioning & Asset Management,Children's & Education Services,103,Supplies and Services,504,Equipment,5023,Revenue,CATERING.FOOD & BEVERAGES
22-FEB-2023,7020922,90.74,R MANNERS & SONS LTD,013498,Commissioning & Asset Management,Children's & Education Services,103,Supplies and Services,504,Equipment,5023,Revenue,CATERING.FOOD & BEVERAGES
22-FEB-2023,7020922,95.52,R MANNERS & SONS LTD,013498,Commissioning & Asset Management,Children's & Education Services,103,Supplies and Services,504,Equipment,5023,Revenue,CATERING.FOOD & BEVERAGES
22-FEB-2023,7020922,95.52,R MANNERS & SONS LTD,013498,Commissioning & Asset Management,Children's & Education Services,103,Supplies and Services,504,Equipment,5023,Revenue,CATERING.FOOD & BEVERAGES
22-FEB-2023,7020922,111.38,R MANNERS & SONS LTD,013498,Commissioning & Asset Management,Children's & Education Services,103,Supplies and Services,504,Equipment,5023,Revenue,CATERING.FOOD & BEVERAGES
22-FEB-2023,7020922,5.46,R MANNERS & SONS LTD,013498,Commissioning & Asset Management,Children's & Education Services,103,Supplies and Services,504,Equipment,5023,Revenue,CATERING.FOOD & BEVERAGES
22-FEB-2023,7020922,11.94,R MANNERS & SONS LTD,013498,Commissioning & Asset Management,Children's & Education Services,103,Supplies and Services,504,Equipment,5023,Revenue,CATERING.FOOD & BEVERAGES
22-FEB-2023,7020922,34.83,R MANNERS & SONS LTD,013498,Commissioning & Asset Management,Children's & Education Services,103,Supplies and Services,504,Equipment,5023,Revenue,CATERING.FOOD & BEVERAGES
22-FEB-2023,7020922,41.79,R MANNERS & SONS LTD,013498,Commissioning & Asset Management,Children's & Education Services,103,Supplies and Services,504,Equipment,5023,Revenue,CATERING.FOOD & BEVERAGES
22-FEB-2023,7020922,54.6,R MANNERS & SONS LTD,013498,Commissioning & Asset Management,Children's & Education Services,103,Supplies and Services,504,Equipment,5023,Revenue,CATERING.FOOD & BEVERAGES
22-FEB-2023,7020922,54.6,R MANNERS & SONS LTD,013498,Commissioning & Asset Management,Children's & Education Services,103,Supplies and Services,504,Equipment,5023,Revenue,CATERING.FOOD & BEVERAGES
22-FEB-2023,7020922,59.7,R MANNERS & SONS LTD,013498,Commissioning & Asset Management,Children's & Education Services,103,Supplies and Services,504,Equipment,5023,Revenue,CATERING.FOOD & BEVERAGES
22-FEB-2023,7020922,69.22,R MANNERS & SONS LTD,013498,Commissioning & Asset Management,Children's & Education Services,103,Supplies and Services,504,Equipment,5023,Revenue,CATERING.FOOD & BEVERAGES
22-FEB-2023,7020922,107.94,R MANNERS & SONS LTD,013498,Commissioning & Asset Management,Children's & Education Services,103,Supplies and Services,504,Equipment,5023,Revenue,CATERING.FOOD & BEVERAGES
22-FEB-2023,7020922,-983.13,R MANNERS & SONS LTD,013498,Commissioning & Asset Management,Housing Services,108,Supplies and Services,504,Equipment,5023,Revenue,CATERING.FOOD & BEVERAGES
22-FEB-2023,7020922,-158.7,R MANNERS & SONS LTD,013498,Commissioning & Asset Management,Housing Services,108,Supplies and Services,504,Equipment,5023,Revenue,CATERING.FOOD & BEVERAGES
22-FEB-2023,7020922,-59.4,R MANNERS & SONS LTD,013498,Commissioning & Asset Management,Housing Services,108,Supplies and Services,504,Equipment,5023,Revenue,CATERING.FOOD & BEVERAGES
22-FEB-2023,7020922,17.34,R MANNERS & SONS LTD,013498,Commissioning & Asset Management,Housing Services,108,Supplies and Services,504,Equipment,5023,Revenue,CATERING.FOOD & BEVERAGES
22-FEB-2023,7020922,21.16,R MANNERS & SONS LTD,013498,Commissioning & Asset Management,Housing Services,108,Supplies and Services,504,Equipment,5023,Revenue,CATERING.FOOD & BEVERAGES
22-FEB-2023,7020922,21.16,R MANNERS & SONS LTD,013498,Commissioning & Asset Management,Housing Services,108,Supplies and Services,504,Equipment,5023,Revenue,CATERING.FOOD & BEVERAGES
22-FEB-2023,7020922,23.88,R MANNERS & SONS LTD,013498,Commissioning & Asset Management,Housing Services,108,Supplies and Services,504,Equipment,5023,Revenue,CATERING.FOOD & BEVERAGES
22-FEB-2023,7020922,26.45,R MANNERS & SONS LTD,013498,Commissioning & Asset Management,Housing Services,108,Supplies and Services,504,Equipment,5023,Revenue,CATERING.FOOD & BEVERAGES
22-FEB-2023,7020922,27.3,R MANNERS & SONS LTD,013498,Commissioning & Asset Management,Housing Services,108,Supplies and Services,504,Equipment,5023,Revenue,CATERING.FOOD & BEVERAGES
22-FEB-2023,7020922,34.71,R MANNERS & SONS LTD,013498,Commissioning & Asset Management,Housing Services,108,Supplies and Services,504,Equipment,5023,Revenue,CATERING.FOOD & BEVERAGES
22-FEB-2023,7020922,42.32,R MANNERS & SONS LTD,013498,Commissioning & Asset Management,Housing Services,108,Supplies and Services,504,Equipment,5023,Revenue,CATERING.FOOD & BEVERAGES
22-FEB-2023,7020922,43.68,R MANNERS & SONS LTD,013498,Commissioning & Asset Management,Housing Services,108,Supplies and Services,504,Equipment,5023,Revenue,CATERING.FOOD & BEVERAGES
22-FEB-2023,7020922,46.24,R MANNERS & SONS LTD,013498,Commissioning & Asset Management,Housing Services,108,Supplies and Services,504,Equipment,5023,Revenue,CATERING.FOOD & BEVERAGES
22-FEB-2023,7020922,49.84,R MANNERS & SONS LTD,013498,Commissioning & Asset Management,Housing Services,108,Supplies and Services,504,Equipment,5023,Revenue,CATERING.FOOD & BEVERAGES
22-FEB-2023,7020922,52.02,R MANNERS & SONS LTD,013498,Commissioning & Asset Management,Housing Services,108,Supplies and Services,504,Equipment,5023,Revenue,CATERING.FOOD & BEVERAGES
22-FEB-2023,7020922,52.9,R MANNERS & SONS LTD,013498,Commissioning & Asset Management,Housing Services,108,Supplies and Services,504,Equipment,5023,Revenue,CATERING.FOOD & BEVERAGES
22-FEB-2023,7020922,54.6,R MANNERS & SONS LTD,013498,Commissioning & Asset Management,Housing Services,108,Supplies and Services,504,Equipment,5023,Revenue,CATERING.FOOD & BEVERAGES
22-FEB-2023,7020922,54.6,R MANNERS & SONS LTD,013498,Commissioning & Asset Management,Housing Services,108,Supplies and Services,504,Equipment,5023,Revenue,CATERING.FOOD & BEVERAGES
22-FEB-2023,7020922,56.1,R MANNERS & SONS LTD,013498,Commissioning & Asset Management,Housing Services,108,Supplies and Services,504,Equipment,5023,Revenue,CATERING.FOOD & BEVERAGES
22-FEB-2023,7020922,56.1,R MANNERS & SONS LTD,013498,Commissioning & Asset Management,Housing Services,108,Supplies and Services,504,Equipment,5023,Revenue,CATERING.FOOD & BEVERAGES
22-FEB-2023,7020922,57.8,R MANNERS & SONS LTD,013498,Commissioning & Asset Management,Housing Services,108,Supplies and Services,504,Equipment,5023,Revenue,CATERING.FOOD & BEVERAGES
22-FEB-2023,7020922,57.8,R MANNERS & SONS LTD,013498,Commissioning & Asset Management,Housing Services,108,Supplies and Services,504,Equipment,5023,Revenue,CATERING.FOOD & BEVERAGES
22-FEB-2023,7020922,57.8,R MANNERS & SONS LTD,013498,Commissioning & Asset Management,Housing Services,108,Supplies and Services,504,Equipment,5023,Revenue,CATERING.FOOD & BEVERAGES
22-FEB-2023,7020922,58.19,R MANNERS & SONS LTD,013498,Commissioning & Asset Management,Housing Services,108,Supplies and Services,504,Equipment,5023,Revenue,CATERING.FOOD & BEVERAGES
22-FEB-2023,7020922,59.4,R MANNERS & SONS LTD,013498,Commissioning & Asset Management,Housing Services,108,Supplies and Services,504,Equipment,5023,Revenue,CATERING.FOOD & BEVERAGES
22-FEB-2023,7020922,59.7,R MANNERS & SONS LTD,013498,Commissioning & Asset Management,Housing Services,108,Supplies and Services,504,Equipment,5023,Revenue,CATERING.FOOD & BEVERAGES
22-FEB-2023,7020922,62.7,R MANNERS & SONS LTD,013498,Commissioning & Asset Management,Housing Services,108,Supplies and Services,504,Equipment,5023,Revenue,CATERING.FOOD & BEVERAGES
22-FEB-2023,7020922,68,R MANNERS & SONS LTD,013498,Commissioning & Asset Management,Housing Services,108,Supplies and Services,504,Equipment,5023,Revenue,CATERING.FOOD & BEVERAGES
22-FEB-2023,7020922,68,R MANNERS & SONS LTD,013498,Commissioning & Asset Management,Housing Services,108,Supplies and Services,504,Equipment,5023,Revenue,CATERING.FOOD & BEVERAGES
22-FEB-2023,7020922,76.42,R MANNERS & SONS LTD,013498,Commissioning & Asset Management,Housing Services,108,Supplies and Services,504,Equipment,5023,Revenue,CATERING.FOOD & BEVERAGES
22-FEB-2023,7020922,246.45,R MANNERS & SONS LTD,013498,Commissioning & Asset Management,Housing Services,108,Supplies and Services,504,Equipment,5023,Revenue,CATERING.FOOD & BEVERAGES
22-FEB-2023,7020922,24.44,R MANNERS & SONS LTD,013498,Environment & Leisure,Cultural & Related Services,104,Supplies and Services,504,Equipment,5023,Revenue,CATERING.FOOD & BEVERAGES
22-FEB-2023,7020922,34.35,R MANNERS & SONS LTD,013498,Environment & Leisure,Cultural & Related Services,104,Supplies and Services,504,Grants and Subscriptions,5023,Revenue,CATERING.FOOD & BEVERAGES
22-FEB-2023,7020922,62.85,R MANNERS & SONS LTD,013498,Environment & Leisure,Cultural & Related Services,104,Supplies and Services,504,Other Establishments,5031,Revenue,CATERING.FOOD & BEVERAGES
22-FEB-2023,7020923,62.5,BACPR EDUCATION,380098,Environment & Leisure,Cultural & Related Services,104,Supplies and Services,504,Other Establishments,5041,Revenue,HUMAN RESOURCES.TRAINING & CONFERENCES
22-FEB-2023,7020924,0.01,BT PAYMENT SERVICES LTD,374678,"Health, Education, Care and Safeguarding",Children's & Education Services,103,Third Party Payments,505,Private Contractors,5041,Revenue,TELECOMMUNICATIONS.COMMUNICATION LINES RENTAL
22-FEB-2023,7020924,16.87,BT PAYMENT SERVICES LTD,374678,"Health, Education, Care and Safeguarding",Children's & Education Services,103,Third Party Payments,505,Private Contractors,5042,Revenue,TELECOMMUNICATIONS.COMMUNICATION LINES RENTAL
22-FEB-2023,7020925,66.67,THE DORSET ARMS,340956,Housing,Housing Services,108,Third Party Payments,505,Private Contractors,5042,Revenue,HUMAN RESOURCES.ACCOMMODATION
22-FEB-2023,7020925,350,THE DORSET ARMS,340956,Housing,Housing Services,108,Third Party Payments,505,"Clothing, Uniforms and Laundry",5042,Revenue,HUMAN RESOURCES.ACCOMMODATION
22-FEB-2023,7020925,500,THE DORSET ARMS,340956,Housing,Housing Services,108,Third Party Payments,505,"Printing, Stationery and General Office Expenses",5025,Revenue,HUMAN RESOURCES.ACCOMMODATION
22-FEB-2023,7020926,315.6,CUSTOM PLANET LIMITED,379623,Environment & Leisure,Cultural & Related Services,104,Supplies and Services,504,"Printing, Stationery and General Office Expenses",5026,Revenue,ADVERTISING & MARKETING.EVENTS & PROMOTIONS
22-FEB-2023,7020927,200,GOOGLE GENERAL PAYMENTS,388551,"Health, Education, Care and Safeguarding",Children's & Education Services,103,Supplies and Services,504,"Printing, Stationery and General Office Expenses",5026,Revenue,NON INFLUENCIBLE.NON INFLUENCIBLE
22-FEB-2023,7020927,200,GOOGLE GENERAL PAYMENTS,388551,"Health, Education, Care and Safeguarding",Children's & Education Services,103,Supplies and Services,504,"Printing, Stationery and General Office Expenses",5026,Revenue,NON INFLUENCIBLE.NON INFLUENCIBLE
22-FEB-2023,7020927,254.8,GOOGLE GENERAL PAYMENTS,388551,"Health, Education, Care and Safeguarding",Children's & Education Services,103,Supplies and Services,504,"Printing, Stationery and General Office Expenses",5026,Revenue,NON INFLUENCIBLE.NON INFLUENCIBLE
22-FEB-2023,7020927,15.99,GOOGLE GENERAL PAYMENTS,388551,Corporate Strategy,Central Services,102,Supplies and Services,504,Miscellaneous Expenses,5026,Revenue,NON INFLUENCIBLE.NON INFLUENCIBLE
22-FEB-2023,7020927,30.67,GOOGLE GENERAL PAYMENTS,388551,Resources,Central Services,102,Supplies and Services,504,Expenses,5034,Revenue,NON INFLUENCIBLE.NON INFLUENCIBLE
22-FEB-2023,7020928,4.41,LIDL UK GMBH,383629,"Health, Education, Care and Safeguarding",Children's & Education Services,103,Supplies and Services,504,Equipment,5030,Revenue,NON INFLUENCIBLE.GRANTS
22-FEB-2023,7020929,1.75,CUMBRIA COUNTY COUNCIL,003431,"Health, Education, Care and Safeguarding",Children's & Education Services,103,Supplies and Services,504,Equipment,5023,Revenue,NON INFLUENCIBLE.PUBLIC SECTOR
22-FEB-2023,7020930,38,GENERAL REGISTER OFFICE,388286,"Health, Education, Care and Safeguarding",Children's & Education Services,103,Supplies and Services,504,Miscellaneous Expenses,5023,Revenue,NON INFLUENCIBLE.NON INFLUENCIBLE
22-FEB-2023,7020930,38,GENERAL REGISTER OFFICE,388286,"Health, Education, Care and Safeguarding",Children's & Education Services,103,Supplies and Services,504,Expenses,5034,Revenue,NON INFLUENCIBLE.NON INFLUENCIBLE
22-FEB-2023,7020930,152,GENERAL REGISTER OFFICE,388286,"Health, Education, Care and Safeguarding",Children's & Education Services,103,Supplies and Services,504,Expenses,5030,Revenue,NON INFLUENCIBLE.NON INFLUENCIBLE
22-FEB-2023,7020930,70,GENERAL REGISTER OFFICE,388286,"Health, Education, Care and Safeguarding",Children's & Education Services,103,Supplies and Services,504,Expenses,5030,Revenue,NON INFLUENCIBLE.NON INFLUENCIBLE
22-FEB-2023,7020930,70,GENERAL REGISTER OFFICE,388286,"Health, Education, Care and Safeguarding",Children's & Education Services,103,Supplies and Services,504,Expenses,5030,Revenue,NON INFLUENCIBLE.NON INFLUENCIBLE
22-FEB-2023,7020930,35,GENERAL REGISTER OFFICE,388286,"Health, Education, Care and Safeguarding",Children's & Education Services,103,Supplies and Services,504,Expenses,5030,Revenue,NON INFLUENCIBLE.NON INFLUENCIBLE
22-FEB-2023,7020930,36.5,GENERAL REGISTER OFFICE,388286,"Health, Education, Care and Safeguarding",Children's & Education Services,103,Supplies and Services,504,Expenses,5030,Revenue,NON INFLUENCIBLE.NON INFLUENCIBLE
22-FEB-2023,7020930,70,GENERAL REGISTER OFFICE,388286,"Health, Education, Care and Safeguarding",Children's & Education Services,103,Supplies and Services,504,Expenses,5030,Revenue,NON INFLUENCIBLE.NON INFLUENCIBLE
22-FEB-2023,7020930,73,GENERAL REGISTER OFFICE,388286,"Health, Education, Care and Safeguarding",Children's & Education Services,103,Supplies and Services,504,Expenses,5030,Revenue,NON INFLUENCIBLE.NON INFLUENCIBLE
22-FEB-2023,7020930,35,GENERAL REGISTER OFFICE,388286,"Health, Education, Care and Safeguarding",Children's & Education Services,103,Supplies and Services,504,Expenses,5030,Revenue,NON INFLUENCIBLE.NON INFLUENCIBLE
22-FEB-2023,7020930,38,GENERAL REGISTER OFFICE,388286,"Health, Education, Care and Safeguarding",Children's & Education Services,103,Supplies and Services,504,Expenses,5030,Revenue,NON INFLUENCIBLE.NON INFLUENCIBLE
22-FEB-2023,7020930,-31.5,GENERAL REGISTER OFFICE,388286,"Health, Education, Care and Safeguarding",Children's & Education Services,103,Supplies and Services,504,Expenses,5030,Revenue,NON INFLUENCIBLE.NON INFLUENCIBLE
22-FEB-2023,7020930,-31.5,GENERAL REGISTER OFFICE,388286,"Health, Education, Care and Safeguarding",Children's & Education Services,103,Supplies and Services,504,Expenses,5030,Revenue,NON INFLUENCIBLE.NON INFLUENCIBLE
22-FEB-2023,7020930,-31.5,GENERAL REGISTER OFFICE,388286,"Health, Education, Care and Safeguarding",Children's & Education Services,103,Supplies and Services,504,Expenses,5030,Revenue,NON INFLUENCIBLE.NON INFLUENCIBLE
22-FEB-2023,7020930,36.5,GENERAL REGISTER OFFICE,388286,"Health, Education, Care and Safeguarding",Children's & Education Services,103,Supplies and Services,504,Expenses,5030,Revenue,NON INFLUENCIBLE.NON INFLUENCIBLE
22-FEB-2023,7020930,38,GENERAL REGISTER OFFICE,388286,"Health, Education, Care and Safeguarding",Children's & Education Services,103,Supplies and Services,504,Expenses,5030,Revenue,NON INFLUENCIBLE.NON INFLUENCIBLE
22-FEB-2023,7020930,38,GENERAL REGISTER OFFICE,388286,"Health, Education, Care and Safeguarding",Children's & Education Services,103,Supplies and Services,504,Expenses,5030,Revenue,NON INFLUENCIBLE.NON INFLUENCIBLE
22-FEB-2023,7020930,38,GENERAL REGISTER OFFICE,388286,"Health, Education, Care and Safeguarding",Children's & Education Services,103,Supplies and Services,504,Expenses,5030,Revenue,NON INFLUENCIBLE.NON INFLUENCIBLE
22-FEB-2023,7020930,108,GENERAL REGISTER OFFICE,388286,"Health, Education, Care and Safeguarding",Children's & Education Services,103,Supplies and Services,504,Equipment,5030,Revenue,NON INFLUENCIBLE.NON INFLUENCIBLE
22-FEB-2023,7020930,143,GENERAL REGISTER OFFICE,388286,"Health, Education, Care and Safeguarding",Children's & Education Services,103,Supplies and Services,504,Miscellaneous Expenses,5023,Revenue,NON INFLUENCIBLE.NON INFLUENCIBLE
22-FEB-2023,7020931,42.76,B&M RETAIL LTD,388117,"Health, Education, Care and Safeguarding",Children's & Education Services,103,Supplies and Services,504,Equipment,5034,Revenue,FURNITURE.DOMESTIC
22-FEB-2023,7020931,13.98,B&M RETAIL LTD,388117,"Health, Education, Care and Safeguarding",Children's & Education Services,103,Supplies and Services,504,Equipment,5023,Revenue,FURNITURE.DOMESTIC
22-FEB-2023,7020931,13.08,B&M RETAIL LTD,388117,"Health, Education, Care and Safeguarding",Children's & Education Services,103,Supplies and Services,504,Equipment,5023,Revenue,FURNITURE.DOMESTIC
22-FEB-2023,7020931,102.05,B&M RETAIL LTD,388117,"Health, Education, Care and Safeguarding",Children's & Education Services,103,Supplies and Services,504,Equipment,5023,Revenue,FURNITURE.DOMESTIC
22-FEB-2023,7020931,13.22,B&M RETAIL LTD,388117,Environment & Leisure,Environmental & Regulatory Services,105,Supplies and Services,504,Equipment,5023,Revenue,FURNITURE.DOMESTIC
22-FEB-2023,7020931,12.65,B&M RETAIL LTD,388117,Environment & Leisure,Cultural & Related Services,104,Supplies and Services,504,Expenses,5023,Revenue,FURNITURE.DOMESTIC
22-FEB-2023,7020932,154.12,SMYTHS TOYS WALLSEND,388045,"Health, Education, Care and Safeguarding",Children's & Education Services,103,Supplies and Services,504,Equipment,5030,Revenue,EDUCATIONAL SUPPLIES.TOYS
22-FEB-2023,7020932,82.97,SMYTHS TOYS WALLSEND,388045,"Health, Education, Care and Safeguarding",Children's & Education Services,103,Supplies and Services,504,Miscellaneous Expenses,5023,Revenue,EDUCATIONAL SUPPLIES.TOYS
22-FEB-2023,7020933,39.67,SKY BUSINESS LTD,320823,"Health, Education, Care and Safeguarding",Children's & Education Services,103,Supplies and Services,504,Miscellaneous Expenses,5034,Revenue,SUBSCRIPTIONS & PUBLICATIONS.TV/RADIO LICENCES
22-FEB-2023,7020933,37.99,SKY BUSINESS LTD,320823,"Health, Education, Care and Safeguarding",Children's & Education Services,103,Supplies and Services,504,Miscellaneous Expenses,5034,Revenue,SUBSCRIPTIONS & PUBLICATIONS.TV/RADIO LICENCES
22-FEB-2023,7020933,92.5,SKY BUSINESS LTD,320823,"Health, Education, Care and Safeguarding",Children's & Education Services,103,Supplies and Services,504,Miscellaneous Expenses,5034,Revenue,SUBSCRIPTIONS & PUBLICATIONS.TV/RADIO LICENCES
22-FEB-2023,7020933,92.5,SKY BUSINESS LTD,320823,"Health, Education, Care and Safeguarding",Children's & Education Services,103,Supplies and Services,504,Grants and Subscriptions,5034,Revenue,SUBSCRIPTIONS & PUBLICATIONS.TV/RADIO LICENCES
22-FEB-2023,7020933,41.22,SKY BUSINESS LTD,320823,"Health, Education, Care and Safeguarding",Children's & Education Services,103,Supplies and Services,504,Miscellaneous Expenses,5031,Revenue,SUBSCRIPTIONS & PUBLICATIONS.TV/RADIO LICENCES
22-FEB-2023,7020933,41.67,SKY BUSINESS LTD,320823,"Health, Education, Care and Safeguarding",Children's & Education Services,103,Supplies and Services,504,Miscellaneous Expenses,5034,Revenue,SUBSCRIPTIONS & PUBLICATIONS.TV/RADIO LICENCES
22-FEB-2023,7020933,51.66,SKY BUSINESS LTD,320823,"Health, Education, Care and Safeguarding",Children's & Education Services,103,Supplies and Services,504,Equipment,5034,Revenue,SUBSCRIPTIONS & PUBLICATIONS.TV/RADIO LICENCES
22-FEB-2023,7020934,234.54,SCOTTISHPOWER,349149,Housing,Housing Services,108,Supplies and Services,504,Equipment,5023,Revenue,GAS.GAS
22-FEB-2023,7020935,104.17,RINGTONS LTD (387786),387786,Commissioning & Asset Management,Children's & Education Services,103,Supplies and Services,504,Equipment,5023,Revenue,CATERING.FOOD & BEVERAGES
22-FEB-2023,7020935,105.42,RINGTONS LTD (387786),387786,Commissioning & Asset Management,Children's & Education Services,103,Supplies and Services,504,Equipment,5023,Revenue,CATERING.FOOD & BEVERAGES
22-FEB-2023,7020935,23.53,RINGTONS LTD (387786),387786,Commissioning & Asset Management,Children's & Education Services,103,Supplies and Services,504,Cleaning and Domestic Supplies,5023,Revenue,CATERING.FOOD & BEVERAGES
22-FEB-2023,7020935,269.67,RINGTONS LTD (387786),387786,Commissioning & Asset Management,Children's & Education Services,103,Supplies and Services,504,Cleaning and Domestic Supplies,5012,Revenue,CATERING.FOOD & BEVERAGES
22-FEB-2023,7020935,41.04,RINGTONS LTD (387786),387786,Commissioning & Asset Management,Children's & Education Services,103,Premises-Related Expenditure,502,Equipment,5012,Revenue,CATERING.FOOD & BEVERAGES
22-FEB-2023,7020935,198,RINGTONS LTD (387786),387786,Commissioning & Asset Management,Children's & Education Services,103,Premises-Related Expenditure,502,Equipment,5023,Revenue,CATERING.FOOD & BEVERAGES
22-FEB-2023,7020935,76.88,RINGTONS LTD (387786),387786,Commissioning & Asset Management,Children's & Education Services,103,Supplies and Services,504,Equipment,5023,Revenue,CATERING.FOOD & BEVERAGES
22-FEB-2023,7020935,133,RINGTONS LTD (387786),387786,Commissioning & Asset Management,Children's & Education Services,103,Supplies and Services,504,Equipment,5023,Revenue,CATERING.FOOD & BEVERAGES
22-FEB-2023,7020935,333.53,RINGTONS LTD (387786),387786,Commissioning & Asset Management,Children's & Education Services,103,Supplies and Services,504,Equipment,5023,Revenue,CATERING.FOOD & BEVERAGES
22-FEB-2023,7020935,611.77,RINGTONS LTD (387786),387786,Commissioning & Asset Management,Children's & Education Services,103,Supplies and Services,504,Other Establishments,5023,Revenue,CATERING.FOOD & BEVERAGES
22-FEB-2023,7020935,682.69,RINGTONS LTD (387786),387786,Commissioning & Asset Management,Children's & Education Services,103,Supplies and Services,504,Expenses,5041,Revenue,CATERING.FOOD & BEVERAGES
22-FEB-2023,7020936,30,CITIZENCARD,378362,"Health, Education, Care and Safeguarding",Children's & Education Services,103,Third Party Payments,505,Expenses,5030,Revenue,NON INFLUENCIBLE.PUBLIC SECTOR
22-FEB-2023,7020937,35,NEWCASTLE CITY COUNCIL,014331,"Health, Education, Care and Safeguarding",Children's & Education Services,103,Supplies and Services,504,Direct Transport Costs,5030,Revenue,NON INFLUENCIBLE.PUBLIC SECTOR
22-FEB-2023,7020937,35,NEWCASTLE CITY COUNCIL,014331,"Health, Education, Care and Safeguarding",Children's & Education Services,103,Supplies and Services,504,Direct Transport Costs,5016,Revenue,NON INFLUENCIBLE.PUBLIC SECTOR
22-FEB-2023,7020938,2,GO NORTH EAST,327588,Commissioning & Asset Management,Children's & Education Services,103,Transport,503,Direct Transport Costs,5016,Revenue,NON INFLUENCIBLE.NON INFLUENCIBLE
22-FEB-2023,7020938,2,GO NORTH EAST,327588,Commissioning & Asset Management,Children's & Education Services,103,Transport,503,Other Establishments,5016,Revenue,NON INFLUENCIBLE.NON INFLUENCIBLE
22-FEB-2023,7020938,2,GO NORTH EAST,327588,Commissioning & Asset Management,Children's & Education Services,103,Transport,503,Other Establishments,5041,Revenue,NON INFLUENCIBLE.NON INFLUENCIBLE
22-FEB-2023,7020939,11.92,YMCA NORTH TYNESIDE,356069,"Health, Education, Care and Safeguarding",Children's & Education Services,103,Third Party Payments,505,Equipment,5041,Revenue,SOCIAL CARE.CARE SERVICES
22-FEB-2023,7020940,9.71,THE RED LION,334411,"Health, Education, Care and Safeguarding",Children's & Education Services,103,Third Party Payments,505,Equipment,5023,Revenue,HUMAN RESOURCES.TRAVEL & SUBSISTENCE
22-FEB-2023,7020941,263.41,GAFFERTAPE.COM,386734,Environment & Leisure,Cultural & Related Services,104,Supplies and Services,504,"Printing, Stationery and General Office Expenses",5023,Revenue,BUILDING MATERIALS.GENERAL MATERIALS
22-FEB-2023,7020942,51.67,ASOS.COM,386715,"Health, Education, Care and Safeguarding",Children's & Education Services,103,Supplies and Services,504,"Printing, Stationery and General Office Expenses",5026,Revenue,HEALTH & SAFETY.EQUIPMENT
22-FEB-2023,7020943,-1.46,REACH PUBLISHING SERVICES LTD,372700,Corporate Strategy,Central Services,102,Supplies and Services,504,"Printing, Stationery and General Office Expenses",5026,Revenue,ADVERTISING & MARKETING.ADVERTISING
22-FEB-2023,7020943,-1.14,REACH PUBLISHING SERVICES LTD,372700,Corporate Strategy,Central Services,102,Supplies and Services,504,Energy Costs,5026,Revenue,ADVERTISING & MARKETING.ADVERTISING
22-FEB-2023,7020943,38.13,REACH PUBLISHING SERVICES LTD,372700,Corporate Strategy,Central Services,102,Supplies and Services,504,Miscellaneous Expenses,5006,Revenue,ADVERTISING & MARKETING.ADVERTISING
22-FEB-2023,7020944,754.7,BRITISH GAS TRADING LIMITED,002200,Housing,Housing Revenue Account,N/A,Premises-Related Expenditure,502,Energy Costs,5034,Revenue,GAS.GAS
22-FEB-2023,7020945,21.67,GROUPON,386206,"Health, Education, Care and Safeguarding",Children's & Education Services,103,Supplies and Services,504,Direct Transport Costs,5006,Revenue,ADVERTISING & MARKETING.EVENTS & PROMOTIONS
22-FEB-2023,7020946,146.65,EDF ENERGY,367754,Housing,Housing Revenue Account,N/A,Premises-Related Expenditure,502,Direct Transport Costs,5016,Revenue,ELECTRICITY.ELECTRICITY
22-FEB-2023,7020947,20.16,SHELL TYNEMOUTH,385893,Environment & Leisure,Cultural & Related Services,104,Transport,503,Equipment,5016,Revenue,VEHICLE MANAGEMENT.FUEL
22-FEB-2023,7020947,21.56,SHELL TYNEMOUTH,385893,Environment & Leisure,Cultural & Related Services,104,Transport,503,Equipment,5023,Revenue,VEHICLE MANAGEMENT.FUEL
22-FEB-2023,7020948,6.4,CHICKEN JOES LTD T/A LOVE JOES,375810,Commissioning & Asset Management,Children's & Education Services,103,Supplies and Services,504,Equipment,5023,Revenue,CATERING.FOOD & BEVERAGES
22-FEB-2023,7020948,8.7,CHICKEN JOES LTD T/A LOVE JOES,375810,Commissioning & Asset Management,Children's & Education Services,103,Supplies and Services,504,Equipment,5023,Revenue,CATERING.FOOD & BEVERAGES
22-FEB-2023,7020948,8.7,CHICKEN JOES LTD T/A LOVE JOES,375810,Commissioning & Asset Management,Children's & Education Services,103,Supplies and Services,504,Equipment,5023,Revenue,CATERING.FOOD & BEVERAGES
22-FEB-2023,7020948,12.8,CHICKEN JOES LTD T/A LOVE JOES,375810,Commissioning & Asset Management,Children's & Education Services,103,Supplies and Services,504,Equipment,5023,Revenue,CATERING.FOOD & BEVERAGES
22-FEB-2023,7020948,18,CHICKEN JOES LTD T/A LOVE JOES,375810,Commissioning & Asset Management,Children's & Education Services,103,Supplies and Services,504,Equipment,5023,Revenue,CATERING.FOOD & BEVERAGES
22-FEB-2023,7020948,21,CHICKEN JOES LTD T/A LOVE JOES,375810,Commissioning & Asset Management,Children's & Education Services,103,Supplies and Services,504,Equipment,5023,Revenue,CATERING.FOOD & BEVERAGES
22-FEB-2023,7020948,27.66,CHICKEN JOES LTD T/A LOVE JOES,375810,Commissioning & Asset Management,Children's & Education Services,103,Supplies and Services,504,Equipment,5023,Revenue,CATERING.FOOD & BEVERAGES
22-FEB-2023,7020948,35.4,CHICKEN JOES LTD T/A LOVE JOES,375810,Commissioning & Asset Management,Children's & Education Services,103,Supplies and Services,504,Equipment,5023,Revenue,CATERING.FOOD & BEVERAGES
22-FEB-2023,7020948,50,CHICKEN JOES LTD T/A LOVE JOES,375810,Commissioning & Asset Management,Children's & Education Services,103,Supplies and Services,504,Equipment,5023,Revenue,CATERING.FOOD & BEVERAGES
22-FEB-2023,7020948,50,CHICKEN JOES LTD T/A LOVE JOES,375810,Commissioning & Asset Management,Children's & Education Services,103,Supplies and Services,504,Equipment,5023,Revenue,CATERING.FOOD & BEVERAGES
22-FEB-2023,7020948,69.15,CHICKEN JOES LTD T/A LOVE JOES,375810,Commissioning & Asset Management,Children's & Education Services,103,Supplies and Services,504,Equipment,5023,Revenue,CATERING.FOOD & BEVERAGES
22-FEB-2023,7020948,69.55,CHICKEN JOES LTD T/A LOVE JOES,375810,Commissioning & Asset Management,Children's & Education Services,103,Supplies and Services,504,Equipment,5023,Revenue,CATERING.FOOD & BEVERAGES
22-FEB-2023,7020948,69.55,CHICKEN JOES LTD T/A LOVE JOES,375810,Commissioning & Asset Management,Children's & Education Services,103,Supplies and Services,504,Equipment,5023,Revenue,CATERING.FOOD & BEVERAGES
22-FEB-2023,7020948,121.8,CHICKEN JOES LTD T/A LOVE JOES,375810,Commissioning & Asset Management,Children's & Education Services,103,Supplies and Services,504,Equipment,5023,Revenue,CATERING.FOOD & BEVERAGES
22-FEB-2023,7020948,121.8,CHICKEN JOES LTD T/A LOVE JOES,375810,Commissioning & Asset Management,Children's & Education Services,103,Supplies and Services,504,Equipment,5023,Revenue,CATERING.FOOD & BEVERAGES
22-FEB-2023,7020948,139.1,CHICKEN JOES LTD T/A LOVE JOES,375810,Commissioning & Asset Management,Children's & Education Services,103,Supplies and Services,504,Equipment,5023,Revenue,CATERING.FOOD & BEVERAGES
22-FEB-2023,7020948,139.1,CHICKEN JOES LTD T/A LOVE JOES,375810,Commissioning & Asset Management,Children's & Education Services,103,Supplies and Services,504,Equipment,5023,Revenue,CATERING.FOOD & BEVERAGES
22-FEB-2023,7020948,166.92,CHICKEN JOES LTD T/A LOVE JOES,375810,Commissioning & Asset Management,Children's & Education Services,103,Supplies and Services,504,Equipment,5023,Revenue,CATERING.FOOD & BEVERAGES
22-FEB-2023,7020948,166.92,CHICKEN JOES LTD T/A LOVE JOES,375810,Commissioning & Asset Management,Children's & Education Services,103,Supplies and Services,504,Equipment,5023,Revenue,CATERING.FOOD & BEVERAGES
22-FEB-2023,7020948,3.2,CHICKEN JOES LTD T/A LOVE JOES,375810,Commissioning & Asset Management,Children's & Education Services,103,Supplies and Services,504,Equipment,5023,Revenue,CATERING.FOOD & BEVERAGES
22-FEB-2023,7020948,11.6,CHICKEN JOES LTD T/A LOVE JOES,375810,Commissioning & Asset Management,Children's & Education Services,103,Supplies and Services,504,Equipment,5023,Revenue,CATERING.FOOD & BEVERAGES
22-FEB-2023,7020948,25,CHICKEN JOES LTD T/A LOVE JOES,375810,Commissioning & Asset Management,Children's & Education Services,103,Supplies and Services,504,Equipment,5023,Revenue,CATERING.FOOD & BEVERAGES
22-FEB-2023,7020948,25.6,CHICKEN JOES LTD T/A LOVE JOES,375810,Commissioning & Asset Management,Children's & Education Services,103,Supplies and Services,504,Equipment,5023,Revenue,CATERING.FOOD & BEVERAGES
22-FEB-2023,7020948,27.82,CHICKEN JOES LTD T/A LOVE JOES,375810,Commissioning & Asset Management,Children's & Education Services,103,Supplies and Services,504,Equipment,5023,Revenue,CATERING.FOOD & BEVERAGES
22-FEB-2023,7020948,41.73,CHICKEN JOES LTD T/A LOVE JOES,375810,Commissioning & Asset Management,Children's & Education Services,103,Supplies and Services,504,Equipment,5023,Revenue,CATERING.FOOD & BEVERAGES
22-FEB-2023,7020948,41.73,CHICKEN JOES LTD T/A LOVE JOES,375810,Commissioning & Asset Management,Children's & Education Services,103,Supplies and Services,504,Equipment,5023,Revenue,CATERING.FOOD & BEVERAGES
22-FEB-2023,7020948,58,CHICKEN JOES LTD T/A LOVE JOES,375810,Commissioning & Asset Management,Children's & Education Services,103,Supplies and Services,504,Equipment,5023,Revenue,CATERING.FOOD & BEVERAGES
22-FEB-2023,7020948,207.45,CHICKEN JOES LTD T/A LOVE JOES,375810,Commissioning & Asset Management,Children's & Education Services,103,Supplies and Services,504,Equipment,5023,Revenue,CATERING.FOOD & BEVERAGES
22-FEB-2023,7020948,21.5,CHICKEN JOES LTD T/A LOVE JOES,375810,Commissioning & Asset Management,Children's & Education Services,103,Supplies and Services,504,Equipment,5023,Revenue,CATERING.FOOD & BEVERAGES
22-FEB-2023,7020948,25.6,CHICKEN JOES LTD T/A LOVE JOES,375810,Commissioning & Asset Management,Children's & Education Services,103,Supplies and Services,504,Equipment,5023,Revenue,CATERING.FOOD & BEVERAGES
22-FEB-2023,7020948,36,CHICKEN JOES LTD T/A LOVE JOES,375810,Commissioning & Asset Management,Children's & Education Services,103,Supplies and Services,504,Equipment,5023,Revenue,CATERING.FOOD & BEVERAGES
22-FEB-2023,7020948,50,CHICKEN JOES LTD T/A LOVE JOES,375810,Commissioning & Asset Management,Children's & Education Services,103,Supplies and Services,504,Equipment,5023,Revenue,CATERING.FOOD & BEVERAGES
22-FEB-2023,7020948,55.32,CHICKEN JOES LTD T/A LOVE JOES,375810,Commissioning & Asset Management,Children's & Education Services,103,Supplies and Services,504,Equipment,5023,Revenue,CATERING.FOOD & BEVERAGES
22-FEB-2023,7020948,3,CHICKEN JOES LTD T/A LOVE JOES,375810,Commissioning & Asset Management,Children's & Education Services,103,Supplies and Services,504,Equipment,5023,Revenue,CATERING.FOOD & BEVERAGES
22-FEB-2023,7020948,3.2,CHICKEN JOES LTD T/A LOVE JOES,375810,Commissioning & Asset Management,Children's & Education Services,103,Supplies and Services,504,Equipment,5023,Revenue,CATERING.FOOD & BEVERAGES
22-FEB-2023,7020948,17.4,CHICKEN JOES LTD T/A LOVE JOES,375810,Commissioning & Asset Management,Children's & Education Services,103,Supplies and Services,504,Equipment,5023,Revenue,CATERING.FOOD & BEVERAGES
22-FEB-2023,7020948,17.7,CHICKEN JOES LTD T/A LOVE JOES,375810,Commissioning & Asset Management,Children's & Education Services,103,Supplies and Services,504,Equipment,5023,Revenue,CATERING.FOOD & BEVERAGES
22-FEB-2023,7020948,41.49,CHICKEN JOES LTD T/A LOVE JOES,375810,Commissioning & Asset Management,Children's & Education Services,103,Supplies and Services,504,Equipment,5023,Revenue,CATERING.FOOD & BEVERAGES
22-FEB-2023,7020948,42,CHICKEN JOES LTD T/A LOVE JOES,375810,Commissioning & Asset Management,Children's & Education Services,103,Supplies and Services,504,Equipment,5023,Revenue,CATERING.FOOD & BEVERAGES
22-FEB-2023,7020948,82.98,CHICKEN JOES LTD T/A LOVE JOES,375810,Commissioning & Asset Management,Children's & Education Services,103,Supplies and Services,504,Equipment,5023,Revenue,CATERING.FOOD & BEVERAGES
22-FEB-2023,7020948,152.13,CHICKEN JOES LTD T/A LOVE JOES,375810,Commissioning & Asset Management,Children's & Education Services,103,Supplies and Services,504,Equipment,5023,Revenue,CATERING.FOOD & BEVERAGES
22-FEB-2023,7020948,166.92,CHICKEN JOES LTD T/A LOVE JOES,375810,Commissioning & Asset Management,Children's & Education Services,103,Supplies and Services,504,Equipment,5023,Revenue,CATERING.FOOD & BEVERAGES
22-FEB-2023,7020948,8.7,CHICKEN JOES LTD T/A LOVE JOES,375810,Commissioning & Asset Management,Children's & Education Services,103,Supplies and Services,504,Equipment,5023,Revenue,CATERING.FOOD & BEVERAGES
22-FEB-2023,7020948,12.8,CHICKEN JOES LTD T/A LOVE JOES,375810,Commissioning & Asset Management,Children's & Education Services,103,Supplies and Services,504,Equipment,5023,Revenue,CATERING.FOOD & BEVERAGES
22-FEB-2023,7020948,21,CHICKEN JOES LTD T/A LOVE JOES,375810,Commissioning & Asset Management,Children's & Education Services,103,Supplies and Services,504,Equipment,5023,Revenue,CATERING.FOOD & BEVERAGES
22-FEB-2023,7020948,27.82,CHICKEN JOES LTD T/A LOVE JOES,375810,Commissioning & Asset Management,Children's & Education Services,103,Supplies and Services,504,Equipment,5023,Revenue,CATERING.FOOD & BEVERAGES
22-FEB-2023,7020948,27.82,CHICKEN JOES LTD T/A LOVE JOES,375810,Commissioning & Asset Management,Children's & Education Services,103,Supplies and Services,504,Equipment,5023,Revenue,CATERING.FOOD & BEVERAGES
22-FEB-2023,7020948,30.6,CHICKEN JOES LTD T/A LOVE JOES,375810,Commissioning & Asset Management,Children's & Education Services,103,Supplies and Services,504,Equipment,5023,Revenue,CATERING.FOOD & BEVERAGES
22-FEB-2023,7020948,69.55,CHICKEN JOES LTD T/A LOVE JOES,375810,Commissioning & Asset Management,Children's & Education Services,103,Supplies and Services,504,Equipment,5023,Revenue,CATERING.FOOD & BEVERAGES
22-FEB-2023,7020948,69.55,CHICKEN JOES LTD T/A LOVE JOES,375810,Commissioning & Asset Management,Children's & Education Services,103,Supplies and Services,504,Equipment,5023,Revenue,CATERING.FOOD & BEVERAGES
22-FEB-2023,7020948,110.64,CHICKEN JOES LTD T/A LOVE JOES,375810,Commissioning & Asset Management,Children's & Education Services,103,Supplies and Services,504,Equipment,5023,Revenue,CATERING.FOOD & BEVERAGES
22-FEB-2023,7020948,7.65,CHICKEN JOES LTD T/A LOVE JOES,375810,Commissioning & Asset Management,Children's & Education Services,103,Supplies and Services,504,Equipment,5023,Revenue,CATERING.FOOD & BEVERAGES
22-FEB-2023,7020948,12.8,CHICKEN JOES LTD T/A LOVE JOES,375810,Commissioning & Asset Management,Children's & Education Services,103,Supplies and Services,504,Equipment,5023,Revenue,CATERING.FOOD & BEVERAGES
22-FEB-2023,7020948,13.83,CHICKEN JOES LTD T/A LOVE JOES,375810,Commissioning & Asset Management,Children's & Education Services,103,Supplies and Services,504,Equipment,5023,Revenue,CATERING.FOOD & BEVERAGES
22-FEB-2023,7020948,13.83,CHICKEN JOES LTD T/A LOVE JOES,375810,Commissioning & Asset Management,Children's & Education Services,103,Supplies and Services,504,Equipment,5023,Revenue,CATERING.FOOD & BEVERAGES
22-FEB-2023,7020948,13.83,CHICKEN JOES LTD T/A LOVE JOES,375810,Commissioning & Asset Management,Children's & Education Services,103,Supplies and Services,504,Equipment,5023,Revenue,CATERING.FOOD & BEVERAGES
22-FEB-2023,7020948,13.83,CHICKEN JOES LTD T/A LOVE JOES,375810,Commissioning & Asset Management,Children's & Education Services,103,Supplies and Services,504,Equipment,5023,Revenue,CATERING.FOOD & BEVERAGES
22-FEB-2023,7020948,15,CHICKEN JOES LTD T/A LOVE JOES,375810,Commissioning & Asset Management,Children's & Education Services,103,Supplies and Services,504,Equipment,5023,Revenue,CATERING.FOOD & BEVERAGES
22-FEB-2023,7020948,15.3,CHICKEN JOES LTD T/A LOVE JOES,375810,Commissioning & Asset Management,Children's & Education Services,103,Supplies and Services,504,Equipment,5023,Revenue,CATERING.FOOD & BEVERAGES
22-FEB-2023,7020948,15.3,CHICKEN JOES LTD T/A LOVE JOES,375810,Commissioning & Asset Management,Children's & Education Services,103,Supplies and Services,504,Equipment,5023,Revenue,CATERING.FOOD & BEVERAGES
22-FEB-2023,7020948,17.4,CHICKEN JOES LTD T/A LOVE JOES,375810,Commissioning & Asset Management,Children's & Education Services,103,Supplies and Services,504,Equipment,5023,Revenue,CATERING.FOOD & BEVERAGES
22-FEB-2023,7020948,18,CHICKEN JOES LTD T/A LOVE JOES,375810,Commissioning & Asset Management,Children's & Education Services,103,Supplies and Services,504,Equipment,5023,Revenue,CATERING.FOOD & BEVERAGES
22-FEB-2023,7020948,23.2,CHICKEN JOES LTD T/A LOVE JOES,375810,Commissioning & Asset Management,Children's & Education Services,103,Supplies and Services,504,Equipment,5023,Revenue,CATERING.FOOD & BEVERAGES
22-FEB-2023,7020948,23.6,CHICKEN JOES LTD T/A LOVE JOES,375810,Commissioning & Asset Management,Children's & Education Services,103,Supplies and Services,504,Equipment,5023,Revenue,CATERING.FOOD & BEVERAGES
22-FEB-2023,7020948,23.6,CHICKEN JOES LTD T/A LOVE JOES,375810,Commissioning & Asset Management,Children's & Education Services,103,Supplies and Services,504,Equipment,5023,Revenue,CATERING.FOOD & BEVERAGES
22-FEB-2023,7020948,23.6,CHICKEN JOES LTD T/A LOVE JOES,375810,Commissioning & Asset Management,Children's & Education Services,103,Supplies and Services,504,Equipment,5023,Revenue,CATERING.FOOD & BEVERAGES
22-FEB-2023,7020948,25,CHICKEN JOES LTD T/A LOVE JOES,375810,Commissioning & Asset Management,Children's & Education Services,103,Supplies and Services,504,Equipment,5023,Revenue,CATERING.FOOD & BEVERAGES
22-FEB-2023,7020948,25,CHICKEN JOES LTD T/A LOVE JOES,375810,Commissioning & Asset Management,Children's & Education Services,103,Supplies and Services,504,Equipment,5023,Revenue,CATERING.FOOD & BEVERAGES
22-FEB-2023,7020948,25.6,CHICKEN JOES LTD T/A LOVE JOES,375810,Commissioning & Asset Management,Children's & Education Services,103,Supplies and Services,504,Equipment,5023,Revenue,CATERING.FOOD & BEVERAGES
22-FEB-2023,7020948,25.6,CHICKEN JOES LTD T/A LOVE JOES,375810,Commissioning & Asset Management,Children's & Education Services,103,Supplies and Services,504,Equipment,5023,Revenue,CATERING.FOOD & BEVERAGES
22-FEB-2023,7020948,27.66,CHICKEN JOES LTD T/A LOVE JOES,375810,Commissioning & Asset Management,Children's & Education Services,103,Supplies and Services,504,Equipment,5023,Revenue,CATERING.FOOD & BEVERAGES
22-FEB-2023,7020948,27.66,CHICKEN JOES LTD T/A LOVE JOES,375810,Commissioning & Asset Management,Children's & Education Services,103,Supplies and Services,504,Equipment,5023,Revenue,CATERING.FOOD & BEVERAGES
22-FEB-2023,7020948,27.82,CHICKEN JOES LTD T/A LOVE JOES,375810,Commissioning & Asset Management,Children's & Education Services,103,Supplies and Services,504,Equipment,5023,Revenue,CATERING.FOOD & BEVERAGES
22-FEB-2023,7020948,34.8,CHICKEN JOES LTD T/A LOVE JOES,375810,Commissioning & Asset Management,Children's & Education Services,103,Supplies and Services,504,Equipment,5023,Revenue,CATERING.FOOD & BEVERAGES
22-FEB-2023,7020948,41.73,CHICKEN JOES LTD T/A LOVE JOES,375810,Commissioning & Asset Management,Children's & Education Services,103,Supplies and Services,504,Equipment,5023,Revenue,CATERING.FOOD & BEVERAGES
22-FEB-2023,7020948,41.73,CHICKEN JOES LTD T/A LOVE JOES,375810,Commissioning & Asset Management,Children's & Education Services,103,Supplies and Services,504,Equipment,5023,Revenue,CATERING.FOOD & BEVERAGES
22-FEB-2023,7020948,55.64,CHICKEN JOES LTD T/A LOVE JOES,375810,Commissioning & Asset Management,Children's & Education Services,103,Supplies and Services,504,Equipment,5023,Revenue,CATERING.FOOD & BEVERAGES
22-FEB-2023,7020948,55.64,CHICKEN JOES LTD T/A LOVE JOES,375810,Commissioning & Asset Management,Children's & Education Services,103,Supplies and Services,504,Equipment,5023,Revenue,CATERING.FOOD & BEVERAGES
22-FEB-2023,7020948,96,CHICKEN JOES LTD T/A LOVE JOES,375810,Commissioning & Asset Management,Children's & Education Services,103,Supplies and Services,504,Equipment,5023,Revenue,CATERING.FOOD & BEVERAGES
22-FEB-2023,7020948,640,CHICKEN JOES LTD T/A LOVE JOES,375810,Commissioning & Asset Management,Children's & Education Services,103,Supplies and Services,504,Equipment,5023,Revenue,CATERING.FOOD & BEVERAGES
22-FEB-2023,7020948,5.9,CHICKEN JOES LTD T/A LOVE JOES,375810,Commissioning & Asset Management,Children's & Education Services,103,Supplies and Services,504,Equipment,5023,Revenue,CATERING.FOOD & BEVERAGES
22-FEB-2023,7020948,25,CHICKEN JOES LTD T/A LOVE JOES,375810,Commissioning & Asset Management,Children's & Education Services,103,Supplies and Services,504,Equipment,5023,Revenue,CATERING.FOOD & BEVERAGES
22-FEB-2023,7020948,27.82,CHICKEN JOES LTD T/A LOVE JOES,375810,Commissioning & Asset Management,Children's & Education Services,103,Supplies and Services,504,Equipment,5023,Revenue,CATERING.FOOD & BEVERAGES
22-FEB-2023,7020948,27.82,CHICKEN JOES LTD T/A LOVE JOES,375810,Commissioning & Asset Management,Children's & Education Services,103,Supplies and Services,504,Equipment,5023,Revenue,CATERING.FOOD & BEVERAGES
22-FEB-2023,7020948,27.82,CHICKEN JOES LTD T/A LOVE JOES,375810,Commissioning & Asset Management,Children's & Education Services,103,Supplies and Services,504,Equipment,5023,Revenue,CATERING.FOOD & BEVERAGES
22-FEB-2023,7020948,138.3,CHICKEN JOES LTD T/A LOVE JOES,375810,Commissioning & Asset Management,Children's & Education Services,103,Supplies and Services,504,Equipment,5023,Revenue,CATERING.FOOD & BEVERAGES
22-FEB-2023,7020948,3.2,CHICKEN JOES LTD T/A LOVE JOES,375810,Commissioning & Asset Management,Children's & Education Services,103,Supplies and Services,504,Equipment,5023,Revenue,CATERING.FOOD & BEVERAGES
22-FEB-2023,7020948,5.8,CHICKEN JOES LTD T/A LOVE JOES,375810,Commissioning & Asset Management,Children's & Education Services,103,Supplies and Services,504,Equipment,5023,Revenue,CATERING.FOOD & BEVERAGES
22-FEB-2023,7020948,6,CHICKEN JOES LTD T/A LOVE JOES,375810,Commissioning & Asset Management,Children's & Education Services,103,Supplies and Services,504,Equipment,5023,Revenue,CATERING.FOOD & BEVERAGES
22-FEB-2023,7020948,6,CHICKEN JOES LTD T/A LOVE JOES,375810,Commissioning & Asset Management,Children's & Education Services,103,Supplies and Services,504,Equipment,5023,Revenue,CATERING.FOOD & BEVERAGES
22-FEB-2023,7020948,11.6,CHICKEN JOES LTD T/A LOVE JOES,375810,Commissioning & Asset Management,Children's & Education Services,103,Supplies and Services,504,Equipment,5023,Revenue,CATERING.FOOD & BEVERAGES
22-FEB-2023,7020948,11.6,CHICKEN JOES LTD T/A LOVE JOES,375810,Commissioning & Asset Management,Children's & Education Services,103,Supplies and Services,504,Equipment,5023,Revenue,CATERING.FOOD & BEVERAGES
22-FEB-2023,7020948,11.8,CHICKEN JOES LTD T/A LOVE JOES,375810,Commissioning & Asset Management,Children's & Education Services,103,Supplies and Services,504,Equipment,5023,Revenue,CATERING.FOOD & BEVERAGES
22-FEB-2023,7020948,11.8,CHICKEN JOES LTD T/A LOVE JOES,375810,Commissioning & Asset Management,Children's & Education Services,103,Supplies and Services,504,Equipment,5023,Revenue,CATERING.FOOD & BEVERAGES
22-FEB-2023,7020948,12,CHICKEN JOES LTD T/A LOVE JOES,375810,Commissioning & Asset Management,Children's & Education Services,103,Supplies and Services,504,Equipment,5023,Revenue,CATERING.FOOD & BEVERAGES
22-FEB-2023,7020948,12,CHICKEN JOES LTD T/A LOVE JOES,375810,Commissioning & Asset Management,Children's & Education Services,103,Supplies and Services,504,Equipment,5023,Revenue,CATERING.FOOD & BEVERAGES
22-FEB-2023,7020948,12.8,CHICKEN JOES LTD T/A LOVE JOES,375810,Commissioning & Asset Management,Children's & Education Services,103,Supplies and Services,504,Equipment,5023,Revenue,CATERING.FOOD & BEVERAGES
22-FEB-2023,7020948,12.8,CHICKEN JOES LTD T/A LOVE JOES,375810,Commissioning & Asset Management,Children's & Education Services,103,Supplies and Services,504,Equipment,5023,Revenue,CATERING.FOOD & BEVERAGES
22-FEB-2023,7020948,12.8,CHICKEN JOES LTD T/A LOVE JOES,375810,Commissioning & Asset Management,Children's & Education Services,103,Supplies and Services,504,Equipment,5023,Revenue,CATERING.FOOD & BEVERAGES
22-FEB-2023,7020948,17.4,CHICKEN JOES LTD T/A LOVE JOES,375810,Commissioning & Asset Management,Children's & Education Services,103,Supplies and Services,504,Equipment,5023,Revenue,CATERING.FOOD & BEVERAGES
22-FEB-2023,7020948,17.4,CHICKEN JOES LTD T/A LOVE JOES,375810,Commissioning & Asset Management,Children's & Education Services,103,Supplies and Services,504,Equipment,5023,Revenue,CATERING.FOOD & BEVERAGES
22-FEB-2023,7020948,17.4,CHICKEN JOES LTD T/A LOVE JOES,375810,Commissioning & Asset Management,Children's & Education Services,103,Supplies and Services,504,Equipment,5023,Revenue,CATERING.FOOD & BEVERAGES
22-FEB-2023,7020948,17.7,CHICKEN JOES LTD T/A LOVE JOES,375810,Commissioning & Asset Management,Children's & Education Services,103,Supplies and Services,504,Equipment,5023,Revenue,CATERING.FOOD & BEVERAGES
22-FEB-2023,7020948,18,CHICKEN JOES LTD T/A LOVE JOES,375810,Commissioning & Asset Management,Children's & Education Services,103,Supplies and Services,504,Equipment,5023,Revenue,CATERING.FOOD & BEVERAGES
22-FEB-2023,7020948,21.5,CHICKEN JOES LTD T/A LOVE JOES,375810,Commissioning & Asset Management,Children's & Education Services,103,Supplies and Services,504,Equipment,5023,Revenue,CATERING.FOOD & BEVERAGES
22-FEB-2023,7020948,25,CHICKEN JOES LTD T/A LOVE JOES,375810,Commissioning & Asset Management,Children's & Education Services,103,Supplies and Services,504,Equipment,5023,Revenue,CATERING.FOOD & BEVERAGES
22-FEB-2023,7020948,29,CHICKEN JOES LTD T/A LOVE JOES,375810,Commissioning & Asset Management,Children's & Education Services,103,Supplies and Services,504,Equipment,5023,Revenue,CATERING.FOOD & BEVERAGES
22-FEB-2023,7020948,43,CHICKEN JOES LTD T/A LOVE JOES,375810,Commissioning & Asset Management,Children's & Education Services,103,Supplies and Services,504,Equipment,5023,Revenue,CATERING.FOOD & BEVERAGES
22-FEB-2023,7020948,50,CHICKEN JOES LTD T/A LOVE JOES,375810,Commissioning & Asset Management,Children's & Education Services,103,Supplies and Services,504,Equipment,5023,Revenue,CATERING.FOOD & BEVERAGES
22-FEB-2023,7020948,69.15,CHICKEN JOES LTD T/A LOVE JOES,375810,Commissioning & Asset Management,Children's & Education Services,103,Supplies and Services,504,Equipment,5023,Revenue,CATERING.FOOD & BEVERAGES
22-FEB-2023,7020948,100,CHICKEN JOES LTD T/A LOVE JOES,375810,Commissioning & Asset Management,Children's & Education Services,103,Supplies and Services,504,Equipment,5023,Revenue,CATERING.FOOD & BEVERAGES
22-FEB-2023,7020948,139.1,CHICKEN JOES LTD T/A LOVE JOES,375810,Commissioning & Asset Management,Children's & Education Services,103,Supplies and Services,504,Equipment,5023,Revenue,CATERING.FOOD & BEVERAGES
22-FEB-2023,7020948,139.1,CHICKEN JOES LTD T/A LOVE JOES,375810,Commissioning & Asset Management,Children's & Education Services,103,Supplies and Services,504,Equipment,5023,Revenue,CATERING.FOOD & BEVERAGES
22-FEB-2023,7020948,150,CHICKEN JOES LTD T/A LOVE JOES,375810,Commissioning & Asset Management,Children's & Education Services,103,Supplies and Services,504,Equipment,5023,Revenue,CATERING.FOOD & BEVERAGES
22-FEB-2023,7020948,2.9,CHICKEN JOES LTD T/A LOVE JOES,375810,Commissioning & Asset Management,Children's & Education Services,103,Supplies and Services,504,Equipment,5023,Revenue,CATERING.FOOD & BEVERAGES
22-FEB-2023,7020948,2.95,CHICKEN JOES LTD T/A LOVE JOES,375810,Commissioning & Asset Management,Children's & Education Services,103,Supplies and Services,504,Equipment,5023,Revenue,CATERING.FOOD & BEVERAGES
22-FEB-2023,7020948,3.2,CHICKEN JOES LTD T/A LOVE JOES,375810,Commissioning & Asset Management,Children's & Education Services,103,Supplies and Services,504,Equipment,5023,Revenue,CATERING.FOOD & BEVERAGES
22-FEB-2023,7020948,10.15,CHICKEN JOES LTD T/A LOVE JOES,375810,Commissioning & Asset Management,Children's & Education Services,103,Supplies and Services,504,Equipment,5023,Revenue,CATERING.FOOD & BEVERAGES
22-FEB-2023,7020948,12,CHICKEN JOES LTD T/A LOVE JOES,375810,Commissioning & Asset Management,Children's & Education Services,103,Supplies and Services,504,Equipment,5023,Revenue,CATERING.FOOD & BEVERAGES
22-FEB-2023,7020948,25.6,CHICKEN JOES LTD T/A LOVE JOES,375810,Commissioning & Asset Management,Children's & Education Services,103,Supplies and Services,504,Equipment,5023,Revenue,CATERING.FOOD & BEVERAGES
22-FEB-2023,7020948,27.66,CHICKEN JOES LTD T/A LOVE JOES,375810,Commissioning & Asset Management,Children's & Education Services,103,Supplies and Services,504,Equipment,5023,Revenue,CATERING.FOOD & BEVERAGES
22-FEB-2023,7020948,27.82,CHICKEN JOES LTD T/A LOVE JOES,375810,Commissioning & Asset Management,Children's & Education Services,103,Supplies and Services,504,Equipment,5023,Revenue,CATERING.FOOD & BEVERAGES
22-FEB-2023,7020948,82.98,CHICKEN JOES LTD T/A LOVE JOES,375810,Commissioning & Asset Management,Children's & Education Services,103,Supplies and Services,504,Equipment,5023,Revenue,CATERING.FOOD & BEVERAGES
22-FEB-2023,7020948,83.46,CHICKEN JOES LTD T/A LOVE JOES,375810,Commissioning & Asset Management,Children's & Education Services,103,Supplies and Services,504,Equipment,5023,Revenue,CATERING.FOOD & BEVERAGES
22-FEB-2023,7020948,11.6,CHICKEN JOES LTD T/A LOVE JOES,375810,Commissioning & Asset Management,Children's & Education Services,103,Supplies and Services,504,Equipment,5023,Revenue,CATERING.FOOD & BEVERAGES
22-FEB-2023,7020948,17.7,CHICKEN JOES LTD T/A LOVE JOES,375810,Commissioning & Asset Management,Children's & Education Services,103,Supplies and Services,504,Equipment,5023,Revenue,CATERING.FOOD & BEVERAGES
22-FEB-2023,7020948,18,CHICKEN JOES LTD T/A LOVE JOES,375810,Commissioning & Asset Management,Children's & Education Services,103,Supplies and Services,504,Equipment,5023,Revenue,CATERING.FOOD & BEVERAGES
22-FEB-2023,7020948,19.2,CHICKEN JOES LTD T/A LOVE JOES,375810,Commissioning & Asset Management,Children's & Education Services,103,Supplies and Services,504,Equipment,5023,Revenue,CATERING.FOOD & BEVERAGES
22-FEB-2023,7020948,21.5,CHICKEN JOES LTD T/A LOVE JOES,375810,Commissioning & Asset Management,Children's & Education Services,103,Supplies and Services,504,Equipment,5023,Revenue,CATERING.FOOD & BEVERAGES
